BODY,BODY NAME,SERVICE CODE,ORGANISATIONAL UNIT,ORGANISATIONAL UNIT CODE,EXPENDITURE CATEGORY,EXPENDITURE CODE,DATE (POSTING DATE),TRANSACTION NUMBER,AMOUNT,SUPPLIER NAME,SUPPLIER ID
WARRINGTON BOROUGH COUNCIL,http://opendatacommunities.org/id/unitary-authority/warrington ,FWB,Neighbourhood Co-o East,51306,Payment of Grants,470050,23-Jun-16,1900202940,1000.00,3rd Warrington East Culcheth Scouts,112770
WARRINGTON BOROUGH COUNCIL,http://opendatacommunities.org/id/unitary-authority/warrington ,FWB,DSG 2 Year Old Fund,31601,Payment of Grants,470050,10-Jun-16,1900201699,1528.00,A & J Tots to Teens Childcare,113264
WARRINGTON BOROUGH COUNCIL,http://opendatacommunities.org/id/unitary-authority/warrington ,FWB,DSG Early Years PVI Settings,32417,Private & Voluntary 3 Year Olds,470100,10-Jun-16,1900201543,1242.00,A & J Tots to Teens Childcare,113264
WARRINGTON BOROUGH COUNCIL,http://opendatacommunities.org/id/unitary-authority/warrington ,EE0,Project Delivery & Communications,43830,"Campaigns,  Projects and Events",491950,20-Jun-16,1900202185,600.00,Ab Fab Event,115404
WARRINGTON BOROUGH COUNCIL,http://opendatacommunities.org/id/unitary-authority/warrington ,FWB,Care Purchase Central Team,54050,CP-Nursing Care-External,441200,21-Jun-16,1900202199,4136.00,Abbey Lawns Care Home Ltd,101816
WARRINGTON BOROUGH COUNCIL,http://opendatacommunities.org/id/unitary-authority/warrington ,FWB,DSG 2 Year Old Fund,31601,Payment of Grants,470050,10-Jun-16,1900201697,10105.00,Abc 123 Day Nursery Ltd,400152
WARRINGTON BOROUGH COUNCIL,http://opendatacommunities.org/id/unitary-authority/warrington ,FWB,DSG Early Years PVI Settings,32417,Private & Voluntary 3 Year Olds,470100,10-Jun-16,1900201500,1707.00,Abc 123 Day Nursery Ltd,400152
WARRINGTON BOROUGH COUNCIL,http://opendatacommunities.org/id/unitary-authority/warrington ,FWB,DSG Early Years PVI Settings,32417,Private & Voluntary 4 Year Olds,470150,10-Jun-16,1900201611,2919.00,Abc 123 Day Nursery Ltd,400152
WARRINGTON BOROUGH COUNCIL,http://opendatacommunities.org/id/unitary-authority/warrington ,FWB,DSG 2 Year Old Fund,31601,Payment of Grants,470050,10-Jun-16,1900201698,618.00,Abc Pre-School Limited,400009
WARRINGTON BOROUGH COUNCIL,http://opendatacommunities.org/id/unitary-authority/warrington ,FWB,DSG Early Years PVI Settings,32417,Private & Voluntary 3 Year Olds,470100,10-Jun-16,1900201501,4881.00,Abc Pre-School Limited,400009
WARRINGTON BOROUGH COUNCIL,http://opendatacommunities.org/id/unitary-authority/warrington ,FWB,DSG Early Years PVI Settings,32417,Private & Voluntary 4 Year Olds,470150,10-Jun-16,1900201612,1483.00,Abc Pre-School Limited,400009
WARRINGTON BOROUGH COUNCIL,http://opendatacommunities.org/id/unitary-authority/warrington ,FWB,CYPS - Rents & Charges,32422,Servicing Contracts,200150,07-Jun-16,1900201318,737.00,Abel Alarm Company Ltd,101027
WARRINGTON BOROUGH COUNCIL,http://opendatacommunities.org/id/unitary-authority/warrington ,CYP,Secondary,81002,ICT Comms - Equipment Purchase,450100,23-Jun-16,1900202939,9888.00,Abtec Computer Solutions Ltd,107132
WARRINGTON BOROUGH COUNCIL,http://opendatacommunities.org/id/unitary-authority/warrington ,CYP,Childrens Other,81004,Specific Work,200200,07-Jun-16,1900201298,2915.00,Adrian Denton Services,111347
WARRINGTON BOROUGH COUNCIL,http://opendatacommunities.org/id/unitary-authority/warrington ,EE0,New Town House,43119,Security Systems,250000,17-Jun-16,1900202082,1205.00,Adt Fire And Security Plc,100549
WARRINGTON BOROUGH COUNCIL,http://opendatacommunities.org/id/unitary-authority/warrington ,FWB,Care Purchase - PD,54440,Direct Payments,552000,29-Jun-16,1900203140,520.00,Advanced Payment Solutions Limited,109731
WARRINGTON BOROUGH COUNCIL,http://opendatacommunities.org/id/unitary-authority/warrington ,FWB,Care Purchase - PD,54440,Direct Payments,552000,23-Jun-16,1900202935,750.00,Advanced Payment Solutions Limited,109731
WARRINGTON BOROUGH COUNCIL,http://opendatacommunities.org/id/unitary-authority/warrington ,FWB,Assessment & Intervention,31000,Looked after children in Warrington,301000,17-Jun-16,1900202104,850.00,Affinity Sutton,108809
WARRINGTON BOROUGH COUNCIL,http://opendatacommunities.org/id/unitary-authority/warrington ,ENO,Housing Projects,82008,Disabled Persons Grant 1996,554000,22-Jun-16,1900202893,4885.00,Aidservice Ltd,104458
WARRINGTON BOROUGH COUNCIL,http://opendatacommunities.org/id/unitary-authority/warrington ,RSC,Coroners Service,11100,Hire Of Mortuaries,220200,13-Jun-16,1900201797,1147.00,Alder Hey Childrens NHS Foundation,106199
WARRINGTON BOROUGH COUNCIL,http://opendatacommunities.org/id/unitary-authority/warrington ,FWB,Care Purchase East Team,54060,CP-LongStayExternal,441150,21-Jun-16,1900202309,1540.00,Alexandra Care Home,100708
WARRINGTON BOROUGH COUNCIL,http://opendatacommunities.org/id/unitary-authority/warrington ,EE0,Markets,43711,Resaleables,400600,06-Jun-16,1900201203,727.00,Alfa Travel,102214
WARRINGTON BOROUGH COUNCIL,http://opendatacommunities.org/id/unitary-authority/warrington ,FWB,Care Purchase - PD,54440,CP-Domicil.External,440950,03-Jun-16,1900201075,5865.00,Allied Healthcare Group Ltd,100796
WARRINGTON BOROUGH COUNCIL,http://opendatacommunities.org/id/unitary-authority/warrington ,FWB,Care Purchase - PD,54440,Supporting People - External,441250,03-Jun-16,1900201075,733.00,Allied Healthcare Group Ltd,100796
WARRINGTON BOROUGH COUNCIL,http://opendatacommunities.org/id/unitary-authority/warrington ,FWB,Care Purchase East Team,54060,CP-Domicil.External,440950,14-Jun-16,1900201907,1763.00,Alternative Futures Group,104468
WARRINGTON BOROUGH COUNCIL,http://opendatacommunities.org/id/unitary-authority/warrington ,FWB,Care Purchase AMH,54135,CP-Domicil.External,440950,09-Jun-16,1900201418,2250.00,Alternative Futures Group,104468
WARRINGTON BOROUGH COUNCIL,http://opendatacommunities.org/id/unitary-authority/warrington ,FWB,Care Purchase East Team,54060,CP-Domicil.External,440950,14-Jun-16,1900201910,2119.00,Alternative Futures Group,104468
WARRINGTON BOROUGH COUNCIL,http://opendatacommunities.org/id/unitary-authority/warrington ,FWB,Care Purchase South Team,54070,CP-Domicil.External,440950,14-Jun-16,1900201913,3140.00,Alternative Futures Group,104468
WARRINGTON BOROUGH COUNCIL,http://opendatacommunities.org/id/unitary-authority/warrington ,FWB,Care Purchase East Team,54060,CP-Domicil.External,440950,14-Jun-16,1900201911,2119.00,Alternative Futures Group,104468
WARRINGTON BOROUGH COUNCIL,http://opendatacommunities.org/id/unitary-authority/warrington ,FWB,Care Purchase South Team,54070,CP-Domicil.External,440950,14-Jun-16,1900201904,3140.00,Alternative Futures Group,104468
WARRINGTON BOROUGH COUNCIL,http://opendatacommunities.org/id/unitary-authority/warrington ,FWB,Care Purchase South Team,54070,CP-Domicil.External,440950,14-Jun-16,1900201903,3140.00,Alternative Futures Group,104468
WARRINGTON BOROUGH COUNCIL,http://opendatacommunities.org/id/unitary-authority/warrington ,FWB,Care Purchase AMH,54135,CP-Domicil.External,440950,09-Jun-16,1900201423,2119.00,Alternative Futures Group,104468
WARRINGTON BOROUGH COUNCIL,http://opendatacommunities.org/id/unitary-authority/warrington ,FWB,Care Purchase East Team,54060,CP-Domicil.External,440950,14-Jun-16,1900201912,2119.00,Alternative Futures Group,104468
WARRINGTON BOROUGH COUNCIL,http://opendatacommunities.org/id/unitary-authority/warrington ,FWB,Care Purchase South Team,54070,CP-Domicil.External,440950,14-Jun-16,1900201905,3140.00,Alternative Futures Group,104468
WARRINGTON BOROUGH COUNCIL,http://opendatacommunities.org/id/unitary-authority/warrington ,FWB,Care Purchase South Team,54070,CP-Domicil.External,440950,14-Jun-16,1900201909,3140.00,Alternative Futures Group,104468
WARRINGTON BOROUGH COUNCIL,http://opendatacommunities.org/id/unitary-authority/warrington ,FWB,Care Purchase East Team,54060,CP-Domicil.External,440950,14-Jun-16,1900201908,2119.00,Alternative Futures Group,104468
WARRINGTON BOROUGH COUNCIL,http://opendatacommunities.org/id/unitary-authority/warrington ,FWB,Care Purchase South Team,54070,CP-Domicil.External,440950,14-Jun-16,1900201859,3140.00,Alternative Futures Group,104468
WARRINGTON BOROUGH COUNCIL,http://opendatacommunities.org/id/unitary-authority/warrington ,ENO,Housing Projects,82008,Disabled Persons Grant 1996,554000,08-Jun-16,1900201341,4911.00,AMW Lift & Mobility Services Ltd,112766
WARRINGTON BOROUGH COUNCIL,http://opendatacommunities.org/id/unitary-authority/warrington ,ENO,Housing Projects,82008,Disabled Persons Grant 1996,554000,01-Jun-16,1900201027,3636.00,AMW Lift & Mobility Services Ltd,112766
WARRINGTON BOROUGH COUNCIL,http://opendatacommunities.org/id/unitary-authority/warrington ,EE0,Estates & Valuation,43520,Agency Supply,180000,31-May-16,1900200953,562.00,Anderselite,100563
WARRINGTON BOROUGH COUNCIL,http://opendatacommunities.org/id/unitary-authority/warrington ,COR,Debt Management Expenses,62080,Consult.& Prof. Serv,440000,20-Jun-16,1900202182,6250.00,Anthony Collins Solicitors LLP,106546
WARRINGTON BOROUGH COUNCIL,http://opendatacommunities.org/id/unitary-authority/warrington ,COR,Debt Management Expenses,62080,Consult.& Prof. Serv,440000,20-Jun-16,1900202184,2720.00,Anthony Collins Solicitors LLP,106546
WARRINGTON BOROUGH COUNCIL,http://opendatacommunities.org/id/unitary-authority/warrington ,FWB,DSG Early Years PVI Settings,32417,Private & Voluntary 3 Year Olds,470100,10-Jun-16,1900201506,2141.00,Appleton Thorn Pre School,400111
WARRINGTON BOROUGH COUNCIL,http://opendatacommunities.org/id/unitary-authority/warrington ,FWB,DSG Early Years PVI Settings,32417,Private & Voluntary 4 Year Olds,470150,10-Jun-16,1900201614,621.00,Appleton Thorn Pre School,400111
WARRINGTON BOROUGH COUNCIL,http://opendatacommunities.org/id/unitary-authority/warrington ,FWB,Care Purchase Budget,54490,CP ExternalOther Exp,440800,22-Jun-16,1900202867,3892.00,Ashberry Healthcare,101061
WARRINGTON BOROUGH COUNCIL,http://opendatacommunities.org/id/unitary-authority/warrington ,FWB,Care Purchase Budget,54490,CP ExternalOther Exp,440800,21-Jun-16,1900202208,50000.00,Ashberry Healthcare,101061
WARRINGTON BOROUGH COUNCIL,http://opendatacommunities.org/id/unitary-authority/warrington ,FWB,Care Purchase Budget,54490,CP ExternalOther Exp,440800,21-Jun-16,1900202236,110000.00,Ashberry Healthcare Ltd,104776
WARRINGTON BOROUGH COUNCIL,http://opendatacommunities.org/id/unitary-authority/warrington ,FWB,Music Education Grant,32220,Consult.& Prof. Serv,440000,03-Jun-16,1900201074,1259.00,Assure Music Education Ltd,114465
WARRINGTON BOROUGH COUNCIL,http://opendatacommunities.org/id/unitary-authority/warrington ,FWB,Care Purchase East Team,54060,CP-LongStayExternal,441150,21-Jun-16,1900202270,4496.00,Autism Initiatives,104503
WARRINGTON BOROUGH COUNCIL,http://opendatacommunities.org/id/unitary-authority/warrington ,FWB,Care Purchase - Learning Disability,54450,CP-Domicil.External,440950,03-Jun-16,1900201106,4316.00,Autism Initiatives,104503
WARRINGTON BOROUGH COUNCIL,http://opendatacommunities.org/id/unitary-authority/warrington ,FWB,Care Purchase - Learning Disability,54450,CP-Domicil.External,440950,07-Jun-16,1900201250,7015.00,Autism Initiatives,104503
WARRINGTON BOROUGH COUNCIL,http://opendatacommunities.org/id/unitary-authority/warrington ,FWB,Care Purchase - Learning Disability,54450,CP-Domicil.External,440950,03-Jun-16,1900201103,6926.00,Autism Initiatives,104503
WARRINGTON BOROUGH COUNCIL,http://opendatacommunities.org/id/unitary-authority/warrington ,FWB,Care Purchase - Learning Disability,54450,CP-Domicil.External,440950,07-Jun-16,1900201247,5685.00,Autism Initiatives,104503
WARRINGTON BOROUGH COUNCIL,http://opendatacommunities.org/id/unitary-authority/warrington ,FWB,Care Purchase - Learning Disability,54450,CP-Domicil.External,440950,03-Jun-16,1900201109,8450.00,Autism Initiatives,104503
WARRINGTON BOROUGH COUNCIL,http://opendatacommunities.org/id/unitary-authority/warrington ,FWB,Care Purchase - Learning Disability,54450,CP-Day Care-External,441100,07-Jun-16,1900201249,2931.00,Autism Initiatives,104503
WARRINGTON BOROUGH COUNCIL,http://opendatacommunities.org/id/unitary-authority/warrington ,FWB,Care Purchase West Team,54080,CP-Day Care-External,441100,24-Jun-16,1900202958,2785.00,Autism Initiatives,104503
WARRINGTON BOROUGH COUNCIL,http://opendatacommunities.org/id/unitary-authority/warrington ,FWB,Care Purchase - Learning Disability,54450,CP-Domicil.External,440950,07-Jun-16,1900201248,2931.00,Autism Initiatives,104503
WARRINGTON BOROUGH COUNCIL,http://opendatacommunities.org/id/unitary-authority/warrington ,FWB,Care Purchase West Team,54080,CP-Domicil.External,440950,22-Jun-16,1900202866,5918.00,Autism Initiatives,104503
WARRINGTON BOROUGH COUNCIL,http://opendatacommunities.org/id/unitary-authority/warrington ,EE0,Building Control Services,43410,Building Work,200850,06-Jun-16,1900201205,5870.00,B E Building Service,114760
WARRINGTON BOROUGH COUNCIL,http://opendatacommunities.org/id/unitary-authority/warrington ,FWB,Service Manager - Intermediate Care,53200,Agency Supply,180000,06-Jun-16,1900201206,4050.00,Baltimore Consulting Ltd,113735
WARRINGTON BOROUGH COUNCIL,http://opendatacommunities.org/id/unitary-authority/warrington ,FWB,Service Manager - Intermediate Care,53200,Agency Supply ,180000,27-Jun-16,1900203041,1800.00,Baltimore Consulting Ltd,113735
WARRINGTON BOROUGH COUNCIL,http://opendatacommunities.org/id/unitary-authority/warrington ,FWB,Care Purchase East Team,54060,CP-LongStayExternal,441150,22-Jun-16,1900202892,4229.00,Barchester Healthcare - Sutton Gran,115035
WARRINGTON BOROUGH COUNCIL,http://opendatacommunities.org/id/unitary-authority/warrington ,FWB,Care Purchase South Team,54070,CP-LongStayExternal,441150,21-Jun-16,1900202275,1716.00,Barchester Healthcare Brookfield,104548
WARRINGTON BOROUGH COUNCIL,http://opendatacommunities.org/id/unitary-authority/warrington ,FWB,Care Purchase South Team,54070,CP-LongStayExternal,441150,21-Jun-16,1900202272,1796.00,Barchester Healthcare Brookfield,104548
WARRINGTON BOROUGH COUNCIL,http://opendatacommunities.org/id/unitary-authority/warrington ,FWB,Care Purchase South Team,54070,CP-LongStayExternal,441150,21-Jun-16,1900202274,1796.00,Barchester Healthcare Brookfield,104548
WARRINGTON BOROUGH COUNCIL,http://opendatacommunities.org/id/unitary-authority/warrington ,FWB,Care Purchase South Team,54070,CP-LongStayExternal,441150,21-Jun-16,1900202271,1796.00,Barchester Healthcare Brookfield,104548
WARRINGTON BOROUGH COUNCIL,http://opendatacommunities.org/id/unitary-authority/warrington ,FWB,Care Purchase West Team,54080,CP-Nursing Care-External,441200,21-Jun-16,1900202323,40860.00,Barchester Homes Westvale House,105246
WARRINGTON BOROUGH COUNCIL,http://opendatacommunities.org/id/unitary-authority/warrington ,FWB,Care Purchase Central Team,54050,CP-Nursing Care-External,441200,21-Jun-16,1900202323,2036.00,Barchester Homes Westvale House,105246
WARRINGTON BOROUGH COUNCIL,http://opendatacommunities.org/id/unitary-authority/warrington ,FWB,Care Purchase Budget,54490,CP Free Nursing Care External,443500,27-Jun-16,1900203036,15696.00,Barchester Homes Westvale House,105246
WARRINGTON BOROUGH COUNCIL,http://opendatacommunities.org/id/unitary-authority/warrington ,FWB,Care Purchase West Team,54080,CP-Nursing Care-External,441200,21-Jun-16,1900202322,832.00,Barchester Homes Westvale House,105246
WARRINGTON BOROUGH COUNCIL,http://opendatacommunities.org/id/unitary-authority/warrington ,FWB,Care Purchase Central Team,54050,CP-LongStayExternal,441150,21-Jun-16,1900202201,1700.00,Bellefield Residential Home,113998
WARRINGTON BOROUGH COUNCIL,http://opendatacommunities.org/id/unitary-authority/warrington ,FWB,Care Purchase Central Team,54050,CP-Nursing Care-External,441200,21-Jun-16,1900202200,6780.00,Berkeley House,113955
WARRINGTON BOROUGH COUNCIL,http://opendatacommunities.org/id/unitary-authority/warrington ,FWB,Homelessness,43650,Legal Costs Incurred,440200,06-Jun-16,1900201208,629.00,Berrymans Lace Mawer,108304
WARRINGTON BOROUGH COUNCIL,http://opendatacommunities.org/id/unitary-authority/warrington ,FWB,Care Purchase Budget,54490,Court Costs,460100,06-Jun-16,1900201208,629.00,Berrymans Lace Mawer,108304
WARRINGTON BOROUGH COUNCIL,http://opendatacommunities.org/id/unitary-authority/warrington ,FWB,Homelessness,43650,Legal Costs Incurred,440200,06-Jun-16,1900201207,1820.00,Berrymans Lace Mawer,108304
WARRINGTON BOROUGH COUNCIL,http://opendatacommunities.org/id/unitary-authority/warrington ,FWB,Homelessness,43650,Court Costs,460100,06-Jun-16,1900201207,1820.00,Berrymans Lace Mawer,108304
WARRINGTON BOROUGH COUNCIL,http://opendatacommunities.org/id/unitary-authority/warrington ,FWB,DSG 2 Year Old Fund,31601,Payment of Grants,470050,10-Jun-16,1900201700,2983.00,Birch Grove Day Nursery Ltd,101367
WARRINGTON BOROUGH COUNCIL,http://opendatacommunities.org/id/unitary-authority/warrington ,FWB,DSG Early Years PVI Settings,32417,Private & Voluntary 3 Year Olds,470100,10-Jun-16,1900201508,2201.00,Birch Grove Day Nursery Ltd,101367
WARRINGTON BOROUGH COUNCIL,http://opendatacommunities.org/id/unitary-authority/warrington ,FWB,DSG Early Years PVI Settings,32417,Private & Voluntary 4 Year Olds,470150,10-Jun-16,1900201615,1181.00,Birch Grove Day Nursery Ltd,101367
WARRINGTON BOROUGH COUNCIL,http://opendatacommunities.org/id/unitary-authority/warrington ,FWB,SEN Grants,32057,Payment of Grants,470050,22-Jun-16,1900202862,864.00,Birch Grove Day Nursery Ltd,101367
WARRINGTON BOROUGH COUNCIL,http://opendatacommunities.org/id/unitary-authority/warrington ,RSC,B'Wood Leis.Lnk Bhs,51006,Fees (Including Agents Fees),441450,17-Jun-16,1900202086,3461.00,Birchwood Community Academy,400276
WARRINGTON BOROUGH COUNCIL,http://opendatacommunities.org/id/unitary-authority/warrington ,FWB,Contracts - SM Commissioning Team 2,55920,Public Health Contract Payments,540000,21-Jun-16,1900202265,2882.00,Birchwood Medical Centre,100402
WARRINGTON BOROUGH COUNCIL,http://opendatacommunities.org/id/unitary-authority/warrington ,FWB,Homelessness,43650,Legal Costs Incurred,440200,06-Jun-16,1900201224,1820.00,BLM,114659
WARRINGTON BOROUGH COUNCIL,http://opendatacommunities.org/id/unitary-authority/warrington ,FWB,Care Purchase Budget,54490,Court Costs,460100,06-Jun-16,1900201224,1820.00,BLM,114659
WARRINGTON BOROUGH COUNCIL,http://opendatacommunities.org/id/unitary-authority/warrington ,FWB,Neighbourhood Co-o Central,51309,Payment of Grants,470050,14-Jun-16,1900201934,2685.00,Blooming Art Approved Funding,114150
WARRINGTON BOROUGH COUNCIL,http://opendatacommunities.org/id/unitary-authority/warrington ,FWB,DSG 2 Year Old Fund,31601,Payment of Grants,470050,10-Jun-16,1900201701,960.00,Bloomings Pre-School Day Nursery,400114
WARRINGTON BOROUGH COUNCIL,http://opendatacommunities.org/id/unitary-authority/warrington ,FWB,DSG Early Years PVI Settings,32417,Private & Voluntary 3 Year Olds,470100,10-Jun-16,1900201509,3309.00,Bloomings Pre-School Day Nursery,400114
WARRINGTON BOROUGH COUNCIL,http://opendatacommunities.org/id/unitary-authority/warrington ,FWB,DSG Early Years PVI Settings,32417,Private & Voluntary 4 Year Olds,470150,10-Jun-16,1900201616,857.00,Bloomings Pre-School Day Nursery,400114
WARRINGTON BOROUGH COUNCIL,http://opendatacommunities.org/id/unitary-authority/warrington ,FWB,Contracts - SM Commissioning Team 2,55920,Public Health Contract Payments,540000,21-Jun-16,1900202209,2480.00,Bolton NHS Foundation Trust,113092
WARRINGTON BOROUGH COUNCIL,http://opendatacommunities.org/id/unitary-authority/warrington ,FWB,Contracts - SM Commissioning Team 2,55920,Public Health Contract Payments,540000,21-Jun-16,1900202240,1357.00,Bolton NHS Foundation Trust,113092
WARRINGTON BOROUGH COUNCIL,http://opendatacommunities.org/id/unitary-authority/warrington ,FWB,Contracts - SM Commissioning Team 2,55920,Public Health Contract Payments,540000,21-Jun-16,1900202239,2199.00,Bolton NHS Foundation Trust,113092
WARRINGTON BOROUGH COUNCIL,http://opendatacommunities.org/id/unitary-authority/warrington ,FWB,Contracts - SM Commissioning Team 2,55920,Public Health Contract Payments,540000,21-Jun-16,1900202241,1095.00,Bolton NHS Foundation Trust,113092
WARRINGTON BOROUGH COUNCIL,http://opendatacommunities.org/id/unitary-authority/warrington ,FWB,Contracts - SM Commissioning Team 2,55920,Public Health Contract Payments,540000,21-Jun-16,1900202237,1000.00,Bolton NHS Foundation Trust,113092
WARRINGTON BOROUGH COUNCIL,http://opendatacommunities.org/id/unitary-authority/warrington ,FWB,Contracts - SM Commissioning Team 2,55920,Public Health Contract Payments,540000,07-Jun-16,1900201300,1080.00,Boots the Chemist,114103
WARRINGTON BOROUGH COUNCIL,http://opendatacommunities.org/id/unitary-authority/warrington ,FWB,Contracts - SM Commissioning Team 2,55920,Public Health Contract Payments,540000,07-Jun-16,1900201300,546.00,Boots the Chemist,114103
WARRINGTON BOROUGH COUNCIL,http://opendatacommunities.org/id/unitary-authority/warrington ,FWB,Care Purchase West Team,54080,CP-Nursing Care-External,441200,21-Jun-16,1900202216,1600.00,Bowerfield House MMCG,111713
WARRINGTON BOROUGH COUNCIL,http://opendatacommunities.org/id/unitary-authority/warrington ,FWB,Care Purchase AMH,54135,CP-Domicil.External,440950,07-Jun-16,1900201252,5120.00,Brain Injury Rehabilitation Trust,108472
WARRINGTON BOROUGH COUNCIL,http://opendatacommunities.org/id/unitary-authority/warrington ,FWB,Care Purchase AMH,54135,CP-Domicil.External,440950,07-Jun-16,1900201253,7168.00,Brain Injury Rehabilitation Trust,108472
WARRINGTON BOROUGH COUNCIL,http://opendatacommunities.org/id/unitary-authority/warrington ,FWB,Care Purchase AMH,54135,CP-Domicil.External,440950,07-Jun-16,1900201254,7168.00,Brain Injury Rehabilitation Trust,108472
WARRINGTON BOROUGH COUNCIL,http://opendatacommunities.org/id/unitary-authority/warrington ,FWB,Care Purchase AMH,54135,CP-Domicil.External,440950,07-Jun-16,1900201251,7168.00,Brain Injury Rehabilitation Trust,108472
WARRINGTON BOROUGH COUNCIL,http://opendatacommunities.org/id/unitary-authority/warrington ,FWB,Care Purchase Central Team,54050,CP-Domicil.External,440950,22-Jun-16,1900202891,7168.00,Brain Injury Rehabilitation Trust,108472
WARRINGTON BOROUGH COUNCIL,http://opendatacommunities.org/id/unitary-authority/warrington ,FWB,Care Purchase AMH,54135,CP-Domicil.External,440950,07-Jun-16,1900201259,1854.00,Brain Injury Rehabilitation Trust,108472
WARRINGTON BOROUGH COUNCIL,http://opendatacommunities.org/id/unitary-authority/warrington ,FWB,Contracts - SM Commissioning Team 1,55910,Public Health Contract Payments,540000,01-Jun-16,1900200986,304984.00,Bridgewater Community Healthcare,108932
WARRINGTON BOROUGH COUNCIL,http://opendatacommunities.org/id/unitary-authority/warrington ,FWB,Contracts - SM Commissioning Team 1,55910,Public Health Contract Payments,540000,01-Jun-16,1900200983,273459.00,Bridgewater Community Healthcare,108932
WARRINGTON BOROUGH COUNCIL,http://opendatacommunities.org/id/unitary-authority/warrington ,FWB,Care Purchase West Team,54080,CP-LongStayExternal,441150,21-Jun-16,1900202276,10228.00,Bright Futures Care Ltd,114579
WARRINGTON BOROUGH COUNCIL,http://opendatacommunities.org/id/unitary-authority/warrington ,FWB,DSG Early Years PVI Settings,32417,Private & Voluntary 3 Year Olds,470100,10-Jun-16,1900201510,8739.00,Bright Horizons Callands,400121
WARRINGTON BOROUGH COUNCIL,http://opendatacommunities.org/id/unitary-authority/warrington ,FWB,DSG Early Years PVI Settings,32417,Private & Voluntary 4 Year Olds,470150,10-Jun-16,1900201617,1976.00,Bright Horizons Callands,400121
WARRINGTON BOROUGH COUNCIL,http://opendatacommunities.org/id/unitary-authority/warrington ,FWB,DSG Early Years PVI Settings,32417,Private & Voluntary 3 Year Olds,470100,01-Jun-16,1900201028,19267.00,Bright Horizons Callands,400121
WARRINGTON BOROUGH COUNCIL,http://opendatacommunities.org/id/unitary-authority/warrington ,FWB,DSG Early Years PVI Settings,32417,Private & Voluntary 4 Year Olds,470150,01-Jun-16,1900201028,7938.00,Bright Horizons Callands,400121
WARRINGTON BOROUGH COUNCIL,http://opendatacommunities.org/id/unitary-authority/warrington ,FWB,Winter Pressures,53400,Joint Arrangements,505200,01-Jun-16,1900201029,25000.00,British Red Cross,440042
WARRINGTON BOROUGH COUNCIL,http://opendatacommunities.org/id/unitary-authority/warrington ,FWB,Spencer House,53280,Payment of Grants,470050,28-Jun-16,1900203115,10194.00,British Red Cross,440042
WARRINGTON BOROUGH COUNCIL,http://opendatacommunities.org/id/unitary-authority/warrington ,EE0,Urban Traffic Management Control,44370,Signal Management,531600,28-Jun-16,1900203130,9768.00,British Telecommunications Plc,104543
WARRINGTON BOROUGH COUNCIL,http://opendatacommunities.org/id/unitary-authority/warrington ,EE0,CCTV Operations exp,44380,Equipment Purchase & Contract,400000,28-Jun-16,1900203127,8166.00,British Telecommunications Plc,104543
WARRINGTON BOROUGH COUNCIL,http://opendatacommunities.org/id/unitary-authority/warrington ,FWB,CYPS - Rents & Charges,32422,ICT Comms - Line Rental,450200,20-Jun-16,1900202165,605.00,BT,104542
WARRINGTON BOROUGH COUNCIL,http://opendatacommunities.org/id/unitary-authority/warrington ,CYP,Childrens Other,81004,Specific Work,200200,20-May-16,1900200106,2225.00,BT Property Maintenance,115358
WARRINGTON BOROUGH COUNCIL,http://opendatacommunities.org/id/unitary-authority/warrington ,FWB,Care Purchase East Team,54060,CP-Nursing Care-External,441200,21-Jun-16,1900202277,1679.00,BUPA - Bedford Res,104569
WARRINGTON BOROUGH COUNCIL,http://opendatacommunities.org/id/unitary-authority/warrington ,FWB,Care Purchase West Team,54080,CP-Nursing Care-External,441200,21-Jun-16,1900202279,1628.00,BUPA - Bedford Res,104569
WARRINGTON BOROUGH COUNCIL,http://opendatacommunities.org/id/unitary-authority/warrington ,FWB,Care Purchase Budget,54490,CP ExternalOther Exp,440800,03-Jun-16,1900201113,15030.00,Bupa Care Homes,104572
WARRINGTON BOROUGH COUNCIL,http://opendatacommunities.org/id/unitary-authority/warrington ,FWB,Care Purchase Budget,54490,CP ExternalOther Exp,440800,21-Jun-16,1900202210,152000.00,Bupa Care Homes,104572
WARRINGTON BOROUGH COUNCIL,http://opendatacommunities.org/id/unitary-authority/warrington ,FWB,DSG 2 Year Old Fund,31601,Payment of Grants,470050,10-Jun-16,1900201702,3734.00,Burnett Nursery,440143
WARRINGTON BOROUGH COUNCIL,http://opendatacommunities.org/id/unitary-authority/warrington ,FWB,DSG Early Years PVI Settings,32417,Private & Voluntary 3 Year Olds,470100,10-Jun-16,1900201511,2414.00,Burnett Nursery,440143
WARRINGTON BOROUGH COUNCIL,http://opendatacommunities.org/id/unitary-authority/warrington ,FWB,DSG Early Years PVI Settings,32417,Private & Voluntary 4 Year Olds,470150,10-Jun-16,1900201618,1296.00,Burnett Nursery,440143
WARRINGTON BOROUGH COUNCIL,http://opendatacommunities.org/id/unitary-authority/warrington ,FWB,SEN Grants,32057,Payment of Grants,470050,29-Jun-16,1900203186,612.00,Burnett Nursery,440143
WARRINGTON BOROUGH COUNCIL,http://opendatacommunities.org/id/unitary-authority/warrington ,FWB,Older Peoples South Team,54421,CP-LongStayExternal,441150,01-Jun-16,1900201034,1740.00,Burrswood House Nursing & Residenti,109619
WARRINGTON BOROUGH COUNCIL,http://opendatacommunities.org/id/unitary-authority/warrington ,FWB,Care Purchase South Team,54070,CP-LongStayExternal,441150,21-Jun-16,1900202278,1782.00,Burrswood House Nursing & Residenti,109619
WARRINGTON BOROUGH COUNCIL,http://opendatacommunities.org/id/unitary-authority/warrington ,FWB,DSG 2 Year Old Fund,31601,Payment of Grants,470050,10-Jun-16,1900201703,2328.00,Busy 0 To 5S (St Nicolas House),400119
WARRINGTON BOROUGH COUNCIL,http://opendatacommunities.org/id/unitary-authority/warrington ,FWB,DSG Early Years PVI Settings,32417,Private & Voluntary 3 Year Olds,470100,10-Jun-16,1900201512,4986.00,Busy 0 To 5S (St Nicolas House),400119
WARRINGTON BOROUGH COUNCIL,http://opendatacommunities.org/id/unitary-authority/warrington ,FWB,DSG Early Years PVI Settings,32417,Private & Voluntary 4 Year Olds,470150,10-Jun-16,1900201619,2761.00,Busy 0 To 5S (St Nicolas House),400119
WARRINGTON BOROUGH COUNCIL,http://opendatacommunities.org/id/unitary-authority/warrington ,FWB,SEN Grants,32057,Payment of Grants,470050,22-Jun-16,1900202858,864.00,Busy 0 To 5S (St Nicolas House),400119
WARRINGTON BOROUGH COUNCIL,http://opendatacommunities.org/id/unitary-authority/warrington ,FWB,DSG Early Years PVI Settings,32417,Private & Voluntary 3 Year Olds,470100,10-Jun-16,1900201513,2948.00,Busy Nought To Fives,400120
WARRINGTON BOROUGH COUNCIL,http://opendatacommunities.org/id/unitary-authority/warrington ,FWB,DSG Early Years PVI Settings,32417,Private & Voluntary 4 Year Olds,470150,10-Jun-16,1900201620,5562.00,Busy Nought To Fives,400120
WARRINGTON BOROUGH COUNCIL,http://opendatacommunities.org/id/unitary-authority/warrington ,FWB,DSG 2 Year Old Fund,31601,Payment of Grants,470050,10-Jun-16,1900201713,5020.00,Butterflys Nursery,107718
WARRINGTON BOROUGH COUNCIL,http://opendatacommunities.org/id/unitary-authority/warrington ,FWB,DSG Early Years PVI Settings,32417,Private & Voluntary 4 Year Olds,470150,10-Jun-16,1900201621,750.00,Butterflys Nursery,107718
WARRINGTON BOROUGH COUNCIL,http://opendatacommunities.org/id/unitary-authority/warrington ,FWB,SEN Grants,32057,Payment of Grants,470050,29-Jun-16,1900203185,576.00,Butterflys Nursery,107718
WARRINGTON BOROUGH COUNCIL,http://opendatacommunities.org/id/unitary-authority/warrington ,RSC,Modern Apprentice Programme,21020,Consult.& Prof. Serv,440000,24-Jun-16,1900202951,22053.00,C W & C Council - Court Orders,410049
WARRINGTON BOROUGH COUNCIL,http://opendatacommunities.org/id/unitary-authority/warrington ,EE0,Atlantic Gateway,42150,Consult.& Prof. Serv,440000,09-Jun-16,1900201445,8250.00,Calderstones Consulting,113372
WARRINGTON BOROUGH COUNCIL,http://opendatacommunities.org/id/unitary-authority/warrington ,EE0,Atlantic Gateway,42150,Consult.& Prof. Serv,440000,09-Jun-16,1900201443,3850.00,Calderstones Consulting,113372
WARRINGTON BOROUGH COUNCIL,http://opendatacommunities.org/id/unitary-authority/warrington ,EE0,Atlantic Gateway,42150,Consult.& Prof. Serv,440000,09-Jun-16,1900201444,7630.00,Calderstones Consulting,113372
WARRINGTON BOROUGH COUNCIL,http://opendatacommunities.org/id/unitary-authority/warrington ,EE0,Atlantic Gateway,42150,Consult.& Prof. Serv,440000,16-Jun-16,1900202053,5300.00,Calderstones Consulting,113372
WARRINGTON BOROUGH COUNCIL,http://opendatacommunities.org/id/unitary-authority/warrington ,FWB,DSG 2 Year Old Fund,31601,Payment of Grants,470050,10-Jun-16,1900201714,1870.00,Callands Pre-School,112850
WARRINGTON BOROUGH COUNCIL,http://opendatacommunities.org/id/unitary-authority/warrington ,FWB,DSG Early Years PVI Settings,32417,Private & Voluntary 3 Year Olds,470100,10-Jun-16,1900201515,904.00,Callands Pre-School,112850
WARRINGTON BOROUGH COUNCIL,http://opendatacommunities.org/id/unitary-authority/warrington ,FWB,DSG Early Years PVI Settings,32417,Private & Voluntary 4 Year Olds,470150,10-Jun-16,1900201622,3508.00,Callands Pre-School,112850
WARRINGTON BOROUGH COUNCIL,http://opendatacommunities.org/id/unitary-authority/warrington ,FWB,Safeguarding Team 2,31002,Agency Supply,180000,02-Jun-16,1900201070,1092.00,Capita Resourcing LTD,113201
WARRINGTON BOROUGH COUNCIL,http://opendatacommunities.org/id/unitary-authority/warrington ,FWB,Permanence Team,31100,Agency Supply,180000,02-Jun-16,1900201071,1628.00,Capita Resourcing LTD,113201
WARRINGTON BOROUGH COUNCIL,http://opendatacommunities.org/id/unitary-authority/warrington ,FWB,Assessment & Intervention,31000,Agency Supply,180000,06-Jun-16,1900201192,1204.00,Capita Resourcing LTD,113201
WARRINGTON BOROUGH COUNCIL,http://opendatacommunities.org/id/unitary-authority/warrington ,FWB,Assessment & Intervention,31000,Agency Supply,180000,06-Jun-16,1900201202,941.00,Capita Resourcing LTD,113201
WARRINGTON BOROUGH COUNCIL,http://opendatacommunities.org/id/unitary-authority/warrington ,FWB,Permanence Team,31100,Agency Supply ,180000,02-Jun-16,1900201069,1628.00,Capita Resourcing LTD,113201
WARRINGTON BOROUGH COUNCIL,http://opendatacommunities.org/id/unitary-authority/warrington ,FWB,Assessment & Intervention,31000,Agency Supply ,180000,06-Jun-16,1900201196,1381.00,Capita Resourcing LTD,113201
WARRINGTON BOROUGH COUNCIL,http://opendatacommunities.org/id/unitary-authority/warrington ,FWB,Assessment & Intervention,31000,Agency Supply ,180000,06-Jun-16,1900201201,1161.00,Capita Resourcing LTD,113201
WARRINGTON BOROUGH COUNCIL,http://opendatacommunities.org/id/unitary-authority/warrington ,FWB,Safeguarding Team 2,31002,Agency Supply,180000,08-Jun-16,1900201355,886.00,Capita Resourcing LTD,113201
WARRINGTON BOROUGH COUNCIL,http://opendatacommunities.org/id/unitary-authority/warrington ,FWB,Safeguarding Team 3,31003,Agency Supply ,180000,09-Jun-16,1900201427,1165.00,Capita Resourcing LTD,113201
WARRINGTON BOROUGH COUNCIL,http://opendatacommunities.org/id/unitary-authority/warrington ,FWB,Assessment & Intervention,31000,Agency Supply,180000,22-Jun-16,1900202850,1161.00,Capita Resourcing LTD,113201
WARRINGTON BOROUGH COUNCIL,http://opendatacommunities.org/id/unitary-authority/warrington ,FWB,Assessment & Intervention,31000,Agency Supply,180000,22-Jun-16,1900202846,1381.00,Capita Resourcing LTD,113201
WARRINGTON BOROUGH COUNCIL,http://opendatacommunities.org/id/unitary-authority/warrington ,FWB,Assessment & Intervention,31000,Agency Supply ,180000,22-Jun-16,1900202841,810.00,Capita Resourcing LTD,113201
WARRINGTON BOROUGH COUNCIL,http://opendatacommunities.org/id/unitary-authority/warrington ,FWB,Assessment & Intervention,31000,Agency Supply,180000,22-Jun-16,1900202849,942.00,Capita Resourcing LTD,113201
WARRINGTON BOROUGH COUNCIL,http://opendatacommunities.org/id/unitary-authority/warrington ,FWB,Assessment & Intervention,31000,Agency Supply ,180000,22-Jun-16,1900202839,1173.00,Capita Resourcing LTD,113201
WARRINGTON BOROUGH COUNCIL,http://opendatacommunities.org/id/unitary-authority/warrington ,FWB,Assessment & Intervention,31000,Agency Supply,180000,22-Jun-16,1900202842,1080.00,Capita Resourcing LTD,113201
WARRINGTON BOROUGH COUNCIL,http://opendatacommunities.org/id/unitary-authority/warrington ,FWB,Assessment & Intervention,31000,Agency Supply,180000,22-Jun-16,1900202848,971.00,Capita Resourcing LTD,113201
WARRINGTON BOROUGH COUNCIL,http://opendatacommunities.org/id/unitary-authority/warrington ,FWB,Assessment & Intervention,31000,Agency Supply,180000,22-Jun-16,1900202855,941.00,Capita Resourcing LTD,113201
WARRINGTON BOROUGH COUNCIL,http://opendatacommunities.org/id/unitary-authority/warrington ,FWB,Safeguarding Team 2,31002,Agency Supply ,180000,20-Jun-16,1900202180,886.00,Capita Resourcing LTD,113201
WARRINGTON BOROUGH COUNCIL,http://opendatacommunities.org/id/unitary-authority/warrington ,FWB,Assessment & Intervention,31000,Agency Supply ,180000,22-Jun-16,1900202851,706.00,Capita Resourcing LTD,113201
WARRINGTON BOROUGH COUNCIL,http://opendatacommunities.org/id/unitary-authority/warrington ,FWB,Assessment & Intervention,31000,Agency Supply,180000,22-Jun-16,1900202840,1182.00,Capita Resourcing LTD,113201
WARRINGTON BOROUGH COUNCIL,http://opendatacommunities.org/id/unitary-authority/warrington ,FWB,Safeguarding Team 3,31003,Agency Supply ,180000,15-Jun-16,1900202008,503.00,Capita Resourcing LTD,113201
WARRINGTON BOROUGH COUNCIL,http://opendatacommunities.org/id/unitary-authority/warrington ,ENO,Housing Projects,82008,Disabled Persons Grant 1996,554000,17-Jun-16,1900202063,1509.00,Care Free Lifting Ltd,105331
WARRINGTON BOROUGH COUNCIL,http://opendatacommunities.org/id/unitary-authority/warrington ,FWB,Older Peoples North Team,54422,CP-Domicil.External,440950,02-Jun-16,1900201064,2203.00,Care Solution Trading as Together C,114526
WARRINGTON BOROUGH COUNCIL,http://opendatacommunities.org/id/unitary-authority/warrington ,FWB,Older Peoples North Team,54422,CP-Domicil.External,440950,03-Jun-16,1900201129,539.00,Care Solution Trading as Together C,114526
WARRINGTON BOROUGH COUNCIL,http://opendatacommunities.org/id/unitary-authority/warrington ,FWB,Older Peoples North Team,54422,CP-Domicil.External,440950,02-Jun-16,1900201065,539.00,Care Solution Trading as Together C,114526
WARRINGTON BOROUGH COUNCIL,http://opendatacommunities.org/id/unitary-authority/warrington ,FWB,Care Purchase West Team,54080,CP-Domicil.External,440950,14-Jun-16,1900201866,539.00,Care Solution Trading as Together C,114526
WARRINGTON BOROUGH COUNCIL,http://opendatacommunities.org/id/unitary-authority/warrington ,FWB,Care Purchase Budget,54490,CP ExternalOther Exp,440800,21-Jun-16,1900202202,13252.00,CareConcepts (Appleton) Ltd,105804
WARRINGTON BOROUGH COUNCIL,http://opendatacommunities.org/id/unitary-authority/warrington ,FWB,Care Purchase Budget,54490,CP ExternalOther Exp,440800,21-Jun-16,1900202212,80000.00,CareConcepts (Appleton) Ltd,105804
WARRINGTON BOROUGH COUNCIL,http://opendatacommunities.org/id/unitary-authority/warrington ,FWB,Care Purchase Budget,54490,CP ExternalOther Exp,440800,21-Jun-16,1900202203,17640.00,CareConcepts (Appleton) Ltd,105804
WARRINGTON BOROUGH COUNCIL,http://opendatacommunities.org/id/unitary-authority/warrington ,FWB,Older Peoples North Team,54422,CP-Domicil.External,440950,02-Jun-16,1900201043,20533.00,Carewatch North Cheshire,104573
WARRINGTON BOROUGH COUNCIL,http://opendatacommunities.org/id/unitary-authority/warrington ,FWB,Older Peoples South Team,54421,CP-Domicil.External,440950,02-Jun-16,1900201043,13604.00,Carewatch North Cheshire,104573
WARRINGTON BOROUGH COUNCIL,http://opendatacommunities.org/id/unitary-authority/warrington ,FWB,Care Purchase - PD,54440,CP-Domicil.External,440950,02-Jun-16,1900201043,9983.00,Carewatch North Cheshire,104573
WARRINGTON BOROUGH COUNCIL,http://opendatacommunities.org/id/unitary-authority/warrington ,FWB,Care Purchase - Learning Disability,54450,CP-Domicil.External,440950,02-Jun-16,1900201043,4944.00,Carewatch North Cheshire,104573
WARRINGTON BOROUGH COUNCIL,http://opendatacommunities.org/id/unitary-authority/warrington ,FWB,Care Purchase West Team,54080,CP-Domicil.External,440950,24-Jun-16,1900202959,1394.00,Caring Alternatives limited,110164
WARRINGTON BOROUGH COUNCIL,http://opendatacommunities.org/id/unitary-authority/warrington ,FWB,Child Disability,32212,CP-Domicil.External,440950,31-May-16,1900200967,1734.00,Castlerock Recruitment Group,105279
WARRINGTON BOROUGH COUNCIL,http://opendatacommunities.org/id/unitary-authority/warrington ,FWB,Service Manager - Intermediate Care,53200,Non BMP General Repairs,200050,06-Jun-16,1900201200,1000.00,Catalyst Choices Community Interest,114235
WARRINGTON BOROUGH COUNCIL,http://opendatacommunities.org/id/unitary-authority/warrington ,FWB,Care Purchase West Team,54080,CP-Domicil.External,440950,21-Jun-16,1900202292,5868.00,Catalyst Choices Community Interest,114235
WARRINGTON BOROUGH COUNCIL,http://opendatacommunities.org/id/unitary-authority/warrington ,FWB,Care Purchase East Team,54060,CP-Domicil.External,440950,21-Jun-16,1900202292,3125.00,Catalyst Choices Community Interest,114235
WARRINGTON BOROUGH COUNCIL,http://opendatacommunities.org/id/unitary-authority/warrington ,FWB,Care Purchase Budget,54490,CP - Cont Care - External,441350,21-Jun-16,1900202292,5451.00,Catalyst Choices Community Interest,114235
WARRINGTON BOROUGH COUNCIL,http://opendatacommunities.org/id/unitary-authority/warrington ,FWB,Care Purchase West Team,54080,CP-Domicil.External,440950,21-Jun-16,1900202293,5954.00,Catalyst Choices Community Interest,114235
WARRINGTON BOROUGH COUNCIL,http://opendatacommunities.org/id/unitary-authority/warrington ,FWB,Care Purchase East Team,54060,CP-Domicil.External,440950,21-Jun-16,1900202293,3125.00,Catalyst Choices Community Interest,114235
WARRINGTON BOROUGH COUNCIL,http://opendatacommunities.org/id/unitary-authority/warrington ,FWB,Care Purchase Budget,54490,CP - Cont Care - External,441350,21-Jun-16,1900202293,5451.00,Catalyst Choices Community Interest,114235
WARRINGTON BOROUGH COUNCIL,http://opendatacommunities.org/id/unitary-authority/warrington ,FWB,Catalyst Choices,54495,Gen. Personal Needs,490850,21-Jun-16,1900202305,3000.00,Catalyst Choices Community Interest,114235
WARRINGTON BOROUGH COUNCIL,http://opendatacommunities.org/id/unitary-authority/warrington ,FWB,Catalyst Choices,54495,Gen. Personal Needs,490850,21-Jun-16,1900202324,3000.00,Catalyst Choices Community Interest,114235
WARRINGTON BOROUGH COUNCIL,http://opendatacommunities.org/id/unitary-authority/warrington ,FWB,Catalyst Choices,54495,Gen. Personal Needs,490850,21-Jun-16,1900202304,3000.00,Catalyst Choices Community Interest,114235
WARRINGTON BOROUGH COUNCIL,http://opendatacommunities.org/id/unitary-authority/warrington ,FWB,Intermediate Care at Home,54520,Non BMP General Repairs,200050,07-Jun-16,1900201332,1000.00,Catalyst Choices Community Interest,114235
WARRINGTON BOROUGH COUNCIL,http://opendatacommunities.org/id/unitary-authority/warrington ,FWB,Care Purchase West Team,54080,CP-Domicil.External,440950,21-Jun-16,1900202290,5868.00,Catalyst Choices Community Interest,114235
WARRINGTON BOROUGH COUNCIL,http://opendatacommunities.org/id/unitary-authority/warrington ,FWB,Care Purchase East Team,54060,CP-Domicil.External,440950,21-Jun-16,1900202290,3125.00,Catalyst Choices Community Interest,114235
WARRINGTON BOROUGH COUNCIL,http://opendatacommunities.org/id/unitary-authority/warrington ,FWB,Care Purchase Budget,54490,CP - Cont Care - External,441350,21-Jun-16,1900202290,5451.00,Catalyst Choices Community Interest,114235
WARRINGTON BOROUGH COUNCIL,http://opendatacommunities.org/id/unitary-authority/warrington ,FWB,Care Purchase East Team,54060,CP-Domicil.External,440950,21-Jun-16,1900202280,6076.00,Catalyst Choices Community Interest,114235
WARRINGTON BOROUGH COUNCIL,http://opendatacommunities.org/id/unitary-authority/warrington ,FWB,Care Purchase East Team,54060,CP-Domicil.External,440950,21-Jun-16,1900202280,3125.00,Catalyst Choices Community Interest,114235
WARRINGTON BOROUGH COUNCIL,http://opendatacommunities.org/id/unitary-authority/warrington ,FWB,Care Purchase East Team,54060,CP - Cont Care - External,441350,21-Jun-16,1900202280,5451.00,Catalyst Choices Community Interest,114235
WARRINGTON BOROUGH COUNCIL,http://opendatacommunities.org/id/unitary-authority/warrington ,FWB,Care Purchase West Team,54080,CP-Domicil.External,440950,21-Jun-16,1900202281,6041.00,Catalyst Choices Community Interest,114235
WARRINGTON BOROUGH COUNCIL,http://opendatacommunities.org/id/unitary-authority/warrington ,FWB,Care Purchase East Team,54060,CP-Domicil.External,440950,21-Jun-16,1900202281,3125.00,Catalyst Choices Community Interest,114235
WARRINGTON BOROUGH COUNCIL,http://opendatacommunities.org/id/unitary-authority/warrington ,FWB,Care Purchase Budget,54490,CP - Cont Care - External,441350,21-Jun-16,1900202281,5451.00,Catalyst Choices Community Interest,114235
WARRINGTON BOROUGH COUNCIL,http://opendatacommunities.org/id/unitary-authority/warrington ,FWB,Care Purchase West Team,54080,CP-Domicil.External,440950,21-Jun-16,1900202306,5868.00,Catalyst Choices Community Interest,114235
WARRINGTON BOROUGH COUNCIL,http://opendatacommunities.org/id/unitary-authority/warrington ,FWB,Care Purchase East Team,54060,CP-Domicil.External,440950,21-Jun-16,1900202306,3125.00,Catalyst Choices Community Interest,114235
WARRINGTON BOROUGH COUNCIL,http://opendatacommunities.org/id/unitary-authority/warrington ,FWB,Care Purchase Budget,54490,CP - Cont Care - External,441350,21-Jun-16,1900202306,5451.00,Catalyst Choices Community Interest,114235
WARRINGTON BOROUGH COUNCIL,http://opendatacommunities.org/id/unitary-authority/warrington ,FWB,Catalyst Choices,54495,Equipment Purchase & Contract,400000,21-Jun-16,1900202298,5349.00,Catalyst Choices Community Interest,114235
WARRINGTON BOROUGH COUNCIL,http://opendatacommunities.org/id/unitary-authority/warrington ,FWB,Catalyst Choices,54495,Equipment Purchase & Contract,400000,21-Jun-16,1900202300,5349.00,Catalyst Choices Community Interest,114235
WARRINGTON BOROUGH COUNCIL,http://opendatacommunities.org/id/unitary-authority/warrington ,FWB,Catalyst Choices,54495,Equipment Purchase & Contract,400000,21-Jun-16,1900202301,4623.00,Catalyst Choices Community Interest,114235
WARRINGTON BOROUGH COUNCIL,http://opendatacommunities.org/id/unitary-authority/warrington ,FWB,Catalyst Choices,54495,Equipment Purchase & Contract,400000,21-Jun-16,1900202284,5812.00,Catalyst Choices Community Interest,114235
WARRINGTON BOROUGH COUNCIL,http://opendatacommunities.org/id/unitary-authority/warrington ,FWB,Catalyst Choices,54495,Equipment Purchase & Contract,400000,21-Jun-16,1900202285,5415.00,Catalyst Choices Community Interest,114235
WARRINGTON BOROUGH COUNCIL,http://opendatacommunities.org/id/unitary-authority/warrington ,FWB,Catalyst Choices,54495,Equipment Purchase & Contract,400000,21-Jun-16,1900202286,5019.00,Catalyst Choices Community Interest,114235
WARRINGTON BOROUGH COUNCIL,http://opendatacommunities.org/id/unitary-authority/warrington ,FWB,Catalyst Choices,54495,Equipment Purchase & Contract,400000,21-Jun-16,1900202287,5349.00,Catalyst Choices Community Interest,114235
WARRINGTON BOROUGH COUNCIL,http://opendatacommunities.org/id/unitary-authority/warrington ,FWB,Catalyst Choices,54495,Equipment Purchase & Contract,400000,21-Jun-16,1900202288,5646.00,Catalyst Choices Community Interest,114235
WARRINGTON BOROUGH COUNCIL,http://opendatacommunities.org/id/unitary-authority/warrington ,FWB,Catalyst Choices,54495,Equipment Purchase & Contract,400000,21-Jun-16,1900202294,4557.00,Catalyst Choices Community Interest,114235
WARRINGTON BOROUGH COUNCIL,http://opendatacommunities.org/id/unitary-authority/warrington ,FWB,Catalyst Choices,54495,Equipment Purchase & Contract,400000,21-Jun-16,1900202295,3632.00,Catalyst Choices Community Interest,114235
WARRINGTON BOROUGH COUNCIL,http://opendatacommunities.org/id/unitary-authority/warrington ,FWB,Catalyst Choices,54495,Equipment Purchase & Contract,400000,21-Jun-16,1900202296,3434.00,Catalyst Choices Community Interest,114235
WARRINGTON BOROUGH COUNCIL,http://opendatacommunities.org/id/unitary-authority/warrington ,FWB,Catalyst Choices,54495,Equipment Purchase & Contract,400000,21-Jun-16,1900202289,4161.00,Catalyst Choices Community Interest,114235
WARRINGTON BOROUGH COUNCIL,http://opendatacommunities.org/id/unitary-authority/warrington ,FWB,Catalyst Choices,54495,Equipment Purchase & Contract,400000,21-Jun-16,1900202283,5878.00,Catalyst Choices Community Interest,114235
WARRINGTON BOROUGH COUNCIL,http://opendatacommunities.org/id/unitary-authority/warrington ,FWB,Catalyst Choices,54495,Equipment Purchase & Contract,400000,21-Jun-16,1900202297,4425.00,Catalyst Choices Community Interest,114235
WARRINGTON BOROUGH COUNCIL,http://opendatacommunities.org/id/unitary-authority/warrington ,FWB,Catalyst Choices,54495,Rent Of Premises,220000,10-Jun-16,1900201489,714.00,CBRE Ltd (Glasgow),115302
WARRINGTON BOROUGH COUNCIL,http://opendatacommunities.org/id/unitary-authority/warrington ,FWB,Contracts - SM Commissioning Team 2,55920,Public Health Contract Payments,540000,21-Jun-16,1900202213,717.00,Central Manchester University Hospi,440097
WARRINGTON BOROUGH COUNCIL,http://opendatacommunities.org/id/unitary-authority/warrington ,EE0,Finance Office Services,42110,Photocopier,430000,09-Jun-16,1900201429,1860.00,CF Corporate Finance Ltd,113081
WARRINGTON BOROUGH COUNCIL,http://opendatacommunities.org/id/unitary-authority/warrington ,EE0,Finance Office Services,42110,Photocopier,430000,27-Jun-16,1900203053,1860.00,CF Corporate Finance Ltd,113081
WARRINGTON BOROUGH COUNCIL,http://opendatacommunities.org/id/unitary-authority/warrington ,FWB,Care Purchase East Team,54060,CP-Nursing Care-External,441200,14-Jun-16,1900201865,2576.00,Chadderton Total-Care Unit Ltd,100425
WARRINGTON BOROUGH COUNCIL,http://opendatacommunities.org/id/unitary-authority/warrington ,FWB,DSG 2 Year Old Fund,31601,Payment of Grants,470050,10-Jun-16,1900201715,3274.00,Chapel Road Day Nursery,109632
WARRINGTON BOROUGH COUNCIL,http://opendatacommunities.org/id/unitary-authority/warrington ,FWB,DSG Early Years PVI Settings,32417,Private & Voluntary 3 Year Olds,470100,10-Jun-16,1900201516,2569.00,Chapel Road Day Nursery,109632
WARRINGTON BOROUGH COUNCIL,http://opendatacommunities.org/id/unitary-authority/warrington ,FWB,DSG Early Years PVI Settings,32417,Private & Voluntary 4 Year Olds,470150,10-Jun-16,1900201624,1268.00,Chapel Road Day Nursery,109632
WARRINGTON BOROUGH COUNCIL,http://opendatacommunities.org/id/unitary-authority/warrington ,FWB,DSG Early Years PVI Settings,32417,Private & Voluntary 3 Year Olds,470100,10-Jun-16,1900201517,4260.00,Chapelford Village Nursery & Link C,400101
WARRINGTON BOROUGH COUNCIL,http://opendatacommunities.org/id/unitary-authority/warrington ,FWB,DSG Early Years PVI Settings,32417,Private & Voluntary 4 Year Olds,470150,10-Jun-16,1900201625,4127.00,Chapelford Village Nursery & Link C,400101
WARRINGTON BOROUGH COUNCIL,http://opendatacommunities.org/id/unitary-authority/warrington ,FWB,Older Peoples North Team,54422,CP-Domicil.External,440950,03-Jun-16,1900201101,6390.00,Cherish UK Limited,113736
WARRINGTON BOROUGH COUNCIL,http://opendatacommunities.org/id/unitary-authority/warrington ,FWB,Older Peoples South Team,54421,CP-Domicil.External,440950,03-Jun-16,1900201101,2268.00,Cherish UK Limited,113736
WARRINGTON BOROUGH COUNCIL,http://opendatacommunities.org/id/unitary-authority/warrington ,FWB,Care Purchase - PD,54440,CP-Domicil.External,440950,03-Jun-16,1900201101,744.00,Cherish UK Limited,113736
WARRINGTON BOROUGH COUNCIL,http://opendatacommunities.org/id/unitary-authority/warrington ,FWB,DSG 2 Year Old Fund,31601,Payment of Grants,470050,10-Jun-16,1900201718,3007.00,Cheshire Day Nursery / The Kinderga,400013
WARRINGTON BOROUGH COUNCIL,http://opendatacommunities.org/id/unitary-authority/warrington ,FWB,DSG Early Years PVI Settings,32417,Private & Voluntary 3 Year Olds,470100,10-Jun-16,1900201551,3090.00,Cheshire Day Nursery / The Kinderga,400013
WARRINGTON BOROUGH COUNCIL,http://opendatacommunities.org/id/unitary-authority/warrington ,FWB,DSG Early Years PVI Settings,32417,Private & Voluntary 3 Year Olds,470100,10-Jun-16,1900201519,808.00,Cheshire Day Nursery / The Kinderga,400013
WARRINGTON BOROUGH COUNCIL,http://opendatacommunities.org/id/unitary-authority/warrington ,FWB,DSG Early Years PVI Settings,32417,Private & Voluntary 4 Year Olds,470150,10-Jun-16,1900201651,3149.00,Cheshire Day Nursery / The Kinderga,400013
WARRINGTON BOROUGH COUNCIL,http://opendatacommunities.org/id/unitary-authority/warrington ,FWB,SEN Grants,32057,Payment of Grants,470050,22-Jun-16,1900202836,1322.00,Cheshire Day Nursery / The Kinderga,400013
WARRINGTON BOROUGH COUNCIL,http://opendatacommunities.org/id/unitary-authority/warrington ,FWB,DSG 2 Year Old Fund,31601,Payment of Grants,470050,10-Jun-16,1900201719,7202.00,Cheshire Day Nursery Guardian St,106265
WARRINGTON BOROUGH COUNCIL,http://opendatacommunities.org/id/unitary-authority/warrington ,FWB,DSG Early Years PVI Settings,32417,Private & Voluntary 3 Year Olds,470100,10-Jun-16,1900201520,4878.00,Cheshire Day Nursery Guardian St,106265
WARRINGTON BOROUGH COUNCIL,http://opendatacommunities.org/id/unitary-authority/warrington ,FWB,DSG Early Years PVI Settings,32417,Private & Voluntary 4 Year Olds,470150,10-Jun-16,1900201628,7420.00,Cheshire Day Nursery Guardian St,106265
WARRINGTON BOROUGH COUNCIL,http://opendatacommunities.org/id/unitary-authority/warrington ,FWB,SEN Grants,32057,Payment of Grants,470050,22-Jun-16,1900202837,1296.00,Cheshire Day Nursery Guardian St,106265
WARRINGTON BOROUGH COUNCIL,http://opendatacommunities.org/id/unitary-authority/warrington ,RSC,Coroners Service,11100,Court Costs,460100,23-Jun-16,1900202903,2540.00,Cheshire East Council,410116
WARRINGTON BOROUGH COUNCIL,http://opendatacommunities.org/id/unitary-authority/warrington ,COR,Corporate Adjustments,60120,NNDR,230000,14-Jun-16,1900201919,2500.00,Cheshire Pianos,100749
WARRINGTON BOROUGH COUNCIL,http://opendatacommunities.org/id/unitary-authority/warrington ,EE0,Environment Services Strategic Director,42130,Agency Supply,180000,27-Jun-16,1900203052,4800.00,Cheshire West And Chester,103357
WARRINGTON BOROUGH COUNCIL,http://opendatacommunities.org/id/unitary-authority/warrington ,COR,Corporate Adjustments,60120,Actuarial Costs,190500,10-Jun-16,1900201498,4720000.00,Cheshire West And Chester Pension F,440027
WARRINGTON BOROUGH COUNCIL,http://opendatacommunities.org/id/unitary-authority/warrington ,COR,Corporate Adjustments,60120,Actuarial Costs,190500,10-Jun-16,1900201499,4720000.00,Cheshire West And Chester Pension F,440027
WARRINGTON BOROUGH COUNCIL,http://opendatacommunities.org/id/unitary-authority/warrington ,EE0,Bank House,43116,Security Systems,250000,31-May-16,1900200955,580.00,Chubb Fire and Security Ltd,105335
WARRINGTON BOROUGH COUNCIL,http://opendatacommunities.org/id/unitary-authority/warrington ,FWB,Care Purchase South Team,54070,CP-Nursing Care-External,441200,22-Jun-16,1900202889,10315.00,Church Walk Health Care Ltd,112505
WARRINGTON BOROUGH COUNCIL,http://opendatacommunities.org/id/unitary-authority/warrington ,FWB,Care Purchase Central Team,54050,CP-LongStayExternal,441150,22-Jun-16,1900202888,6359.00,Church Walk Health Care Ltd,112505
WARRINGTON BOROUGH COUNCIL,http://opendatacommunities.org/id/unitary-authority/warrington ,FWB,Care Purchase East Team,54060,CP-LongStayExternal,441150,21-Jun-16,1900202307,6920.00,Clervaux Trust Ltd,110288
WARRINGTON BOROUGH COUNCIL,http://opendatacommunities.org/id/unitary-authority/warrington ,FWB,Older Peoples South Team,54421,CP-LongStayExternal,441150,01-Jun-16,1900201035,1796.00,Cls Care Services Ltd,104615
WARRINGTON BOROUGH COUNCIL,http://opendatacommunities.org/id/unitary-authority/warrington ,FWB,Care Purchase Budget,54490,CP ExternalOther Exp,440800,24-Jun-16,1900202960,6629.00,Cls Care Services Ltd,104615
WARRINGTON BOROUGH COUNCIL,http://opendatacommunities.org/id/unitary-authority/warrington ,FWB,Care Purchase Budget,54490,CP ExternalOther Exp,440800,21-Jun-16,1900202215,55000.00,Cls Care Services Ltd,104615
WARRINGTON BOROUGH COUNCIL,http://opendatacommunities.org/id/unitary-authority/warrington ,FWB,Care Purchase East Team,54060,CP-Nursing Care-External,441200,20-Jun-16,1900202121,27620.00,Community Care Matters Limited,102791
WARRINGTON BOROUGH COUNCIL,http://opendatacommunities.org/id/unitary-authority/warrington ,FWB,Care Purchase East Team,54060,CP-LongStayExternal,441150,20-Jun-16,1900202120,8464.00,Community Care Matters Limited,102791
WARRINGTON BOROUGH COUNCIL,http://opendatacommunities.org/id/unitary-authority/warrington ,FWB,Care Purchase East Team,54060,CP-Domicil.External,440950,24-Jun-16,1900202967,11932.00,Community Integrated Care (Cic),100171
WARRINGTON BOROUGH COUNCIL,http://opendatacommunities.org/id/unitary-authority/warrington ,FWB,Care Purchase Central Team,54050,CP-Domicil.External,440950,24-Jun-16,1900202963,11932.00,Community Integrated Care (Cic),100171
WARRINGTON BOROUGH COUNCIL,http://opendatacommunities.org/id/unitary-authority/warrington ,FWB,Care Purchase Central Team,54050,CP-Domicil.External,440950,09-Jun-16,1900201422,5114.00,Community Integrated Care (Cic),100171
WARRINGTON BOROUGH COUNCIL,http://opendatacommunities.org/id/unitary-authority/warrington ,FWB,Older Peoples North Team,54422,CP-Domicil.External,440950,14-Jun-16,1900201897,6833.00,Community Integrated Care (Cic),100171
WARRINGTON BOROUGH COUNCIL,http://opendatacommunities.org/id/unitary-authority/warrington ,FWB,Care Purchase AMH,54135,CP-Domicil.External,440950,14-Jun-16,1900201897,1321.00,Community Integrated Care (Cic),100171
WARRINGTON BOROUGH COUNCIL,http://opendatacommunities.org/id/unitary-authority/warrington ,FWB,Care Purchase - PD,54440,CP-Domicil.External,440950,14-Jun-16,1900201897,1171.00,Community Integrated Care (Cic),100171
WARRINGTON BOROUGH COUNCIL,http://opendatacommunities.org/id/unitary-authority/warrington ,FWB,Care Purchase AMH,54135,CP-Domicil.External,440950,14-Jun-16,1900201898,1062.00,Community Integrated Care (Cic),100171
WARRINGTON BOROUGH COUNCIL,http://opendatacommunities.org/id/unitary-authority/warrington ,FWB,Care Purchase West Team,54080,CP-Nursing Care-External,441200,10-Jun-16,1900201474,14375.00,Community Integrated Care (Cic),100171
WARRINGTON BOROUGH COUNCIL,http://opendatacommunities.org/id/unitary-authority/warrington ,FWB,Care Purchase AMH,54135,CP-Domicil.External,440950,03-Jun-16,1900201157,2307.00,Community Integrated Care (Cic),100171
WARRINGTON BOROUGH COUNCIL,http://opendatacommunities.org/id/unitary-authority/warrington ,FWB,Care Purchase AMH,54135,CP-Domicil.External,440950,03-Jun-16,1900201155,2307.00,Community Integrated Care (Cic),100171
WARRINGTON BOROUGH COUNCIL,http://opendatacommunities.org/id/unitary-authority/warrington ,FWB,Care Purchase AMH,54135,CP-Domicil.External,440950,03-Jun-16,1900201136,2357.00,Community Integrated Care (Cic),100171
WARRINGTON BOROUGH COUNCIL,http://opendatacommunities.org/id/unitary-authority/warrington ,FWB,Care Purchase AMH,54135,CP-Domicil.External,440950,03-Jun-16,1900201158,2159.00,Community Integrated Care (Cic),100171
WARRINGTON BOROUGH COUNCIL,http://opendatacommunities.org/id/unitary-authority/warrington ,FWB,Care Purchase AMH,54135,CP-Domicil.External,440950,03-Jun-16,1900201159,1867.00,Community Integrated Care (Cic),100171
WARRINGTON BOROUGH COUNCIL,http://opendatacommunities.org/id/unitary-authority/warrington ,FWB,Care Purchase AMH,54135,CP-Domicil.External,440950,03-Jun-16,1900201087,1669.00,Community Integrated Care (Cic),100171
WARRINGTON BOROUGH COUNCIL,http://opendatacommunities.org/id/unitary-authority/warrington ,FWB,Care Purchase AMH,54135,CP-Domicil.External,440950,03-Jun-16,1900201152,1817.00,Community Integrated Care (Cic),100171
WARRINGTON BOROUGH COUNCIL,http://opendatacommunities.org/id/unitary-authority/warrington ,FWB,Care Purchase AMH,54135,CP-Domicil.External,440950,03-Jun-16,1900201140,1966.00,Community Integrated Care (Cic),100171
WARRINGTON BOROUGH COUNCIL,http://opendatacommunities.org/id/unitary-authority/warrington ,FWB,Care Purchase AMH,54135,CP-Domicil.External,440950,03-Jun-16,1900201149,2307.00,Community Integrated Care (Cic),100171
WARRINGTON BOROUGH COUNCIL,http://opendatacommunities.org/id/unitary-authority/warrington ,FWB,Care Purchase AMH,54135,CP-Domicil.External,440950,03-Jun-16,1900201160,2307.00,Community Integrated Care (Cic),100171
WARRINGTON BOROUGH COUNCIL,http://opendatacommunities.org/id/unitary-authority/warrington ,FWB,Care Purchase AMH,54135,CP-Domicil.External,440950,03-Jun-16,1900201139,2357.00,Community Integrated Care (Cic),100171
WARRINGTON BOROUGH COUNCIL,http://opendatacommunities.org/id/unitary-authority/warrington ,FWB,Care Purchase AMH,54135,CP-Domicil.External,440950,03-Jun-16,1900201141,1867.00,Community Integrated Care (Cic),100171
WARRINGTON BOROUGH COUNCIL,http://opendatacommunities.org/id/unitary-authority/warrington ,FWB,Care Purchase AMH,54135,CP-Domicil.External,440950,03-Jun-16,1900201144,1669.00,Community Integrated Care (Cic),100171
WARRINGTON BOROUGH COUNCIL,http://opendatacommunities.org/id/unitary-authority/warrington ,FWB,Care Purchase AMH,54135,CP-Domicil.External,440950,03-Jun-16,1900201133,2159.00,Community Integrated Care (Cic),100171
WARRINGTON BOROUGH COUNCIL,http://opendatacommunities.org/id/unitary-authority/warrington ,FWB,Care Purchase AMH,54135,CP-Domicil.External,440950,03-Jun-16,1900201131,1817.00,Community Integrated Care (Cic),100171
WARRINGTON BOROUGH COUNCIL,http://opendatacommunities.org/id/unitary-authority/warrington ,FWB,Care Purchase AMH,54135,CP-Domicil.External,440950,03-Jun-16,1900201124,1966.00,Community Integrated Care (Cic),100171
WARRINGTON BOROUGH COUNCIL,http://opendatacommunities.org/id/unitary-authority/warrington ,FWB,Safeguarding Team 3,31003,Events Costs,490000,02-Jun-16,1900201039,5840.00,Compass Career Opportunities Ltd,115389
WARRINGTON BOROUGH COUNCIL,http://opendatacommunities.org/id/unitary-authority/warrington ,FWB,Safeguarding Team 3,31003,Consult.& Prof. Serv,440000,08-Jun-16,1900201350,9172.00,Compass Career Opportunities Ltd,115389
WARRINGTON BOROUGH COUNCIL,http://opendatacommunities.org/id/unitary-authority/warrington ,FWB,Care Purchase AMH,54135,CP-Domicil.External,440950,03-Jun-16,1900201077,11932.00,Continuum Support Ltd,112065
WARRINGTON BOROUGH COUNCIL,http://opendatacommunities.org/id/unitary-authority/warrington ,FWB,Care Purchase AMH,54135,CP-Domicil.External,440950,03-Jun-16,1900201079,11932.00,Continuum Support Ltd,112065
WARRINGTON BOROUGH COUNCIL,http://opendatacommunities.org/id/unitary-authority/warrington ,FWB,Care Purchase AMH,54135,CP-Domicil.External,440950,03-Jun-16,1900201082,9468.00,Continuum Support Ltd,112065
WARRINGTON BOROUGH COUNCIL,http://opendatacommunities.org/id/unitary-authority/warrington ,FWB,Care Purchase AMH,54135,CP-Domicil.External,440950,03-Jun-16,1900201089,9608.00,Continuum Support Ltd,112065
WARRINGTON BOROUGH COUNCIL,http://opendatacommunities.org/id/unitary-authority/warrington ,FWB,Care Purchase AMH,54135,CP-Domicil.External,440950,03-Jun-16,1900201092,11932.00,Continuum Support Ltd,112065
WARRINGTON BOROUGH COUNCIL,http://opendatacommunities.org/id/unitary-authority/warrington ,FWB,Care Purchase AMH,54135,CP-Domicil.External,440950,03-Jun-16,1900201098,11932.00,Continuum Support Ltd,112065
WARRINGTON BOROUGH COUNCIL,http://opendatacommunities.org/id/unitary-authority/warrington ,FWB,Care Purchase Central Team,54050,CP-Domicil.External,440950,24-Jun-16,1900202966,9468.00,Continuum Support Ltd,112065
WARRINGTON BOROUGH COUNCIL,http://opendatacommunities.org/id/unitary-authority/warrington ,FWB,Care Purchase Central Team,54050,CP-Domicil.External,440950,24-Jun-16,1900202968,9608.00,Continuum Support Ltd,112065
WARRINGTON BOROUGH COUNCIL,http://opendatacommunities.org/id/unitary-authority/warrington ,FWB,Care Purchase West Team,54080,CP-Domicil.External,440950,24-Jun-16,1900202964,11932.00,Continuum Support Ltd,112065
WARRINGTON BOROUGH COUNCIL,http://opendatacommunities.org/id/unitary-authority/warrington ,FWB,Care Purchase Central Team,54050,CP-Domicil.External,440950,24-Jun-16,1900202965,11932.00,Continuum Support Ltd,112065
WARRINGTON BOROUGH COUNCIL,http://opendatacommunities.org/id/unitary-authority/warrington ,FWB,Care Purchase Central Team,54050,CP-Domicil.External,440950,24-Jun-16,1900202970,5114.00,Continuum Support Ltd,112065
WARRINGTON BOROUGH COUNCIL,http://opendatacommunities.org/id/unitary-authority/warrington ,FWB,Care Purchase AMH,54135,CP-Domicil.External,440950,07-Jun-16,1900201260,3842.00,Continuum Support Ltd,112065
WARRINGTON BOROUGH COUNCIL,http://opendatacommunities.org/id/unitary-authority/warrington ,FWB,Care Purchase AMH,54135,CP-Domicil.External,440950,07-Jun-16,1900201255,1920.00,Continuum Support Ltd,112065
WARRINGTON BOROUGH COUNCIL,http://opendatacommunities.org/id/unitary-authority/warrington ,FWB,Care Purchase AMH,54135,CP-Domicil.External,440950,07-Jun-16,1900201261,1920.00,Continuum Support Ltd,112065
WARRINGTON BOROUGH COUNCIL,http://opendatacommunities.org/id/unitary-authority/warrington ,RSC,Coroners Service,11100,Removal Bodies & Exc,440350,23-Jun-16,1900202905,680.00,Co-Operative Funeralcare,104637
WARRINGTON BOROUGH COUNCIL,http://opendatacommunities.org/id/unitary-authority/warrington ,RSC,Coroners Service,11100,Removal Bodies & Exc,440350,23-Jun-16,1900202904,540.00,Co-Operative Funeralcare,104637
WARRINGTON BOROUGH COUNCIL,http://opendatacommunities.org/id/unitary-authority/warrington ,RSC,Coroners Service,11100,Removal Bodies & Exc,440350,20-Jun-16,1900202168,1021.00,Co-Operative Funeralcare,104637
WARRINGTON BOROUGH COUNCIL,http://opendatacommunities.org/id/unitary-authority/warrington ,RSC,Coroners Service,11100,Removal Bodies & Exc,440350,15-Jun-16,1900201974,1800.00,Co-Operative Funeralcare,104637
WARRINGTON BOROUGH COUNCIL,http://opendatacommunities.org/id/unitary-authority/warrington ,RSC,Coroners Service,11100,Removal Bodies & Exc,440350,20-Jun-16,1900202169,1400.00,Co-Operative Funeralcare,104637
WARRINGTON BOROUGH COUNCIL,http://opendatacommunities.org/id/unitary-authority/warrington ,FWB,Care Purchase South Team,54070,CP-LongStayExternal,441150,14-Jun-16,1900201896,1840.00,Copperdown Rest Home,113179
WARRINGTON BOROUGH COUNCIL,http://opendatacommunities.org/id/unitary-authority/warrington ,EE0,Estates & Valuation,43520,Consult.& Prof. Serv,440000,31-May-16,1900200956,9600.00,CoStar Limited,108100
WARRINGTON BOROUGH COUNCIL,http://opendatacommunities.org/id/unitary-authority/warrington ,FWB,Care Purchase East Team,54060,CP-LongStayExternal,441150,22-Jun-16,1900202886,22089.00,Craegmoor Oxen Barn Priory,112933
WARRINGTON BOROUGH COUNCIL,http://opendatacommunities.org/id/unitary-authority/warrington ,FWB,Care Purchase Budget,54490,CP - Cont Care - External,441350,22-Jun-16,1900202887,11466.00,Craegmoor Oxen Barn Priory,112933
WARRINGTON BOROUGH COUNCIL,http://opendatacommunities.org/id/unitary-authority/warrington ,FWB,DSG Early Years PVI Settings,32417,Private & Voluntary 3 Year Olds,470100,10-Jun-16,1900201525,2150.00,Croft Early Years Centre,105880
WARRINGTON BOROUGH COUNCIL,http://opendatacommunities.org/id/unitary-authority/warrington ,FWB,DSG Early Years PVI Settings,32417,Private & Voluntary 4 Year Olds,470150,10-Jun-16,1900201632,673.00,Croft Early Years Centre,105880
WARRINGTON BOROUGH COUNCIL,http://opendatacommunities.org/id/unitary-authority/warrington ,FWB,DSG 2 Year Old Fund,31601,Payment of Grants,470050,10-Jun-16,1900201723,1091.00,Croft Village Pre School,109167
WARRINGTON BOROUGH COUNCIL,http://opendatacommunities.org/id/unitary-authority/warrington ,FWB,DSG Early Years PVI Settings,32417,Private & Voluntary 3 Year Olds,470100,10-Jun-16,1900201526,1578.00,Croft Village Pre School,109167
WARRINGTON BOROUGH COUNCIL,http://opendatacommunities.org/id/unitary-authority/warrington ,FWB,DSG Early Years PVI Settings,32417,Private & Voluntary 4 Year Olds,470150,10-Jun-16,1900201633,1949.00,Croft Village Pre School,109167
WARRINGTON BOROUGH COUNCIL,http://opendatacommunities.org/id/unitary-authority/warrington ,FWB,Care Purchase East Team,54060,CP-LongStayExternal,441150,22-Jun-16,1900202885,3729.00,Croftwood Care Limited,103738
WARRINGTON BOROUGH COUNCIL,http://opendatacommunities.org/id/unitary-authority/warrington ,FWB,DSG 2 Year Old Fund,31601,Payment of Grants,470050,10-Jun-16,1900201724,2350.00,Cromdale Way Preschool,400128
WARRINGTON BOROUGH COUNCIL,http://opendatacommunities.org/id/unitary-authority/warrington ,FWB,DSG Early Years PVI Settings,32417,Private & Voluntary 3 Year Olds,470100,10-Jun-16,1900201527,2566.00,Cromdale Way Preschool,400128
WARRINGTON BOROUGH COUNCIL,http://opendatacommunities.org/id/unitary-authority/warrington ,FWB,DSG Early Years PVI Settings,32417,Private & Voluntary 4 Year Olds,470150,10-Jun-16,1900201634,1005.00,Cromdale Way Preschool,400128
WARRINGTON BOROUGH COUNCIL,http://opendatacommunities.org/id/unitary-authority/warrington ,FWB,DSG 2 Year Old Fund,31601,Payment of Grants,470050,10-Jun-16,1900201725,3492.00,Culcheth Day Nursery Ltd,400130
WARRINGTON BOROUGH COUNCIL,http://opendatacommunities.org/id/unitary-authority/warrington ,FWB,DSG Early Years PVI Settings,32417,Private & Voluntary 3 Year Olds,470100,10-Jun-16,1900201528,10384.00,Culcheth Day Nursery Ltd,400130
WARRINGTON BOROUGH COUNCIL,http://opendatacommunities.org/id/unitary-authority/warrington ,FWB,DSG Early Years PVI Settings,32417,Private & Voluntary 4 Year Olds,470150,10-Jun-16,1900201635,5115.00,Culcheth Day Nursery Ltd,400130
WARRINGTON BOROUGH COUNCIL,http://opendatacommunities.org/id/unitary-authority/warrington ,FWB,DSG 2 Year Old Fund,31601,Payment of Grants,470050,10-Jun-16,1900201726,2197.00,Cupcakes Pre School Limited,400241
WARRINGTON BOROUGH COUNCIL,http://opendatacommunities.org/id/unitary-authority/warrington ,FWB,DSG Early Years PVI Settings,32417,Private & Voluntary 3 Year Olds,470100,10-Jun-16,1900201529,3419.00,Cupcakes Pre School Limited,400241
WARRINGTON BOROUGH COUNCIL,http://opendatacommunities.org/id/unitary-authority/warrington ,FWB,DSG Early Years PVI Settings,32417,Private & Voluntary 4 Year Olds,470150,10-Jun-16,1900201636,839.00,Cupcakes Pre School Limited,400241
WARRINGTON BOROUGH COUNCIL,http://opendatacommunities.org/id/unitary-authority/warrington ,EE0,Markets,43711,Resaleables,400600,01-Jun-16,1900200990,559.00,David Ogden Holidays,100064
WARRINGTON BOROUGH COUNCIL,http://opendatacommunities.org/id/unitary-authority/warrington ,CYP,Childrens Other,81004,Equipment Purchase & Contract,400000,13-Jun-16,1900201776,2151.00,DCS 2 Way Radio Ltd,109140
WARRINGTON BOROUGH COUNCIL,http://opendatacommunities.org/id/unitary-authority/warrington ,FWB,Care Purchase Central Team,54050,CP-Day Care-External,441100,22-Jun-16,1900202884,2217.00,Deafness Support Network,104657
WARRINGTON BOROUGH COUNCIL,http://opendatacommunities.org/id/unitary-authority/warrington ,FWB,DSG Micellaneous Licences & Subscription,32408,Subscriptions,470000,26-May-16,1900200852,1000.00,Derbyshire County Council,410036
WARRINGTON BOROUGH COUNCIL,http://opendatacommunities.org/id/unitary-authority/warrington ,FWB,Older Peoples South Team,54421,CP-Domicil.External,440950,01-Jun-16,1900201031,15204.00,Dh Homecare,101961
WARRINGTON BOROUGH COUNCIL,http://opendatacommunities.org/id/unitary-authority/warrington ,FWB,Older Peoples North Team,54422,CP-Domicil.External,440950,01-Jun-16,1900201031,1014.00,Dh Homecare,101961
WARRINGTON BOROUGH COUNCIL,http://opendatacommunities.org/id/unitary-authority/warrington ,FWB,Care Purchase - PD,54440,CP-Domicil.External,440950,01-Jun-16,1900201031,4399.00,Dh Homecare,101961
WARRINGTON BOROUGH COUNCIL,http://opendatacommunities.org/id/unitary-authority/warrington ,FWB,Care Purchase - Learning Disability,54450,CP-Domicil.External,440950,01-Jun-16,1900201031,654.00,Dh Homecare,101961
WARRINGTON BOROUGH COUNCIL,http://opendatacommunities.org/id/unitary-authority/warrington ,FWB,Care Purchase - OP & OT Telecare,54460,CP-Domicil.External,440950,27-Jun-16,1900203033,506.00,Dh Homecare,101961
WARRINGTON BOROUGH COUNCIL,http://opendatacommunities.org/id/unitary-authority/warrington ,FWB,Care Purchase South Team,54070,CP-Domicil.External,440950,27-Jun-16,1900203033,10367.00,Dh Homecare,101961
WARRINGTON BOROUGH COUNCIL,http://opendatacommunities.org/id/unitary-authority/warrington ,FWB,Care Purchase Central Team,54050,CP-Domicil.External,440950,27-Jun-16,1900203033,10230.00,Dh Homecare,101961
WARRINGTON BOROUGH COUNCIL,http://opendatacommunities.org/id/unitary-authority/warrington ,FWB,Home to School Transport,33210,Statemented - Special Unit Pupil Transpo,300750,29-Jun-16,1900203172,546.00,Direct Taxis,101873
WARRINGTON BOROUGH COUNCIL,http://opendatacommunities.org/id/unitary-authority/warrington ,FWB,Safeguarding Team 1,31001,Transport SLA,300400,14-Jun-16,1900201850,1088.00,Direct Taxis,101873
WARRINGTON BOROUGH COUNCIL,http://opendatacommunities.org/id/unitary-authority/warrington ,CYP,Primary,81001,Specific Work,200200,22-Jun-16,1900202795,1960.00,Discount Carpet Outlet,115433
WARRINGTON BOROUGH COUNCIL,http://opendatacommunities.org/id/unitary-authority/warrington ,RSC,Coroners Service,11100,Post Mortem Fees-Rep,440250,23-Jun-16,1900202923,2055.00,Dr A Nicol,104970
WARRINGTON BOROUGH COUNCIL,http://opendatacommunities.org/id/unitary-authority/warrington ,RSC,Coroners Service,11100,Post Mortem Fees-Rep,440250,13-Jun-16,1900201816,2358.00,Dr D Butterworth,100765
WARRINGTON BOROUGH COUNCIL,http://opendatacommunities.org/id/unitary-authority/warrington ,RSC,Coroners Service,11100,Post Mortem Fees-Rep,440250,13-Jun-16,1900201804,513.00,Dr H Al Rawi,100745
WARRINGTON BOROUGH COUNCIL,http://opendatacommunities.org/id/unitary-authority/warrington ,RSC,Coroners Service,11100,Reimbursement for Deputy Coroner,440400,23-Jun-16,1900202909,3537.00,Dr J E Napier,100061
WARRINGTON BOROUGH COUNCIL,http://opendatacommunities.org/id/unitary-authority/warrington ,RSC,Coroners Service,11100,Reimbursement for Deputy Coroner,440400,23-Jun-16,1900202910,3001.00,Dr J E Napier,100061
WARRINGTON BOROUGH COUNCIL,http://opendatacommunities.org/id/unitary-authority/warrington ,RSC,Coroners Service,11100,Post Mortem Fees-Rep,440250,13-Jun-16,1900201799,1056.00,Dr J Krajacevic,100409
WARRINGTON BOROUGH COUNCIL,http://opendatacommunities.org/id/unitary-authority/warrington ,RSC,Coroners Service,11100,Post Mortem Fees-Rep,440250,20-Jun-16,1900202172,706.00,Dr J Stevenson,420485
WARRINGTON BOROUGH COUNCIL,http://opendatacommunities.org/id/unitary-authority/warrington ,RSC,Coroners Service,11100,Post Mortem Fees-Rep,440250,13-Jun-16,1900201817,4396.00,Dr J.S Stafford,100426
WARRINGTON BOROUGH COUNCIL,http://opendatacommunities.org/id/unitary-authority/warrington ,RSC,Coroners Service,11100,Post Mortem Fees-Rep,440250,14-Jun-16,1900201826,791.00,Dr Jackie Elder,101240
WARRINGTON BOROUGH COUNCIL,http://opendatacommunities.org/id/unitary-authority/warrington ,RSC,Coroners Service,11100,Consult.& Prof. Serv,440000,20-Jun-16,1900202167,756.00,Dr Jane Whittaker,115407
WARRINGTON BOROUGH COUNCIL,http://opendatacommunities.org/id/unitary-authority/warrington ,RSC,Coroners Service,11100,Post Mortem Fees-Rep,440250,20-Jun-16,1900202173,596.00,Dr Jo McPartland,106129
WARRINGTON BOROUGH COUNCIL,http://opendatacommunities.org/id/unitary-authority/warrington ,RSC,Coroners Service,11100,Post Mortem Fees-Rep,440250,10-Jun-16,1900201472,1177.00,Dr M S Al-Jafari,104464
WARRINGTON BOROUGH COUNCIL,http://opendatacommunities.org/id/unitary-authority/warrington ,RSC,Coroners Service,11100,Post Mortem Fees-Rep,440250,14-Jun-16,1900201827,1190.00,Dr M S Al-Jafari,104464
WARRINGTON BOROUGH COUNCIL,http://opendatacommunities.org/id/unitary-authority/warrington ,RSC,Coroners Service,11100,Post Mortem Fees-Rep,440250,14-Jun-16,1900201828,694.00,Dr Michael Wall,107545
WARRINGTON BOROUGH COUNCIL,http://opendatacommunities.org/id/unitary-authority/warrington ,RSC,Coroners Service,11100,Post Mortem Fees-Rep,440250,23-Jun-16,1900202911,1723.00,Dr N Alash,100579
WARRINGTON BOROUGH COUNCIL,http://opendatacommunities.org/id/unitary-authority/warrington ,RSC,Coroners Service,11100,Post Mortem Fees-Rep,440250,14-Jun-16,1900201829,984.00,Dr Natalie Meara,101727
WARRINGTON BOROUGH COUNCIL,http://opendatacommunities.org/id/unitary-authority/warrington ,RSC,Coroners Service,11100,Post Mortem Fees-Rep,440250,13-Jun-16,1900201801,807.00,Dr S A Hales,100988
WARRINGTON BOROUGH COUNCIL,http://opendatacommunities.org/id/unitary-authority/warrington ,RSC,Coroners Service,11100,Post Mortem Fees-Rep,440250,09-Jun-16,1900201433,596.00,Dr Sally Anne Collis,115237
WARRINGTON BOROUGH COUNCIL,http://opendatacommunities.org/id/unitary-authority/warrington ,RSC,Coroners Service,11100,Post Mortem Fees-Rep,440250,14-Jun-16,1900201830,664.00,Dr W E Kenyon,104851
WARRINGTON BOROUGH COUNCIL,http://opendatacommunities.org/id/unitary-authority/warrington ,FWB,DSG 2 Year Old Fund,31601,Payment of Grants,470050,10-Jun-16,1900201727,2352.00,Dunky's Day Nursery (Gt Sankey),400306
WARRINGTON BOROUGH COUNCIL,http://opendatacommunities.org/id/unitary-authority/warrington ,FWB,DSG Early Years PVI Settings,32417,Private & Voluntary 4 Year Olds,470150,10-Jun-16,1900201637,2081.00,Dunky's Day Nursery (Gt Sankey),400306
WARRINGTON BOROUGH COUNCIL,http://opendatacommunities.org/id/unitary-authority/warrington ,FWB,DSG 2 Year Old Fund,31601,Payment of Grants,470050,10-Jun-16,1900201728,1261.00,Dunky's Day Nursery Warrington,113903
WARRINGTON BOROUGH COUNCIL,http://opendatacommunities.org/id/unitary-authority/warrington ,FWB,DSG Early Years PVI Settings,32417,Private & Voluntary 3 Year Olds,470100,10-Jun-16,1900201530,3585.00,Dunky's Day Nursery Warrington,113903
WARRINGTON BOROUGH COUNCIL,http://opendatacommunities.org/id/unitary-authority/warrington ,COR,Debt Management Expenses,62080,Consult.& Prof. Serv,440000,07-Jun-16,1900201337,4000.00,Dwf LLP,101511
WARRINGTON BOROUGH COUNCIL,http://opendatacommunities.org/id/unitary-authority/warrington ,COR,Debt Management Expenses,62080,Consult.& Prof. Serv,440000,14-Jun-16,1900201834,4000.00,Dwf LLP,101511
WARRINGTON BOROUGH COUNCIL,http://opendatacommunities.org/id/unitary-authority/warrington ,EE0,Industrial Estates,43570,Consult.& Prof. Serv,440000,01-Jun-16,1900200973,653.00,Dwf LLP,101511
WARRINGTON BOROUGH COUNCIL,http://opendatacommunities.org/id/unitary-authority/warrington ,EE0,Industrial Estates,43570,Consult.& Prof. Serv,440000,01-Jun-16,1900200972,2583.00,Dwf LLP,101511
WARRINGTON BOROUGH COUNCIL,http://opendatacommunities.org/id/unitary-authority/warrington ,EE0,Industrial Estates,43570,Consult.& Prof. Serv,440000,01-Jun-16,1900200974,5300.00,Dwf LLP,101511
WARRINGTON BOROUGH COUNCIL,http://opendatacommunities.org/id/unitary-authority/warrington ,FWB,Care Purchase Central Team,54050,CP-Domicil.External,440950,28-Jun-16,1900203064,2000.00,East Cheshire Housing Consortium,110170
WARRINGTON BOROUGH COUNCIL,http://opendatacommunities.org/id/unitary-authority/warrington ,FWB,Care Purchase Central Team,54050,CP-Domicil.External,440950,27-Jun-16,1900203023,4000.00,East Cheshire Housing Consortium,110170
WARRINGTON BOROUGH COUNCIL,http://opendatacommunities.org/id/unitary-authority/warrington ,FWB,Care Purchase Central Team,54050,CP-Domicil.External,440950,27-Jun-16,1900203024,2000.00,East Cheshire Housing Consortium,110170
WARRINGTON BOROUGH COUNCIL,http://opendatacommunities.org/id/unitary-authority/warrington ,FWB,Care Purchase East Team,54060,CP-Domicil.External,440950,27-Jun-16,1900203022,1200.00,East Cheshire Housing Consortium,110170
WARRINGTON BOROUGH COUNCIL,http://opendatacommunities.org/id/unitary-authority/warrington ,RSC,Coroners Service,11100,Hire Of Mortuaries,220200,14-Jun-16,1900201832,2853.00,East Cheshire Nhs Trust,440130
WARRINGTON BOROUGH COUNCIL,http://opendatacommunities.org/id/unitary-authority/warrington ,RSC,Coroners Service,11100,Hire Of Mortuaries,220200,14-Jun-16,1900201833,1963.00,East Cheshire Nhs Trust,440130
WARRINGTON BOROUGH COUNCIL,http://opendatacommunities.org/id/unitary-authority/warrington ,FWB,Older Peoples South Team,54421,CP-Nursing Care-External,441200,01-Jun-16,1900201030,9663.00,East Dunbartonshire Council,410087
WARRINGTON BOROUGH COUNCIL,http://opendatacommunities.org/id/unitary-authority/warrington ,FWB,Care Purchase AMH,54135,CP-LongStayExternal,441150,07-Jun-16,1900201269,7500.00,EBS Services Ltd (Rodney House),115343
WARRINGTON BOROUGH COUNCIL,http://opendatacommunities.org/id/unitary-authority/warrington ,FWB,Care Purchase South Team,54070,CP-LongStayExternal,441150,21-Jun-16,1900202225,2500.00,EBS Services Ltd (Rodney House),115343
WARRINGTON BOROUGH COUNCIL,http://opendatacommunities.org/id/unitary-authority/warrington ,CYP,Childrens Other,81004,ICT Comms - Equipment Purchase,450100,22-Jun-16,1900202806,3632.00,Edac Solutions North West,100899
WARRINGTON BOROUGH COUNCIL,http://opendatacommunities.org/id/unitary-authority/warrington ,FWB,Halton Music Expenditure,32219,Consult.& Prof. Serv,440000,25-May-16,1900200717,1472.00,Edsential (Music Service),115039
WARRINGTON BOROUGH COUNCIL,http://opendatacommunities.org/id/unitary-authority/warrington ,FWB,Music Education Grant,32220,Consult.& Prof. Serv,440000,25-May-16,1900200717,1472.00,Edsential (Music Service),115039
WARRINGTON BOROUGH COUNCIL,http://opendatacommunities.org/id/unitary-authority/warrington ,HOL,Single Billing Holding Account,91130,ICT Comms - Line Rental,450200,06-Jun-16,1900201220,16683.00,EE Airtime,104996
WARRINGTON BOROUGH COUNCIL,http://opendatacommunities.org/id/unitary-authority/warrington ,FWB,Care Purchase Budget,54490,CP ExternalOther Exp,440800,27-Jun-16,1900203032,5690.00,Embrace Group,109675
WARRINGTON BOROUGH COUNCIL,http://opendatacommunities.org/id/unitary-authority/warrington ,FWB,Care Purchase Budget,54490,CP ExternalOther Exp,440800,21-Jun-16,1900202204,35000.00,Embrace Group,109675
WARRINGTON BOROUGH COUNCIL,http://opendatacommunities.org/id/unitary-authority/warrington ,FWB,DSG 2 Year Old Fund,31601,Payment of Grants,470050,10-Jun-16,1900201730,6354.00,Evolution Childcare @ Willows Nurse,400094
WARRINGTON BOROUGH COUNCIL,http://opendatacommunities.org/id/unitary-authority/warrington ,FWB,DSG Early Years PVI Settings,32417,Private & Voluntary 3 Year Olds,470100,10-Jun-16,1900201531,5263.00,Evolution Childcare @ Willows Nurse,400094
WARRINGTON BOROUGH COUNCIL,http://opendatacommunities.org/id/unitary-authority/warrington ,FWB,DSG Early Years PVI Settings,32417,Private & Voluntary 4 Year Olds,470150,10-Jun-16,1900201638,1970.00,Evolution Childcare @ Willows Nurse,400094
WARRINGTON BOROUGH COUNCIL,http://opendatacommunities.org/id/unitary-authority/warrington ,RSC,Council Tax & Recovery,10320,Land Registry Fees,441600,14-Jun-16,1900201946,833.00,Experian Ltd,100479
WARRINGTON BOROUGH COUNCIL,http://opendatacommunities.org/id/unitary-authority/warrington ,ENP,Environment & Regeneration,82000,Consult.& Prof. Serv,440000,03-Jun-16,1900201093,9500.00,FDR Law,114996
WARRINGTON BOROUGH COUNCIL,http://opendatacommunities.org/id/unitary-authority/warrington ,ENP,Environment & Regeneration,82000,Consult.& Prof. Serv,440000,03-Jun-16,1900201093,1832.00,FDR Law,114996
WARRINGTON BOROUGH COUNCIL,http://opendatacommunities.org/id/unitary-authority/warrington ,CYP,Childrens Other,81004,ICT Comms - Equipment Purchase,450100,10-Jun-16,1900201479,5275.00,FLP Solutions Ltd,112768
WARRINGTON BOROUGH COUNCIL,http://opendatacommunities.org/id/unitary-authority/warrington ,FWB,Care Purchase West Team,54080,CP-Domicil.External,440950,20-Jun-16,1900202122,1256.00,Focus on Care,108343
WARRINGTON BOROUGH COUNCIL,http://opendatacommunities.org/id/unitary-authority/warrington ,FWB,Care Purchase East Team,54060,CP-Domicil.External,440950,20-Jun-16,1900202129,678.00,Focus on Care,108343
WARRINGTON BOROUGH COUNCIL,http://opendatacommunities.org/id/unitary-authority/warrington ,FWB,Care Purchase Budget,54490,CP - Cont Care - External,441350,20-Jun-16,1900202126,703.00,Focus on Care,108343
WARRINGTON BOROUGH COUNCIL,http://opendatacommunities.org/id/unitary-authority/warrington ,ENO,Housing Projects,82008,Safe & Secure Energy House Assistance,554100,14-Jun-16,1900201846,790.00,Forshaw and Sons Ltd,111428
WARRINGTON BOROUGH COUNCIL,http://opendatacommunities.org/id/unitary-authority/warrington ,FWB,Fostering Placements,30003,Fostering Accommodation,441050,24-Jun-16,1900202988,1702.00,Foster Care Assoc Ltd,101086
WARRINGTON BOROUGH COUNCIL,http://opendatacommunities.org/id/unitary-authority/warrington ,FWB,Care Purchase West Team,54080,CP-Nursing Care-External,441200,21-Jun-16,1900202308,1960.00,Four Seasons Health Care,100629
WARRINGTON BOROUGH COUNCIL,http://opendatacommunities.org/id/unitary-authority/warrington ,FWB,Care Purchase Budget,54490,CP ExternalOther Exp,440800,03-Jun-16,1900201127,603.00,Four Seasons ta St Oswalds Care Hom,109422
WARRINGTON BOROUGH COUNCIL,http://opendatacommunities.org/id/unitary-authority/warrington ,FWB,Care Purchase Budget,54490,CP ExternalOther Exp,440800,21-Jun-16,1900202229,30000.00,Four Seasons ta St Oswalds Care Hom,109422
WARRINGTON BOROUGH COUNCIL,http://opendatacommunities.org/id/unitary-authority/warrington ,FWB,Child Disability,32212,CP-Domicil.External,440950,10-Jun-16,1900201486,525.00,Frewco Services Limited,113518
WARRINGTON BOROUGH COUNCIL,http://opendatacommunities.org/id/unitary-authority/warrington ,FWB,Child Disability,32212,CP-Domicil.External,440950,10-Jun-16,1900201482,575.00,Frewco Services Limited,113518
WARRINGTON BOROUGH COUNCIL,http://opendatacommunities.org/id/unitary-authority/warrington ,FWB,Permanence Team,31100,Agency Supply,180000,17-Jun-16,1900202080,1355.00,Frontline,108933
WARRINGTON BOROUGH COUNCIL,http://opendatacommunities.org/id/unitary-authority/warrington ,FWB,DSG 2 Year Old Fund,31601,Payment of Grants,470050,10-Jun-16,1900201731,655.00,Fun 4 Kids,102275
WARRINGTON BOROUGH COUNCIL,http://opendatacommunities.org/id/unitary-authority/warrington ,FWB,DSG Early Years PVI Settings,32417,Private & Voluntary 3 Year Olds,470100,10-Jun-16,1900201532,1985.00,Fun 4 Kids,102275
WARRINGTON BOROUGH COUNCIL,http://opendatacommunities.org/id/unitary-authority/warrington ,FWB,Care Purchase - Learning Disability,54450,CP-Domicil.External,440950,14-Jun-16,1900201894,44170.00,Future Directions Community Interes,111498
WARRINGTON BOROUGH COUNCIL,http://opendatacommunities.org/id/unitary-authority/warrington ,FWB,Care Purchase - Learning Disability,54450,Supporting People - External,441250,14-Jun-16,1900201894,5025.00,Future Directions Community Interes,111498
WARRINGTON BOROUGH COUNCIL,http://opendatacommunities.org/id/unitary-authority/warrington ,FWB,Care Purchase - ABI,54260,CP-Domicil.External,440950,09-Jun-16,1900201420,1554.00,Future Directions Community Interes,111498
WARRINGTON BOROUGH COUNCIL,http://opendatacommunities.org/id/unitary-authority/warrington ,FWB,Care Purchase - Learning Disability,54450,CP-Domicil.External,440950,09-Jun-16,1900201420,7183.00,Future Directions Community Interes,111498
WARRINGTON BOROUGH COUNCIL,http://opendatacommunities.org/id/unitary-authority/warrington ,FWB,Care Purchase - Learning Disability,54450,CP-Domicil.External,440950,09-Jun-16,1900201421,1554.00,Future Directions Community Interes,111498
WARRINGTON BOROUGH COUNCIL,http://opendatacommunities.org/id/unitary-authority/warrington ,FWB,Care Purchase East Team,54060,CP-Domicil.External,440950,27-Jun-16,1900203027,1554.00,Future Directions Community Interes,111498
WARRINGTON BOROUGH COUNCIL,http://opendatacommunities.org/id/unitary-authority/warrington ,FWB,Care Purchase West Team,54080,CP-Domicil.External,440950,27-Jun-16,1900203026,27058.00,Future Directions Community Interes,111498
WARRINGTON BOROUGH COUNCIL,http://opendatacommunities.org/id/unitary-authority/warrington ,FWB,Care Purchase East Team,54060,CP-Domicil.External,440950,27-Jun-16,1900203026,17112.00,Future Directions Community Interes,111498
WARRINGTON BOROUGH COUNCIL,http://opendatacommunities.org/id/unitary-authority/warrington ,FWB,Care Purchase East Team,54060,Supporting People - External,441250,27-Jun-16,1900203026,4125.00,Future Directions Community Interes,111498
WARRINGTON BOROUGH COUNCIL,http://opendatacommunities.org/id/unitary-authority/warrington ,FWB,Care Purchase West Team,54080,Supporting People - External,441250,27-Jun-16,1900203026,1450.00,Future Directions Community Interes,111498
WARRINGTON BOROUGH COUNCIL,http://opendatacommunities.org/id/unitary-authority/warrington ,FWB,Care Purchase South Team,54070,CP-Domicil.External,440950,27-Jun-16,1900203025,6614.00,Future Directions Community Interes,111498
WARRINGTON BOROUGH COUNCIL,http://opendatacommunities.org/id/unitary-authority/warrington ,FWB,Care Purchase West Team,54080,CP-Domicil.External,440950,27-Jun-16,1900203025,1735.00,Future Directions Community Interes,111498
WARRINGTON BOROUGH COUNCIL,http://opendatacommunities.org/id/unitary-authority/warrington ,HOL,Insurance Fund,91100,Insurance Claims,443400,08-Jun-16,1900201368,10571.00,Gallagher Bassett International Ltd,104739
WARRINGTON BOROUGH COUNCIL,http://opendatacommunities.org/id/unitary-authority/warrington ,HOL,Insurance Fund,91100,Insurance Claims,443400,08-Jun-16,1900201364,10515.00,Gallagher Bassett International Ltd,104739
WARRINGTON BOROUGH COUNCIL,http://opendatacommunities.org/id/unitary-authority/warrington ,CYP,Childrens Other,81004,ICT Comms - Equipment Purchase,450100,22-Jun-16,1900202798,8647.00,GBM Digital Technologies Ltd,110909
WARRINGTON BOROUGH COUNCIL,http://opendatacommunities.org/id/unitary-authority/warrington ,CYP,Primary,81001,ICT Comms - Equipment Purchase,450100,17-Jun-16,1900202102,6924.00,GBM Digital Technologies Ltd,110909
WARRINGTON BOROUGH COUNCIL,http://opendatacommunities.org/id/unitary-authority/warrington ,FWB,DSG Early Years PVI Settings,32417,Private & Voluntary 3 Year Olds,470100,10-Jun-16,1900201533,1627.00,Glazebury Pre-School Playgroup,400132
WARRINGTON BOROUGH COUNCIL,http://opendatacommunities.org/id/unitary-authority/warrington ,FWB,DSG Early Years PVI Settings,32417,Private & Voluntary 4 Year Olds,470150,10-Jun-16,1900201640,740.00,Glazebury Pre-School Playgroup,400132
WARRINGTON BOROUGH COUNCIL,http://opendatacommunities.org/id/unitary-authority/warrington ,FWB,Care Purchase Budget,54490,CP ExternalOther Exp,440800,22-Jun-16,1900202883,6472.00,GNR Care Limited,114127
WARRINGTON BOROUGH COUNCIL,http://opendatacommunities.org/id/unitary-authority/warrington ,FWB,Care Purchase Budget,54490,CP ExternalOther Exp,440800,21-Jun-16,1900202205,20000.00,GNR Care Limited,114127
WARRINGTON BOROUGH COUNCIL,http://opendatacommunities.org/id/unitary-authority/warrington ,FWB,DSG Early Years PVI Settings,32417,Private & Voluntary 3 Year Olds,470100,10-Jun-16,1900201534,2003.00,Grappenhall Pre-School,400134
WARRINGTON BOROUGH COUNCIL,http://opendatacommunities.org/id/unitary-authority/warrington ,FWB,DSG Early Years PVI Settings,32417,Private & Voluntary 4 Year Olds,470150,10-Jun-16,1900201641,2003.00,Grappenhall Pre-School,400134
WARRINGTON BOROUGH COUNCIL,http://opendatacommunities.org/id/unitary-authority/warrington ,FWB,SEN Grants,32057,Payment of Grants,470050,29-Jun-16,1900203184,1159.00,Grappenhall Pre-School,400134
WARRINGTON BOROUGH COUNCIL,http://opendatacommunities.org/id/unitary-authority/warrington ,FWB,Care Purchase West Team,54080,CP-Day Care-External,441100,24-Jun-16,1900202969,660.00,Great Opportunities Together CIC,110076
WARRINGTON BOROUGH COUNCIL,http://opendatacommunities.org/id/unitary-authority/warrington ,FWB,DSG Early Years PVI Settings,32417,Private & Voluntary 3 Year Olds,470100,10-Jun-16,1900201535,4924.00,Green Park Nursery,400089
WARRINGTON BOROUGH COUNCIL,http://opendatacommunities.org/id/unitary-authority/warrington ,FWB,DSG Early Years PVI Settings,32417,Private & Voluntary 4 Year Olds,470150,10-Jun-16,1900201642,3272.00,Green Park Nursery,400089
WARRINGTON BOROUGH COUNCIL,http://opendatacommunities.org/id/unitary-authority/warrington ,FWB,Care Purchase - Learning Disability,54450,CP-LongStayExternal,441150,03-Jun-16,1900201094,12348.00,Griffin Care Ltd,101672
WARRINGTON BOROUGH COUNCIL,http://opendatacommunities.org/id/unitary-authority/warrington ,FWB,Care Purchase - Learning Disability,54450,CP-LongStayExternal,441150,03-Jun-16,1900201096,12348.00,Griffin Care Ltd,101672
WARRINGTON BOROUGH COUNCIL,http://opendatacommunities.org/id/unitary-authority/warrington ,FWB,Care Purchase South Team,54070,CP-LongStayExternal,441150,14-Jun-16,1900201892,12348.00,Griffin Care Ltd,101672
WARRINGTON BOROUGH COUNCIL,http://opendatacommunities.org/id/unitary-authority/warrington ,FWB,Care Purchase East Team,54060,CP-LongStayExternal,441150,14-Jun-16,1900201893,12348.00,Griffin Care Ltd,101672
WARRINGTON BOROUGH COUNCIL,http://opendatacommunities.org/id/unitary-authority/warrington ,ENO,Housing Projects,82008,Disabled Persons Grant 1996,554000,17-Jun-16,1900202074,7408.00,Gt Builders,104761
WARRINGTON BOROUGH COUNCIL,http://opendatacommunities.org/id/unitary-authority/warrington ,ENO,Housing Projects,82008,Disabled Persons Grant 1996,554000,14-Jun-16,1900201838,10000.00,Gt Builders,104761
WARRINGTON BOROUGH COUNCIL,http://opendatacommunities.org/id/unitary-authority/warrington ,FWB,Foster Carers Committee Funding,31119,Events Costs,490000,24-Jun-16,1900202998,1390.00,Gullivers World Ltd,102253
WARRINGTON BOROUGH COUNCIL,http://opendatacommunities.org/id/unitary-authority/warrington ,COR,C2W Salary Sacrfice,59995,Veh Maint. Materials,300000,25-May-16,1900200211,9008.00,Halfords Ltd,104764
WARRINGTON BOROUGH COUNCIL,http://opendatacommunities.org/id/unitary-authority/warrington ,FWB,DSG Inter Authority Recoupment,32009,Recoupment Charges,490700,28-Jun-16,1900203100,102816.00,Halton Borough Council,410008
WARRINGTON BOROUGH COUNCIL,http://opendatacommunities.org/id/unitary-authority/warrington ,FWB,Care Purchase West Team,54080,CP-Domicil.External,440950,14-Jun-16,1900201891,17075.00,Hannahs Homecare Ltd,114443
WARRINGTON BOROUGH COUNCIL,http://opendatacommunities.org/id/unitary-authority/warrington ,FWB,Care Purchase Central Team,54050,CP-Domicil.External,440950,14-Jun-16,1900201891,2014.00,Hannahs Homecare Ltd,114443
WARRINGTON BOROUGH COUNCIL,http://opendatacommunities.org/id/unitary-authority/warrington ,FWB,Care Purchase Budget,54490,CP ExternalOther Exp,440800,27-Jun-16,1900203031,12131.00,Harbour Healthcare 1 Ltd,110527
WARRINGTON BOROUGH COUNCIL,http://opendatacommunities.org/id/unitary-authority/warrington ,FWB,Care Purchase Budget,54490,CP ExternalOther Exp,440800,21-Jun-16,1900202194,45000.00,Harbour Healthcare 1 Ltd,110527
WARRINGTON BOROUGH COUNCIL,http://opendatacommunities.org/id/unitary-authority/warrington ,HOL,Single Billing Holding Account,91130,Agency Supply ,180000,01-Jun-16,1900200989,38726.00,Hays Specialist Recruitment Ltd,107512
WARRINGTON BOROUGH COUNCIL,http://opendatacommunities.org/id/unitary-authority/warrington ,HOL,Single Billing Holding Account,91130,Agency Supply,180000,03-Jun-16,1900201156,37034.00,Hays Specialist Recruitment Ltd,107512
WARRINGTON BOROUGH COUNCIL,http://opendatacommunities.org/id/unitary-authority/warrington ,HOL,Single Billing Holding Account,91130,Agency Supply,180000,14-Jun-16,1900201851,42530.00,Hays Specialist Recruitment Ltd,107512
WARRINGTON BOROUGH COUNCIL,http://opendatacommunities.org/id/unitary-authority/warrington ,HOL,Single Billing Holding Account,91130,Agency Supply ,180000,17-Jun-16,1900202057,38725.00,Hays Specialist Recruitment Ltd,107512
WARRINGTON BOROUGH COUNCIL,http://opendatacommunities.org/id/unitary-authority/warrington ,HOL,Single Billing Holding Account,91130,Agency Supply,180000,27-Jun-16,1900203017,24779.00,Hays Specialist Recruitment Ltd,107512
WARRINGTON BOROUGH COUNCIL,http://opendatacommunities.org/id/unitary-authority/warrington ,FWB,Care Purchase East Team,54060,CP-Nursing Care-External,441200,20-Jun-16,1900202157,1520.00,HC One - Carrington Court,115063
WARRINGTON BOROUGH COUNCIL,http://opendatacommunities.org/id/unitary-authority/warrington ,EE0,Gorse Covert Day Centre,45050,CP-LongStayExternal,441150,14-Jun-16,1900201889,1842.00,HC One (Hulton Care Nursing Home),115141
WARRINGTON BOROUGH COUNCIL,http://opendatacommunities.org/id/unitary-authority/warrington ,FWB,Care Purchase Central Team,54050,CP-LongStayExternal,441150,20-Jun-16,1900202161,1842.00,HC One (Hulton Care Nursing Home),115141
WARRINGTON BOROUGH COUNCIL,http://opendatacommunities.org/id/unitary-authority/warrington ,FWB,Care Purchase Budget,54490,CP ExternalOther Exp,440800,03-Jun-16,1900201117,39932.00,HC-One Limited Callands,109640
WARRINGTON BOROUGH COUNCIL,http://opendatacommunities.org/id/unitary-authority/warrington ,FWB,Care Purchase Budget,54490,CP ExternalOther Exp,440800,21-Jun-16,1900202211,150000.00,HC-One Limited Callands,109640
WARRINGTON BOROUGH COUNCIL,http://opendatacommunities.org/id/unitary-authority/warrington ,FWB,DSG 2 Year Old Fund,31601,Payment of Grants,470050,10-Jun-16,1900201732,655.00,Heathfield House Day Nursery,400138
WARRINGTON BOROUGH COUNCIL,http://opendatacommunities.org/id/unitary-authority/warrington ,FWB,DSG Early Years PVI Settings,32417,Private & Voluntary 3 Year Olds,470100,10-Jun-16,1900201537,2241.00,Heathfield House Day Nursery,400138
WARRINGTON BOROUGH COUNCIL,http://opendatacommunities.org/id/unitary-authority/warrington ,FWB,DSG Early Years PVI Settings,32417,Private & Voluntary 4 Year Olds,470150,10-Jun-16,1900201643,1287.00,Heathfield House Day Nursery,400138
WARRINGTON BOROUGH COUNCIL,http://opendatacommunities.org/id/unitary-authority/warrington ,FWB,Care Purchase Budget,54490,CP ExternalOther Exp,440800,21-Jun-16,1900202198,9000.00,Heathfield Residental Home,100059
WARRINGTON BOROUGH COUNCIL,http://opendatacommunities.org/id/unitary-authority/warrington ,FWB,Care Purchase Budget,54490,CP ExternalOther Exp,440800,01-Jun-16,1900201032,18580.00,Heathside Elderly Persons Home,104777
WARRINGTON BOROUGH COUNCIL,http://opendatacommunities.org/id/unitary-authority/warrington ,FWB,Care Purchase Budget,54490,CP ExternalOther Exp,440800,24-Jun-16,1900202972,10412.00,Heathside Elderly Persons Home,104777
WARRINGTON BOROUGH COUNCIL,http://opendatacommunities.org/id/unitary-authority/warrington ,FWB,Care Purchase Budget,54490,CP ExternalOther Exp,440800,21-Jun-16,1900202206,40000.00,Heathside Elderly Persons Home,104777
WARRINGTON BOROUGH COUNCIL,http://opendatacommunities.org/id/unitary-authority/warrington ,RSC,Council Tax & Recovery,10320,Court Costs,460100,06-Jun-16,1900201245,5079.00,Hmcs North Cheshire Collections,102261
WARRINGTON BOROUGH COUNCIL,http://opendatacommunities.org/id/unitary-authority/warrington ,FWB,DSG Early Years PVI Settings,32417,Private & Voluntary 3 Year Olds,470100,10-Jun-16,1900201539,1730.00,Holly Grange Montessori Nursery Ltd,400236
WARRINGTON BOROUGH COUNCIL,http://opendatacommunities.org/id/unitary-authority/warrington ,FWB,DSG Early Years PVI Settings,32417,Private & Voluntary 4 Year Olds,470150,10-Jun-16,1900201645,1209.00,Holly Grange Montessori Nursery Ltd,400236
WARRINGTON BOROUGH COUNCIL,http://opendatacommunities.org/id/unitary-authority/warrington ,FWB,Care Purchase - PD,54440,CP-Domicil.External,440950,01-Jun-16,1900201033,2524.00,Homelife Leeds Ltd,101794
WARRINGTON BOROUGH COUNCIL,http://opendatacommunities.org/id/unitary-authority/warrington ,FWB,SCM Dallam Primary School,33102,Response Maintenance,200000,08-Jun-16,1900201381,2059.00,Hoult Group Services,111129
WARRINGTON BOROUGH COUNCIL,http://opendatacommunities.org/id/unitary-authority/warrington ,FWB,DAT Pooled Budget,53860,Drug Action,443600,17-Jun-16,1900202075,706.00,Hub Pharmacy Ltd,104278
WARRINGTON BOROUGH COUNCIL,http://opendatacommunities.org/id/unitary-authority/warrington ,FWB,Care Purchase - Learning Disability,54450,CP-LongStayExternal,441150,02-Jun-16,1900201058,12744.00,Inclusive Lifestyles Ltd,101840
WARRINGTON BOROUGH COUNCIL,http://opendatacommunities.org/id/unitary-authority/warrington ,FWB,Care Purchase Central Team,54050,CP-LongStayExternal,441150,15-Jun-16,1900202032,12744.00,Inclusive Lifestyles Ltd,101840
WARRINGTON BOROUGH COUNCIL,http://opendatacommunities.org/id/unitary-authority/warrington ,FWB,Care Purchase West Team,54080,CP-LongStayExternal,441150,15-Jun-16,1900202031,12613.00,Inclusive Lifestyles Ltd,101840
WARRINGTON BOROUGH COUNCIL,http://opendatacommunities.org/id/unitary-authority/warrington ,FWB,Care Purchase Central Team,54050,CP-LongStayExternal,441150,15-Jun-16,1900202030,1482.00,Inclusive Lifestyles Ltd,101840
WARRINGTON BOROUGH COUNCIL,http://opendatacommunities.org/id/unitary-authority/warrington ,FWB,Care Purchase - Learning Disability,54450,CP-LongStayExternal,441150,02-Jun-16,1900201049,12613.00,Inclusive Lifestyles Ltd,101840
WARRINGTON BOROUGH COUNCIL,http://opendatacommunities.org/id/unitary-authority/warrington ,FWB,Care Purchase - Learning Disability,54450,CP-LongStayExternal,441150,02-Jun-16,1900201050,1482.00,Inclusive Lifestyles Ltd,101840
WARRINGTON BOROUGH COUNCIL,http://opendatacommunities.org/id/unitary-authority/warrington ,ENO,Housing Projects,82008,Disabled Persons Grant 1996,554000,14-Jun-16,1900201842,3520.00,Independent Adaptations,110198
WARRINGTON BOROUGH COUNCIL,http://opendatacommunities.org/id/unitary-authority/warrington ,ENO,Housing Projects,82008,Disabled Persons Grant 1996,554000,17-Jun-16,1900202061,3520.00,Independent Adaptations,110198
WARRINGTON BOROUGH COUNCIL,http://opendatacommunities.org/id/unitary-authority/warrington ,ENO,Housing Projects,82008,Disabled Persons Grant 1996,554000,14-Jun-16,1900201938,6690.00,Independent Adaptations,110198
WARRINGTON BOROUGH COUNCIL,http://opendatacommunities.org/id/unitary-authority/warrington ,FWB,Care Purchase - Learning Disability,54450,CP-Domicil.External,440950,02-Jun-16,1900201045,4538.00,Independent Living Alliance,100726
WARRINGTON BOROUGH COUNCIL,http://opendatacommunities.org/id/unitary-authority/warrington ,FWB,Care Purchase AMH,54135,CP-Domicil.External,440950,02-Jun-16,1900201061,1843.00,Independent Living Alliance,100726
WARRINGTON BOROUGH COUNCIL,http://opendatacommunities.org/id/unitary-authority/warrington ,FWB,Care Purchase AMH,54135,CP-Domicil.External,440950,02-Jun-16,1900201044,12350.00,Independent Living Alliance,100726
WARRINGTON BOROUGH COUNCIL,http://opendatacommunities.org/id/unitary-authority/warrington ,FWB,Care Purchase AMH,54135,Supporting People - External,441250,02-Jun-16,1900201044,1853.00,Independent Living Alliance,100726
WARRINGTON BOROUGH COUNCIL,http://opendatacommunities.org/id/unitary-authority/warrington ,FWB,Care Purchase AMH,54135,CP-Domicil.External,440950,02-Jun-16,1900201055,518.00,Independent Living Alliance,100726
WARRINGTON BOROUGH COUNCIL,http://opendatacommunities.org/id/unitary-authority/warrington ,FWB,Care Purchase AMH,54135,CP-Domicil.External,440950,02-Jun-16,1900201060,14185.00,Independent Living Alliance,100726
WARRINGTON BOROUGH COUNCIL,http://opendatacommunities.org/id/unitary-authority/warrington ,FWB,Care Purchase AMH,54135,Supporting People - External,441250,02-Jun-16,1900201060,5453.00,Independent Living Alliance,100726
WARRINGTON BOROUGH COUNCIL,http://opendatacommunities.org/id/unitary-authority/warrington ,RSC,ICT Networks,23400,ICT Comms - Line Rental,450200,06-Jun-16,1900201240,1653.00,Intrinsic Technology Limited,108170
WARRINGTON BOROUGH COUNCIL,http://opendatacommunities.org/id/unitary-authority/warrington ,RSC,ICT Networks,23400,ICT Comms - Line Usage,450300,06-Jun-16,1900201240,1038.00,Intrinsic Technology Limited,108170
WARRINGTON BOROUGH COUNCIL,http://opendatacommunities.org/id/unitary-authority/warrington ,RSC,ICT Networks,23400,ICT Comms - Line Rental,450200,21-Jun-16,1900202219,1653.00,Intrinsic Technology Limited,108170
WARRINGTON BOROUGH COUNCIL,http://opendatacommunities.org/id/unitary-authority/warrington ,RSC,ICT Networks,23400,ICT Comms - Line Usage,450300,21-Jun-16,1900202219,1008.00,Intrinsic Technology Limited,108170
WARRINGTON BOROUGH COUNCIL,http://opendatacommunities.org/id/unitary-authority/warrington ,ENO,Housing Projects,82008,Disabled Persons Grant 1996,554000,14-Jun-16,1900201939,1556.00,J Barton Building Plumbing & Electr,111201
WARRINGTON BOROUGH COUNCIL,http://opendatacommunities.org/id/unitary-authority/warrington ,ENO,Housing Projects,82008,Disabled Persons Grant 1996,554000,29-Jun-16,1900203178,3500.00,J Barton Building Plumbing & Electr,111201
WARRINGTON BOROUGH COUNCIL,http://opendatacommunities.org/id/unitary-authority/warrington ,FWB,DSG 2 Year Old Fund,31601,Payment of Grants,470050,10-Jun-16,1900201733,2718.00,Jack & Jill Pre School,400014
WARRINGTON BOROUGH COUNCIL,http://opendatacommunities.org/id/unitary-authority/warrington ,FWB,DSG Early Years PVI Settings,32417,Private & Voluntary 3 Year Olds,470100,10-Jun-16,1900201540,2555.00,Jack & Jill Pre School,400014
WARRINGTON BOROUGH COUNCIL,http://opendatacommunities.org/id/unitary-authority/warrington ,FWB,DSG Early Years PVI Settings,32417,Private & Voluntary 4 Year Olds,470150,10-Jun-16,1900201646,2269.00,Jack & Jill Pre School,400014
WARRINGTON BOROUGH COUNCIL,http://opendatacommunities.org/id/unitary-authority/warrington ,RSC,One - Off ICT Costs,23200,Computer Software - Maintenance,450850,07-Jun-16,1900201335,4113.00,Jadu Ltd,109457
WARRINGTON BOROUGH COUNCIL,http://opendatacommunities.org/id/unitary-authority/warrington ,CYP,Childrens Other,81004,Furniture & Fittings,400150,07-Jun-16,1900201305,2949.00,Jcm Seating Solutions,104828
WARRINGTON BOROUGH COUNCIL,http://opendatacommunities.org/id/unitary-authority/warrington ,FWB,EIG Funding - Commisioning,31500,Agency Supply ,180000,01-Jun-16,1900201036,9314.00,JMW Social Work Consultancy Ltd,115274
WARRINGTON BOROUGH COUNCIL,http://opendatacommunities.org/id/unitary-authority/warrington ,FWB,DSG 2 Year Old Fund,31601,Payment of Grants,470050,10-Jun-16,1900201736,1528.00,Kalgarth Grange Nursery,400096
WARRINGTON BOROUGH COUNCIL,http://opendatacommunities.org/id/unitary-authority/warrington ,FWB,DSG Early Years PVI Settings,32417,Private & Voluntary 3 Year Olds,470100,10-Jun-16,1900201547,4899.00,Kalgarth Grange Nursery,400096
WARRINGTON BOROUGH COUNCIL,http://opendatacommunities.org/id/unitary-authority/warrington ,FWB,DSG Early Years PVI Settings,32417,Private & Voluntary 4 Year Olds,470150,10-Jun-16,1900201647,2725.00,Kalgarth Grange Nursery,400096
WARRINGTON BOROUGH COUNCIL,http://opendatacommunities.org/id/unitary-authority/warrington ,FWB,Care Purchase Budget,54490,CP ExternalOther Exp,440800,21-Jun-16,1900202196,24000.00,Keate House Residential Home,104849
WARRINGTON BOROUGH COUNCIL,http://opendatacommunities.org/id/unitary-authority/warrington ,FWB,Residential Placements,30102,CP-LongStayExternal,441150,02-Jun-16,1900201040,850.00,Keys Child Care Ltd,100391
WARRINGTON BOROUGH COUNCIL,http://opendatacommunities.org/id/unitary-authority/warrington ,FWB,DSG 2 Year Old Fund,31601,Payment of Grants,470050,10-Jun-16,1900201722,5456.00,Kids on top t/a Cotton Tails Nurser,400137
WARRINGTON BOROUGH COUNCIL,http://opendatacommunities.org/id/unitary-authority/warrington ,FWB,DSG Early Years PVI Settings,32417,Private & Voluntary 3 Year Olds,470100,10-Jun-16,1900201524,5734.00,Kids on top t/a Cotton Tails Nurser,400137
WARRINGTON BOROUGH COUNCIL,http://opendatacommunities.org/id/unitary-authority/warrington ,FWB,DSG Early Years PVI Settings,32417,Private & Voluntary 4 Year Olds,470150,10-Jun-16,1900201631,2888.00,Kids on top t/a Cotton Tails Nurser,400137
WARRINGTON BOROUGH COUNCIL,http://opendatacommunities.org/id/unitary-authority/warrington ,FWB,DSG 2 Year Old Fund,31601,Payment of Grants,470050,10-Jun-16,1900201737,8577.00,Kids Planet Warrington,105710
WARRINGTON BOROUGH COUNCIL,http://opendatacommunities.org/id/unitary-authority/warrington ,FWB,DSG 2 Year Old Fund,31601,Payment of Grants,470050,10-Jun-16,1900201739,5432.00,Kids Planet Warrington,105710
WARRINGTON BOROUGH COUNCIL,http://opendatacommunities.org/id/unitary-authority/warrington ,FWB,DSG 2 Year Old Fund,31601,Payment of Grants,470050,10-Jun-16,1900201738,655.00,Kids Planet Warrington,105710
WARRINGTON BOROUGH COUNCIL,http://opendatacommunities.org/id/unitary-authority/warrington ,FWB,DSG Early Years PVI Settings,32417,Private & Voluntary 3 Year Olds,470100,10-Jun-16,1900201549,7313.00,Kids Planet Warrington,105710
WARRINGTON BOROUGH COUNCIL,http://opendatacommunities.org/id/unitary-authority/warrington ,FWB,DSG Early Years PVI Settings,32417,Private & Voluntary 3 Year Olds,470100,10-Jun-16,1900201550,6685.00,Kids Planet Warrington,105710
WARRINGTON BOROUGH COUNCIL,http://opendatacommunities.org/id/unitary-authority/warrington ,FWB,DSG Early Years PVI Settings,32417,Private & Voluntary 3 Year Olds,470100,10-Jun-16,1900201548,2916.00,Kids Planet Warrington,105710
WARRINGTON BOROUGH COUNCIL,http://opendatacommunities.org/id/unitary-authority/warrington ,FWB,DSG Early Years PVI Settings,32417,Private & Voluntary 4 Year Olds,470150,10-Jun-16,1900201650,4340.00,Kids Planet Warrington,105710
WARRINGTON BOROUGH COUNCIL,http://opendatacommunities.org/id/unitary-authority/warrington ,FWB,DSG Early Years PVI Settings,32417,Private & Voluntary 4 Year Olds,470150,10-Jun-16,1900201649,2971.00,Kids Planet Warrington,105710
WARRINGTON BOROUGH COUNCIL,http://opendatacommunities.org/id/unitary-authority/warrington ,FWB,DSG Early Years PVI Settings,32417,Private & Voluntary 4 Year Olds,470150,10-Jun-16,1900201648,968.00,Kids Planet Warrington,105710
WARRINGTON BOROUGH COUNCIL,http://opendatacommunities.org/id/unitary-authority/warrington ,CYP,Childrens Other,81004,ICT Comms - Equipment Purchase,450100,13-Jun-16,1900201774,900.00,KMI Technologies,109865
WARRINGTON BOROUGH COUNCIL,http://opendatacommunities.org/id/unitary-authority/warrington ,EE0,Development Control,43430,Consult.& Prof. Serv,440000,22-Jun-16,1900202811,9500.00,Lambert Smith Hampton,100591
WARRINGTON BOROUGH COUNCIL,http://opendatacommunities.org/id/unitary-authority/warrington ,FWB,Care Purchase Central Team,54050,CP-LongStayExternal,441150,21-Jun-16,1900202310,1988.00,Lancashire County Council,410062
WARRINGTON BOROUGH COUNCIL,http://opendatacommunities.org/id/unitary-authority/warrington ,FWB,Older Peoples South Team,54421,CP-LongStayExternal,441150,03-Jun-16,1900201099,1988.00,Lancashire County Council,410062
WARRINGTON BOROUGH COUNCIL,http://opendatacommunities.org/id/unitary-authority/warrington ,EE0,"Incubator- WAMEI Dallam Lane,Warrington",43850,Gen. Personal Needs,490850,29-Jun-16,1900203181,17992.00,Langtree Property Partners Ltd,114859
WARRINGTON BOROUGH COUNCIL,http://opendatacommunities.org/id/unitary-authority/warrington ,NEO,Neighbourhood & Community Other,83002,Specific Work,200200,29-Jun-16,1900203163,13000.00,Larrosa Marshall Associates,115440
WARRINGTON BOROUGH COUNCIL,http://opendatacommunities.org/id/unitary-authority/warrington ,FWB,Care Purchase Central Team,54050,CP-Nursing Care-External,441200,21-Jun-16,1900202311,2822.00,Leonard Cheshire Disability,100370
WARRINGTON BOROUGH COUNCIL,http://opendatacommunities.org/id/unitary-authority/warrington ,FWB,Care Purchase Budget,54490,CP ExternalOther Exp,440800,20-Jun-16,1900202162,75000.00,Leyton Healthcare Ltd - In administ,108970
WARRINGTON BOROUGH COUNCIL,http://opendatacommunities.org/id/unitary-authority/warrington ,FWB,Care Purchase Budget,54490,CP ExternalOther Exp,440800,21-Jun-16,1900202220,75000.00,Leyton Healthcare Ltd - In administ,108970
WARRINGTON BOROUGH COUNCIL,http://opendatacommunities.org/id/unitary-authority/warrington ,FWB,DSG 2 Year Old Fund,31601,Payment of Grants,470050,10-Jun-16,1900201742,1746.00,Little Acorns Day Nursery,400012
WARRINGTON BOROUGH COUNCIL,http://opendatacommunities.org/id/unitary-authority/warrington ,FWB,DSG Early Years PVI Settings,32417,Private & Voluntary 3 Year Olds,470100,10-Jun-16,1900201553,9062.00,Little Acorns Day Nursery,400012
WARRINGTON BOROUGH COUNCIL,http://opendatacommunities.org/id/unitary-authority/warrington ,FWB,DSG Early Years PVI Settings,32417,Private & Voluntary 4 Year Olds,470150,10-Jun-16,1900201653,6026.00,Little Acorns Day Nursery,400012
WARRINGTON BOROUGH COUNCIL,http://opendatacommunities.org/id/unitary-authority/warrington ,FWB,SEN Grants,32057,Payment of Grants,470050,29-Jun-16,1900203183,3024.00,Little Acorns Day Nursery,400012
WARRINGTON BOROUGH COUNCIL,http://opendatacommunities.org/id/unitary-authority/warrington ,FWB,DSG 2 Year Old Fund,31601,Payment of Grants,470050,10-Jun-16,1900201743,888.00,Little Browsers Playgroup,400140
WARRINGTON BOROUGH COUNCIL,http://opendatacommunities.org/id/unitary-authority/warrington ,FWB,DSG Early Years PVI Settings,32417,Private & Voluntary 3 Year Olds,470100,10-Jun-16,1900201554,2972.00,Little Browsers Playgroup,400140
WARRINGTON BOROUGH COUNCIL,http://opendatacommunities.org/id/unitary-authority/warrington ,FWB,DSG Early Years PVI Settings,32417,Private & Voluntary 4 Year Olds,470150,10-Jun-16,1900201654,1277.00,Little Browsers Playgroup,400140
WARRINGTON BOROUGH COUNCIL,http://opendatacommunities.org/id/unitary-authority/warrington ,FWB,SEN Grants,32057,Payment of Grants,470050,29-Jun-16,1900203182,864.00,Little Browsers Playgroup,400140
WARRINGTON BOROUGH COUNCIL,http://opendatacommunities.org/id/unitary-authority/warrington ,FWB,DSG 2 Year Old Fund,31601,Payment of Grants,470050,10-Jun-16,1900201746,2401.00,Little Penguins Day Nursery,110768
WARRINGTON BOROUGH COUNCIL,http://opendatacommunities.org/id/unitary-authority/warrington ,FWB,DSG Early Years PVI Settings,32417,Private & Voluntary 3 Year Olds,470100,10-Jun-16,1900201557,3198.00,Little Penguins Day Nursery,110768
WARRINGTON BOROUGH COUNCIL,http://opendatacommunities.org/id/unitary-authority/warrington ,FWB,DSG Early Years PVI Settings,32417,Private & Voluntary 4 Year Olds,470150,10-Jun-16,1900201656,1044.00,Little Penguins Day Nursery,110768
WARRINGTON BOROUGH COUNCIL,http://opendatacommunities.org/id/unitary-authority/warrington ,FWB,DSG 2 Year Old Fund,31601,Payment of Grants,470050,10-Jun-16,1900201747,3186.00,Little Treasures Nursery Ltd,400091
WARRINGTON BOROUGH COUNCIL,http://opendatacommunities.org/id/unitary-authority/warrington ,FWB,DSG Early Years PVI Settings,32417,Private & Voluntary 3 Year Olds,470100,10-Jun-16,1900201558,5768.00,Little Treasures Nursery Ltd,400091
WARRINGTON BOROUGH COUNCIL,http://opendatacommunities.org/id/unitary-authority/warrington ,FWB,DSG Early Years PVI Settings,32417,Private & Voluntary 4 Year Olds,470150,10-Jun-16,1900201657,2254.00,Little Treasures Nursery Ltd,400091
WARRINGTON BOROUGH COUNCIL,http://opendatacommunities.org/id/unitary-authority/warrington ,FWB,SEN Grants,32057,Payment of Grants,470050,22-Jun-16,1900202826,778.00,Little Treasures Nursery Ltd,400091
WARRINGTON BOROUGH COUNCIL,http://opendatacommunities.org/id/unitary-authority/warrington ,RSC,Complex Dependency,15050,Hospitality,490050,24-Jun-16,1900202997,532.00,Livewire,110692
WARRINGTON BOROUGH COUNCIL,http://opendatacommunities.org/id/unitary-authority/warrington ,FWB,Livewire Traded Services,32071,Mainstream Pupil Transport,300800,07-Jun-16,1900201306,10225.00,Livewire,110692
WARRINGTON BOROUGH COUNCIL,http://opendatacommunities.org/id/unitary-authority/warrington ,COR,Fees & Subscriptions,60020,Subscriptions,470000,01-Jun-16,1900201020,17350.00,Local Government Information Unit,440148
WARRINGTON BOROUGH COUNCIL,http://opendatacommunities.org/id/unitary-authority/warrington ,FWB,DSG 2 Year Old Fund,31601,Payment of Grants,470050,10-Jun-16,1900201748,2430.00,Locking Stumps Day Nursery,400142
WARRINGTON BOROUGH COUNCIL,http://opendatacommunities.org/id/unitary-authority/warrington ,FWB,DSG Early Years PVI Settings,32417,Private & Voluntary 3 Year Olds,470100,10-Jun-16,1900201559,1298.00,Locking Stumps Day Nursery,400142
WARRINGTON BOROUGH COUNCIL,http://opendatacommunities.org/id/unitary-authority/warrington ,FWB,DSG Early Years PVI Settings,32417,Private & Voluntary 4 Year Olds,470150,10-Jun-16,1900201658,1588.00,Locking Stumps Day Nursery,400142
WARRINGTON BOROUGH COUNCIL,http://opendatacommunities.org/id/unitary-authority/warrington ,FWB,DSG Early Years PVI Settings,32417,Private & Voluntary 3 Year Olds,470100,10-Jun-16,1900201560,1315.00,Locking Stumps Pre School,400008
WARRINGTON BOROUGH COUNCIL,http://opendatacommunities.org/id/unitary-authority/warrington ,FWB,DSG Early Years PVI Settings,32417,Private & Voluntary 4 Year Olds,470150,10-Jun-16,1900201659,1847.00,Locking Stumps Pre School,400008
WARRINGTON BOROUGH COUNCIL,http://opendatacommunities.org/id/unitary-authority/warrington ,FWB,SEN Grants,32057,Payment of Grants,470050,22-Jun-16,1900202825,547.00,Locking Stumps Pre School,400008
WARRINGTON BOROUGH COUNCIL,http://opendatacommunities.org/id/unitary-authority/warrington ,RSC,Postal & Courier Services,52130,Postages,450000,07-Jun-16,1900201296,2000.00,Logistex Express Ltd,100946
WARRINGTON BOROUGH COUNCIL,http://opendatacommunities.org/id/unitary-authority/warrington ,FWB,Care Purchase Budget,54490,CP ExternalOther Exp,440800,03-Jun-16,1900201100,11052.00,London & Manchester Healthcare Ltd,109185
WARRINGTON BOROUGH COUNCIL,http://opendatacommunities.org/id/unitary-authority/warrington ,FWB,Care Purchase Budget,54490,CP ExternalOther Exp,440800,21-Jun-16,1900202221,70000.00,London & Manchester Healthcare Ltd,109185
WARRINGTON BOROUGH COUNCIL,http://opendatacommunities.org/id/unitary-authority/warrington ,FWB,DSG Early Years PVI Settings,32417,Private & Voluntary 3 Year Olds,470100,10-Jun-16,1900201563,3498.00,Lymm Village Preschool,400146
WARRINGTON BOROUGH COUNCIL,http://opendatacommunities.org/id/unitary-authority/warrington ,FWB,DSG Early Years PVI Settings,32417,Private & Voluntary 4 Year Olds,470150,10-Jun-16,1900201660,2034.00,Lymm Village Preschool,400146
WARRINGTON BOROUGH COUNCIL,http://opendatacommunities.org/id/unitary-authority/warrington ,FWB,DSG Early Years PVI Settings,32417,Private & Voluntary 3 Year Olds,470100,10-Jun-16,1900201565,2618.00,Lynton Private Day Nursery,400003
WARRINGTON BOROUGH COUNCIL,http://opendatacommunities.org/id/unitary-authority/warrington ,FWB,DSG Early Years PVI Settings,32417,Private & Voluntary 4 Year Olds,470150,10-Jun-16,1900201662,1086.00,Lynton Private Day Nursery,400003
WARRINGTON BOROUGH COUNCIL,http://opendatacommunities.org/id/unitary-authority/warrington ,EE0,Estates & Valuation,43520,Agency Supply ,180000,17-Jun-16,1900202112,781.00,Macdonald And Company,100697
WARRINGTON BOROUGH COUNCIL,http://opendatacommunities.org/id/unitary-authority/warrington ,EE0,Estates & Valuation,43520,Agency Supply ,180000,22-Jun-16,1900202796,644.00,Macdonald And Company,100697
WARRINGTON BOROUGH COUNCIL,http://opendatacommunities.org/id/unitary-authority/warrington ,EE0,Estates & Valuation,43520,Agency Supply,180000,31-May-16,1900200959,512.00,Macdonald And Company,100697
WARRINGTON BOROUGH COUNCIL,http://opendatacommunities.org/id/unitary-authority/warrington ,EE0,Estates & Valuation,43520,Agency Supply,180000,17-Jun-16,1900202098,512.00,Macdonald And Company,100697
WARRINGTON BOROUGH COUNCIL,http://opendatacommunities.org/id/unitary-authority/warrington ,EE0,Estates & Valuation,43520,Agency Supply ,180000,17-Jun-16,1900202107,781.00,Macdonald And Company,100697
WARRINGTON BOROUGH COUNCIL,http://opendatacommunities.org/id/unitary-authority/warrington ,EE0,Estates & Valuation,43520,Agency Supply ,180000,17-Jun-16,1900202106,512.00,Macdonald And Company,100697
WARRINGTON BOROUGH COUNCIL,http://opendatacommunities.org/id/unitary-authority/warrington ,EE0,Estates & Valuation,43520,Agency Supply ,180000,22-Jun-16,1900202797,977.00,Macdonald And Company,100697
WARRINGTON BOROUGH COUNCIL,http://opendatacommunities.org/id/unitary-authority/warrington ,EE0,Estates & Valuation,43520,Agency Supply,180000,22-Jun-16,1900202799,1250.00,Macdonald And Company,100697
WARRINGTON BOROUGH COUNCIL,http://opendatacommunities.org/id/unitary-authority/warrington ,FWB,Older Peoples North Team,54422,CP-Domicil.External,440950,16-Jun-16,1900202047,1817.00,Macintyre Care,104907
WARRINGTON BOROUGH COUNCIL,http://opendatacommunities.org/id/unitary-authority/warrington ,FWB,Care Purchase - Learning Disability,54450,CP-Domicil.External,440950,16-Jun-16,1900202047,112253.00,Macintyre Care,104907
WARRINGTON BOROUGH COUNCIL,http://opendatacommunities.org/id/unitary-authority/warrington ,FWB,Care Purchase - Learning Disability,54450,Supporting People - External,441250,16-Jun-16,1900202047,25780.00,Macintyre Care,104907
WARRINGTON BOROUGH COUNCIL,http://opendatacommunities.org/id/unitary-authority/warrington ,FWB,Care Purchase Budget,54490,Voids,515150,16-Jun-16,1900202047,3373.00,Macintyre Care,104907
WARRINGTON BOROUGH COUNCIL,http://opendatacommunities.org/id/unitary-authority/warrington ,FWB,Child Disability,32212,CP-Domicil.External,440950,01-Jun-16,1900201004,1605.00,Macintyre Care,104907
WARRINGTON BOROUGH COUNCIL,http://opendatacommunities.org/id/unitary-authority/warrington ,FWB,Care Purchase Central Team,54050,CP-Domicil.External,440950,24-Jun-16,1900202974,18279.00,Macintyre Care,104907
WARRINGTON BOROUGH COUNCIL,http://opendatacommunities.org/id/unitary-authority/warrington ,FWB,Care Purchase - Learning Disability,54450,CP-Day Care-External,441100,07-Jun-16,1900201262,3375.00,Macintyre Care,104907
WARRINGTON BOROUGH COUNCIL,http://opendatacommunities.org/id/unitary-authority/warrington ,FWB,Care Purchase - Learning Disability,54450,CP-Day Care-External,441100,07-Jun-16,1900201263,3375.00,Macintyre Care,104907
WARRINGTON BOROUGH COUNCIL,http://opendatacommunities.org/id/unitary-authority/warrington ,FWB,Care Purchase - Learning Disability,54450,CP-Domicil.External,440950,07-Jun-16,1900201257,6005.00,Macintyre Care,104907
WARRINGTON BOROUGH COUNCIL,http://opendatacommunities.org/id/unitary-authority/warrington ,FWB,Care Purchase - Learning Disability,54450,CP-Domicil.External,440950,07-Jun-16,1900201258,17782.00,Macintyre Care,104907
WARRINGTON BOROUGH COUNCIL,http://opendatacommunities.org/id/unitary-authority/warrington ,FWB,Care Purchase - Learning Disability,54450,CP-Domicil.External,440950,07-Jun-16,1900201266,1224.00,Macintyre Care,104907
WARRINGTON BOROUGH COUNCIL,http://opendatacommunities.org/id/unitary-authority/warrington ,FWB,Care Purchase - Learning Disability,54450,CP-Domicil.External,440950,07-Jun-16,1900201267,924.00,Macintyre Care,104907
WARRINGTON BOROUGH COUNCIL,http://opendatacommunities.org/id/unitary-authority/warrington ,FWB,Care Purchase - Learning Disability,54450,CP-LongStayExternal,441150,02-Jun-16,1900201051,5076.00,Macintyre Care,104907
WARRINGTON BOROUGH COUNCIL,http://opendatacommunities.org/id/unitary-authority/warrington ,FWB,Care Purchase - Learning Disability,54450,CP-Day Care-External,441100,03-Jun-16,1900201112,16423.00,Macintyre Care,104907
WARRINGTON BOROUGH COUNCIL,http://opendatacommunities.org/id/unitary-authority/warrington ,FWB,Care Purchase Central Team,54050,CP-LongStayExternal,441150,20-Jun-16,1900202158,5076.00,Macintyre Care,104907
WARRINGTON BOROUGH COUNCIL,http://opendatacommunities.org/id/unitary-authority/warrington ,FWB,Care Purchase West Team,54080,CP-Day Care-External,441100,27-Jun-16,1900203029,4395.00,Macintyre Care,104907
WARRINGTON BOROUGH COUNCIL,http://opendatacommunities.org/id/unitary-authority/warrington ,FWB,Care Purchase East Team,54060,CP-Day Care-External,441100,27-Jun-16,1900203029,4164.00,Macintyre Care,104907
WARRINGTON BOROUGH COUNCIL,http://opendatacommunities.org/id/unitary-authority/warrington ,FWB,Care Purchase South Team,54070,CP-Day Care-External,441100,27-Jun-16,1900203029,2236.00,Macintyre Care,104907
WARRINGTON BOROUGH COUNCIL,http://opendatacommunities.org/id/unitary-authority/warrington ,FWB,Care Purchase Central Team,54050,CP-Day Care-External,441100,27-Jun-16,1900203029,2130.00,Macintyre Care,104907
WARRINGTON BOROUGH COUNCIL,http://opendatacommunities.org/id/unitary-authority/warrington ,FWB,Care Purchase Budget,54490,Voids,515150,27-Jun-16,1900203029,3496.00,Macintyre Care,104907
WARRINGTON BOROUGH COUNCIL,http://opendatacommunities.org/id/unitary-authority/warrington ,EE0,Fair Trading & Investigations,41500,Consult.& Prof. Serv,440000,10-Jun-16,1900201459,1250.00,MAH Legal,113285
WARRINGTON BOROUGH COUNCIL,http://opendatacommunities.org/id/unitary-authority/warrington ,FWB,Care Purchase AMH,54135,CP-Domicil.External,440950,02-Jun-16,1900201046,1014.00,Making Space,104913
WARRINGTON BOROUGH COUNCIL,http://opendatacommunities.org/id/unitary-authority/warrington ,FWB,Care Purchase AMH,54135,CP-Domicil.External,440950,02-Jun-16,1900201057,1116.00,Making Space,104913
WARRINGTON BOROUGH COUNCIL,http://opendatacommunities.org/id/unitary-authority/warrington ,HOL,Single Billing Holding Account,91130,Non BMP General Repairs,200050,14-Jun-16,1900201930,725.00,Manchester Working Limited,105646
WARRINGTON BOROUGH COUNCIL,http://opendatacommunities.org/id/unitary-authority/warrington ,HOL,Single Billing Holding Account,91130,Non BMP General Repairs,200050,14-Jun-16,1900201921,2700.00,Manchester Working Limited,105646
WARRINGTON BOROUGH COUNCIL,http://opendatacommunities.org/id/unitary-authority/warrington ,HOL,Single Billing Holding Account,91130,Non BMP General Repairs,200050,14-Jun-16,1900201915,958.00,Manchester Working Limited,105646
WARRINGTON BOROUGH COUNCIL,http://opendatacommunities.org/id/unitary-authority/warrington ,HOL,Single Billing Holding Account,91130,Non BMP General Repairs,200050,29-Jun-16,1900203188,728.00,Manchester Working Limited,105646
WARRINGTON BOROUGH COUNCIL,http://opendatacommunities.org/id/unitary-authority/warrington ,HOL,Single Billing Holding Account,91130,Non BMP General Repairs,200050,29-Jun-16,1900203189,1387.00,Manchester Working Limited,105646
WARRINGTON BOROUGH COUNCIL,http://opendatacommunities.org/id/unitary-authority/warrington ,HOL,Single Billing Holding Account,91130,Non BMP General Repairs,200050,29-Jun-16,1900203195,967.00,Manchester Working Limited,105646
WARRINGTON BOROUGH COUNCIL,http://opendatacommunities.org/id/unitary-authority/warrington ,HOL,Single Billing Holding Account,91130,Non BMP General Repairs,200050,29-Jun-16,1900203187,5200.00,Manchester Working Limited,105646
WARRINGTON BOROUGH COUNCIL,http://opendatacommunities.org/id/unitary-authority/warrington ,HOL,Single Billing Holding Account,91130,Specific Work,200200,14-Jun-16,1900201929,11280.00,Manchester Working Limited,105646
WARRINGTON BOROUGH COUNCIL,http://opendatacommunities.org/id/unitary-authority/warrington ,HOL,Single Billing Holding Account,91130,Specific Work,200200,14-Jun-16,1900201917,6559.00,Manchester Working Limited,105646
WARRINGTON BOROUGH COUNCIL,http://opendatacommunities.org/id/unitary-authority/warrington ,HOL,Single Billing Holding Account,91130,Specific Work,200200,29-Jun-16,1900203192,6060.00,Manchester Working Limited,105646
WARRINGTON BOROUGH COUNCIL,http://opendatacommunities.org/id/unitary-authority/warrington ,HOL,Single Billing Holding Account,91130,Specific Work,200200,14-Jun-16,1900201927,1097.00,Manchester Working Limited,105646
WARRINGTON BOROUGH COUNCIL,http://opendatacommunities.org/id/unitary-authority/warrington ,HOL,Single Billing Holding Account,91130,Specific Work,200200,14-Jun-16,1900201926,7231.00,Manchester Working Limited,105646
WARRINGTON BOROUGH COUNCIL,http://opendatacommunities.org/id/unitary-authority/warrington ,HOL,Single Billing Holding Account,91130,Specific Work,200200,14-Jun-16,1900201923,692.00,Manchester Working Limited,105646
WARRINGTON BOROUGH COUNCIL,http://opendatacommunities.org/id/unitary-authority/warrington ,HOL,Single Billing Holding Account,91130,Specific Work,200200,14-Jun-16,1900201928,1915.00,Manchester Working Limited,105646
WARRINGTON BOROUGH COUNCIL,http://opendatacommunities.org/id/unitary-authority/warrington ,HOL,Single Billing Holding Account,91130,Specific Work,200200,14-Jun-16,1900201918,1006.00,Manchester Working Limited,105646
WARRINGTON BOROUGH COUNCIL,http://opendatacommunities.org/id/unitary-authority/warrington ,HOL,Single Billing Holding Account,91130,Specific Work,200200,14-Jun-16,1900201920,8931.00,Manchester Working Limited,105646
WARRINGTON BOROUGH COUNCIL,http://opendatacommunities.org/id/unitary-authority/warrington ,HOL,Single Billing Holding Account,91130,Specific Work,200200,14-Jun-16,1900201916,3829.00,Manchester Working Limited,105646
WARRINGTON BOROUGH COUNCIL,http://opendatacommunities.org/id/unitary-authority/warrington ,HOL,Single Billing Holding Account,91130,Specific Work,200200,29-Jun-16,1900203193,3874.00,Manchester Working Limited,105646
WARRINGTON BOROUGH COUNCIL,http://opendatacommunities.org/id/unitary-authority/warrington ,HOL,Single Billing Holding Account,91130,Specific Work,200200,29-Jun-16,1900203196,1948.00,Manchester Working Limited,105646
WARRINGTON BOROUGH COUNCIL,http://opendatacommunities.org/id/unitary-authority/warrington ,HOL,Single Billing Holding Account,91130,Specific Work,200200,29-Jun-16,1900203191,1698.00,Manchester Working Limited,105646
WARRINGTON BOROUGH COUNCIL,http://opendatacommunities.org/id/unitary-authority/warrington ,HOL,Single Billing Holding Account,91130,Specific Work,200200,29-Jun-16,1900203190,7414.00,Manchester Working Limited,105646
WARRINGTON BOROUGH COUNCIL,http://opendatacommunities.org/id/unitary-authority/warrington ,HOL,Single Billing Holding Account,91130,Specific Work,200200,29-Jun-16,1900203194,634.00,Manchester Working Limited,105646
WARRINGTON BOROUGH COUNCIL,http://opendatacommunities.org/id/unitary-authority/warrington ,FWB,Care Purchase East Team,54060,CP-LongStayExternal,441150,21-Jun-16,1900202312,3684.00,Manor Care Centre,103831
WARRINGTON BOROUGH COUNCIL,http://opendatacommunities.org/id/unitary-authority/warrington ,CYP,Childrens Other,81004,Specific Work,200200,15-Jun-16,1900202000,2091.00,Maple Leaf Designs,105480
WARRINGTON BOROUGH COUNCIL,http://opendatacommunities.org/id/unitary-authority/warrington ,COR,Debt Management Expenses,62080,Consult.& Prof. Serv,440000,14-Jun-16,1900201836,8508.00,Martin Brokers UK Ltd,112393
WARRINGTON BOROUGH COUNCIL,http://opendatacommunities.org/id/unitary-authority/warrington ,FWB,Care Purchase Central Team,54050,CP-Domicil.External,440950,24-Jun-16,1900202975,19772.00,Mayfield Home Care Agency,104928
WARRINGTON BOROUGH COUNCIL,http://opendatacommunities.org/id/unitary-authority/warrington ,FWB,Care Purchase South Team,54070,CP-Domicil.External,440950,24-Jun-16,1900202975,11372.00,Mayfield Home Care Agency,104928
WARRINGTON BOROUGH COUNCIL,http://opendatacommunities.org/id/unitary-authority/warrington ,FWB,Care Purchase West Team,54080,CP-Domicil.External,440950,24-Jun-16,1900202975,9396.00,Mayfield Home Care Agency,104928
WARRINGTON BOROUGH COUNCIL,http://opendatacommunities.org/id/unitary-authority/warrington ,FWB,Care Purchase East Team,54060,CP-Domicil.External,440950,24-Jun-16,1900202975,5090.00,Mayfield Home Care Agency,104928
WARRINGTON BOROUGH COUNCIL,http://opendatacommunities.org/id/unitary-authority/warrington ,FWB,Care Purchase East Team,54060,Supporting People - External,441250,24-Jun-16,1900202975,728.00,Mayfield Home Care Agency,104928
WARRINGTON BOROUGH COUNCIL,http://opendatacommunities.org/id/unitary-authority/warrington ,FWB,Care Purchase Budget,54490,CP - Cont Care - External,441350,24-Jun-16,1900202975,2516.00,Mayfield Home Care Agency,104928
WARRINGTON BOROUGH COUNCIL,http://opendatacommunities.org/id/unitary-authority/warrington ,FWB,Care Purchase Central Team,54050,CP-LongStayExternal,441150,20-Jun-16,1900202156,7470.00,Mental Health Care UK Ltd,114128
WARRINGTON BOROUGH COUNCIL,http://opendatacommunities.org/id/unitary-authority/warrington ,RSC,Coroners Service,11100,Hire Of Mortuaries,220200,13-Jun-16,1900201814,4598.00,Mid Cheshire Hospitals,440149
WARRINGTON BOROUGH COUNCIL,http://opendatacommunities.org/id/unitary-authority/warrington ,FWB,Care Purchase East Team,54060,CP-Day Care-External,441100,24-Jun-16,1900202976,2160.00,Midstream West Lanc Ltd,108365
WARRINGTON BOROUGH COUNCIL,http://opendatacommunities.org/id/unitary-authority/warrington ,FWB,Care Purchase East Team,54060,CP-Day Care-External,441100,20-Jun-16,1900202153,540.00,Midstream West Lanc Ltd,108365
WARRINGTON BOROUGH COUNCIL,http://opendatacommunities.org/id/unitary-authority/warrington ,FWB,Care Purchase Budget,54490,CP ExternalOther Exp,440800,20-Jun-16,1900202154,19550.00,Minster Care Management Ltd,105179
WARRINGTON BOROUGH COUNCIL,http://opendatacommunities.org/id/unitary-authority/warrington ,FWB,Care Purchase Budget,54490,CP ExternalOther Exp,440800,21-Jun-16,1900202193,35000.00,Minster Care Management Ltd,105179
WARRINGTON BOROUGH COUNCIL,http://opendatacommunities.org/id/unitary-authority/warrington ,FWB,Care Purchase Central Team,54050,CP-Domicil.External,440950,27-Jun-16,1900203035,2062.00,M-Power Activity Services Ltd,102186
WARRINGTON BOROUGH COUNCIL,http://opendatacommunities.org/id/unitary-authority/warrington ,FWB,Care Purchase West Team,54080,CP-Domicil.External,440950,27-Jun-16,1900203035,1851.00,M-Power Activity Services Ltd,102186
WARRINGTON BOROUGH COUNCIL,http://opendatacommunities.org/id/unitary-authority/warrington ,FWB,Care Purchase East Team,54060,CP-Domicil.External,440950,27-Jun-16,1900203035,1666.00,M-Power Activity Services Ltd,102186
WARRINGTON BOROUGH COUNCIL,http://opendatacommunities.org/id/unitary-authority/warrington ,FWB,Care Purchase South Team,54070,CP-Domicil.External,440950,27-Jun-16,1900203035,1560.00,M-Power Activity Services Ltd,102186
WARRINGTON BOROUGH COUNCIL,http://opendatacommunities.org/id/unitary-authority/warrington ,FWB,Care Purchase - Learning Disability,54450,CP-Domicil.External,440950,03-Jun-16,1900201102,7152.00,M-Power Activity Services Ltd,102186
WARRINGTON BOROUGH COUNCIL,http://opendatacommunities.org/id/unitary-authority/warrington ,NEO,Neighbourhood & Community Other,83002,Consult.& Prof. Serv,440000,10-Jun-16,1900201461,1625.00,Mpulse Ltd,101462
WARRINGTON BOROUGH COUNCIL,http://opendatacommunities.org/id/unitary-authority/warrington ,PIO,People & Improvement Other,85002,Consult.& Prof. Serv,440000,10-Jun-16,1900201460,12501.00,Mpulse Ltd,101462
WARRINGTON BOROUGH COUNCIL,http://opendatacommunities.org/id/unitary-authority/warrington ,ENO,Housing Projects,82008,Disabled Persons Grant 1996,554000,22-Jun-16,1900202852,744.00,Muir Housing Association Ltd,100053
WARRINGTON BOROUGH COUNCIL,http://opendatacommunities.org/id/unitary-authority/warrington ,ENO,Housing Projects,82008,Disabled Persons Grant 1996,554000,17-Jun-16,1900202095,716.00,Muir Housing Association Ltd,100053
WARRINGTON BOROUGH COUNCIL,http://opendatacommunities.org/id/unitary-authority/warrington ,FWB,Care Purchase AMH,54135,CP-Domicil.External,440950,02-Jun-16,1900201054,720.00,My Space Housing Solutions,113559
WARRINGTON BOROUGH COUNCIL,http://opendatacommunities.org/id/unitary-authority/warrington ,FWB,Care Purchase AMH,54135,Supporting People - External,441250,02-Jun-16,1900201054,864.00,My Space Housing Solutions,113559
WARRINGTON BOROUGH COUNCIL,http://opendatacommunities.org/id/unitary-authority/warrington ,EE0,Markets,43711,Resaleables,400600,10-Jun-16,1900201463,2489.00,National Express Ltd,104957
WARRINGTON BOROUGH COUNCIL,http://opendatacommunities.org/id/unitary-authority/warrington ,RSC,Legal Services,11200,Training,190150,22-Jun-16,1900202824,750.00,Nelsons Solicitors,115429
WARRINGTON BOROUGH COUNCIL,http://opendatacommunities.org/id/unitary-authority/warrington ,RSC,Postal & Courier Services,52130,Postages,450000,22-Jun-16,1900202894,1054.00,Neopost Finance Ltd Supplies/Top up,100694
WARRINGTON BOROUGH COUNCIL,http://opendatacommunities.org/id/unitary-authority/warrington ,RSC,Postal & Courier Services,52130,Postages,450000,27-Jun-16,1900203051,49000.00,Neopost Finance Ltd Supplies/Top up,100694
WARRINGTON BOROUGH COUNCIL,http://opendatacommunities.org/id/unitary-authority/warrington ,FWB,DSG Early Years PVI Settings,32417,Private & Voluntary 3 Year Olds,470100,10-Jun-16,1900201569,1121.00,Nest in the Woods,114678
WARRINGTON BOROUGH COUNCIL,http://opendatacommunities.org/id/unitary-authority/warrington ,FWB,DSG Early Years PVI Settings,32417,Private & Voluntary 4 Year Olds,470150,10-Jun-16,1900201663,1634.00,Nest in the Woods,114678
WARRINGTON BOROUGH COUNCIL,http://opendatacommunities.org/id/unitary-authority/warrington ,FWB,Care Purchase South Team,54070,CP-LongStayExternal,441150,21-Jun-16,1900202313,2000.00,Nethermoor House Ltd,114660
WARRINGTON BOROUGH COUNCIL,http://opendatacommunities.org/id/unitary-authority/warrington ,COR,Debt Management Expenses,62080,Consult.& Prof. Serv,440000,23-Jun-16,1900202937,12463.00,Newchurch Pre-School Limited,400148
WARRINGTON BOROUGH COUNCIL,http://opendatacommunities.org/id/unitary-authority/warrington ,FWB,DSG 2 Year Old Fund,31601,Payment of Grants,470050,23-Jun-16,1900202941,1091.00,Newchurch Pre-School Limited,400148
WARRINGTON BOROUGH COUNCIL,http://opendatacommunities.org/id/unitary-authority/warrington ,FWB,DSG Early Years PVI Settings,32417,Private & Voluntary 3 Year Olds,470100,23-Jun-16,1900202941,1406.00,Newchurch Pre-School Limited,400148
WARRINGTON BOROUGH COUNCIL,http://opendatacommunities.org/id/unitary-authority/warrington ,FWB,DSG Early Years PVI Settings,32417,Private & Voluntary 4 Year Olds,470150,23-Jun-16,1900202941,1336.00,Newchurch Pre-School Limited,400148
WARRINGTON BOROUGH COUNCIL,http://opendatacommunities.org/id/unitary-authority/warrington ,FWB,Care Purchase Central Team,54050,CP-Domicil.External,440950,20-Jun-16,1900202164,23079.00,Next Stage A Way Forward Ltd,101217
WARRINGTON BOROUGH COUNCIL,http://opendatacommunities.org/id/unitary-authority/warrington ,FWB,Care Purchase West Team,54080,CP-Domicil.External,440950,20-Jun-16,1900202164,18759.00,Next Stage A Way Forward Ltd,101217
WARRINGTON BOROUGH COUNCIL,http://opendatacommunities.org/id/unitary-authority/warrington ,FWB,Care Purchase East Team,54060,CP-Domicil.External,440950,20-Jun-16,1900202164,7666.00,Next Stage A Way Forward Ltd,101217
WARRINGTON BOROUGH COUNCIL,http://opendatacommunities.org/id/unitary-authority/warrington ,FWB,Care Purchase South Team,54070,CP-Domicil.External,440950,20-Jun-16,1900202164,647.00,Next Stage A Way Forward Ltd,101217
WARRINGTON BOROUGH COUNCIL,http://opendatacommunities.org/id/unitary-authority/warrington ,FWB,Care Purchase Budget,54490,CP - Cont Care - External,441350,20-Jun-16,1900202164,1437.00,Next Stage A Way Forward Ltd,101217
WARRINGTON BOROUGH COUNCIL,http://opendatacommunities.org/id/unitary-authority/warrington ,COR,Car Leasing Scheme - Salary Sacrifice,52126,Car Leasing Charges,350000,01-Jun-16,1900201017,4342.00,NHS Foundation Trust,110359
WARRINGTON BOROUGH COUNCIL,http://opendatacommunities.org/id/unitary-authority/warrington ,COR,Car Leasing Scheme - Salary Sacrifice,52126,Car Leasing Charges,350000,01-Jun-16,1900201017,602.00,NHS Foundation Trust,110359
WARRINGTON BOROUGH COUNCIL,http://opendatacommunities.org/id/unitary-authority/warrington ,COR,Car Leasing Scheme - Salary Sacrifice,52126,Car Leasing Charges,350000,01-Jun-16,1900201015,5597.00,NHS Foundation Trust,110359
WARRINGTON BOROUGH COUNCIL,http://opendatacommunities.org/id/unitary-authority/warrington ,COR,Car Leasing Scheme - Salary Sacrifice,52126,Car Leasing Charges,350000,01-Jun-16,1900201015,820.00,NHS Foundation Trust,110359
WARRINGTON BOROUGH COUNCIL,http://opendatacommunities.org/id/unitary-authority/warrington ,COR,Car Leasing Scheme - Salary Sacrifice,52126,Car Leasing Charges,350000,01-Jun-16,1900201021,2466.00,NHS Foundation Trust,110359
WARRINGTON BOROUGH COUNCIL,http://opendatacommunities.org/id/unitary-authority/warrington ,COR,Car Leasing Scheme - Salary Sacrifice,52126,Car Leasing Charges,350000,01-Jun-16,1900201021,739.00,NHS Foundation Trust,110359
WARRINGTON BOROUGH COUNCIL,http://opendatacommunities.org/id/unitary-authority/warrington ,COR,Car Leasing Scheme - Salary Sacrifice,52126,Car Leasing Charges,350000,01-Jun-16,1900201012,2460.00,NHS Foundation Trust,110359
WARRINGTON BOROUGH COUNCIL,http://opendatacommunities.org/id/unitary-authority/warrington ,COR,Car Leasing Scheme - Salary Sacrifice,52126,Car Leasing Charges,350000,01-Jun-16,1900201012,739.00,NHS Foundation Trust,110359
WARRINGTON BOROUGH COUNCIL,http://opendatacommunities.org/id/unitary-authority/warrington ,COR,Car Leasing Scheme - Salary Sacrifice,52126,Car Leasing Charges,350000,01-Jun-16,1900200982,2845.00,NHS Foundation Trust,110359
WARRINGTON BOROUGH COUNCIL,http://opendatacommunities.org/id/unitary-authority/warrington ,COR,Car Leasing Scheme - Salary Sacrifice,52126,Car Leasing Charges,350000,01-Jun-16,1900200982,739.00,NHS Foundation Trust,110359
WARRINGTON BOROUGH COUNCIL,http://opendatacommunities.org/id/unitary-authority/warrington ,COR,Car Leasing Scheme - Salary Sacrifice,52126,Car Leasing Charges,350000,01-Jun-16,1900201018,3011.00,NHS Foundation Trust,110359
WARRINGTON BOROUGH COUNCIL,http://opendatacommunities.org/id/unitary-authority/warrington ,COR,Car Leasing Scheme - Salary Sacrifice,52126,Car Leasing Charges,350000,01-Jun-16,1900201018,739.00,NHS Foundation Trust,110359
WARRINGTON BOROUGH COUNCIL,http://opendatacommunities.org/id/unitary-authority/warrington ,COR,Car Leasing Scheme - Salary Sacrifice,52126,Car Leasing Charges,350000,28-Jun-16,1900203067,4308.00,NHS Foundation Trust,110359
WARRINGTON BOROUGH COUNCIL,http://opendatacommunities.org/id/unitary-authority/warrington ,COR,Car Leasing Scheme - Salary Sacrifice,52126,Car Leasing Charges,350000,28-Jun-16,1900203067,739.00,NHS Foundation Trust,110359
WARRINGTON BOROUGH COUNCIL,http://opendatacommunities.org/id/unitary-authority/warrington ,COR,Car Leasing Scheme - Salary Sacrifice,52126,Car Leasing Charges,350000,01-Jun-16,1900201014,2896.00,NHS Foundation Trust,110359
WARRINGTON BOROUGH COUNCIL,http://opendatacommunities.org/id/unitary-authority/warrington ,COR,Car Leasing Scheme - Salary Sacrifice,52126,Car Leasing Charges,350000,01-Jun-16,1900201014,739.00,NHS Foundation Trust,110359
WARRINGTON BOROUGH COUNCIL,http://opendatacommunities.org/id/unitary-authority/warrington ,COR,Car Leasing Scheme - Salary Sacrifice,52126,Car Leasing Charges,350000,01-Jun-16,1900201013,4878.00,NHS Foundation Trust,110359
WARRINGTON BOROUGH COUNCIL,http://opendatacommunities.org/id/unitary-authority/warrington ,COR,Car Leasing Scheme - Salary Sacrifice,52126,Car Leasing Charges,350000,01-Jun-16,1900201013,739.00,NHS Foundation Trust,110359
WARRINGTON BOROUGH COUNCIL,http://opendatacommunities.org/id/unitary-authority/warrington ,COR,Car Leasing Scheme - Salary Sacrifice,52126,Car Leasing Charges,350000,14-Jun-16,1900201963,4542.00,NHS Foundation Trust,110359
WARRINGTON BOROUGH COUNCIL,http://opendatacommunities.org/id/unitary-authority/warrington ,COR,Car Leasing Scheme - Salary Sacrifice,52126,Car Leasing Charges,350000,14-Jun-16,1900201963,820.00,NHS Foundation Trust,110359
WARRINGTON BOROUGH COUNCIL,http://opendatacommunities.org/id/unitary-authority/warrington ,COR,Car Leasing Scheme - Salary Sacrifice,52126,Car Leasing Charges,350000,15-Jun-16,1900201967,4926.00,NHS Foundation Trust,110359
WARRINGTON BOROUGH COUNCIL,http://opendatacommunities.org/id/unitary-authority/warrington ,COR,Car Leasing Scheme - Salary Sacrifice,52126,Car Leasing Charges,350000,15-Jun-16,1900201967,820.00,NHS Foundation Trust,110359
WARRINGTON BOROUGH COUNCIL,http://opendatacommunities.org/id/unitary-authority/warrington ,COR,Car Leasing Scheme - Salary Sacrifice,52126,Car Leasing Charges,350000,14-Jun-16,1900201962,5087.00,NHS Foundation Trust,110359
WARRINGTON BOROUGH COUNCIL,http://opendatacommunities.org/id/unitary-authority/warrington ,COR,Car Leasing Scheme - Salary Sacrifice,52126,Car Leasing Charges,350000,14-Jun-16,1900201962,795.00,NHS Foundation Trust,110359
WARRINGTON BOROUGH COUNCIL,http://opendatacommunities.org/id/unitary-authority/warrington ,COR,Car Leasing Scheme - Salary Sacrifice,52126,Car Leasing Charges,350000,14-Jun-16,1900201962,509.00,NHS Foundation Trust,110359
WARRINGTON BOROUGH COUNCIL,http://opendatacommunities.org/id/unitary-authority/warrington ,COR,Car Leasing Scheme - Salary Sacrifice,52126,Car Leasing Charges,350000,14-Jun-16,1900201961,2247.00,NHS Foundation Trust,110359
WARRINGTON BOROUGH COUNCIL,http://opendatacommunities.org/id/unitary-authority/warrington ,COR,Car Leasing Scheme - Salary Sacrifice,52126,Car Leasing Charges,350000,14-Jun-16,1900201961,795.00,NHS Foundation Trust,110359
WARRINGTON BOROUGH COUNCIL,http://opendatacommunities.org/id/unitary-authority/warrington ,COR,Car Leasing Scheme - Salary Sacrifice,52126,Car Leasing Charges,350000,15-Jun-16,1900201968,4894.00,NHS Foundation Trust,110359
WARRINGTON BOROUGH COUNCIL,http://opendatacommunities.org/id/unitary-authority/warrington ,COR,Car Leasing Scheme - Salary Sacrifice,52126,Car Leasing Charges,350000,15-Jun-16,1900201968,795.00,NHS Foundation Trust,110359
WARRINGTON BOROUGH COUNCIL,http://opendatacommunities.org/id/unitary-authority/warrington ,COR,Car Leasing Scheme - Salary Sacrifice,52126,Car Leasing Charges,350000,14-Jun-16,1900201964,3703.00,NHS Foundation Trust,110359
WARRINGTON BOROUGH COUNCIL,http://opendatacommunities.org/id/unitary-authority/warrington ,COR,Car Leasing Scheme - Salary Sacrifice,52126,Car Leasing Charges,350000,14-Jun-16,1900201964,795.00,NHS Foundation Trust,110359
WARRINGTON BOROUGH COUNCIL,http://opendatacommunities.org/id/unitary-authority/warrington ,COR,Car Leasing Scheme - Salary Sacrifice,52126,Car Leasing Charges,350000,14-Jun-16,1900201965,3991.00,NHS Foundation Trust,110359
WARRINGTON BOROUGH COUNCIL,http://opendatacommunities.org/id/unitary-authority/warrington ,COR,Car Leasing Scheme - Salary Sacrifice,52126,Car Leasing Charges,350000,14-Jun-16,1900201965,795.00,NHS Foundation Trust,110359
WARRINGTON BOROUGH COUNCIL,http://opendatacommunities.org/id/unitary-authority/warrington ,COR,Car Leasing Scheme - Salary Sacrifice,52126,Car Leasing Charges,350000,15-Jun-16,1900201966,4614.00,NHS Foundation Trust,110359
WARRINGTON BOROUGH COUNCIL,http://opendatacommunities.org/id/unitary-authority/warrington ,COR,Car Leasing Scheme - Salary Sacrifice,52126,Car Leasing Charges,350000,15-Jun-16,1900201966,795.00,NHS Foundation Trust,110359
WARRINGTON BOROUGH COUNCIL,http://opendatacommunities.org/id/unitary-authority/warrington ,COR,Car Leasing Scheme - Salary Sacrifice,52126,Car Leasing Charges,350000,14-Jun-16,1900201956,621.00,NHS Foundation Trust,110359
WARRINGTON BOROUGH COUNCIL,http://opendatacommunities.org/id/unitary-authority/warrington ,COR,Car Leasing Scheme - Salary Sacrifice,52126,Car Leasing Charges,350000,28-Jun-16,1900203122,4701.00,NHS Foundation Trust,110359
WARRINGTON BOROUGH COUNCIL,http://opendatacommunities.org/id/unitary-authority/warrington ,COR,Car Leasing Scheme - Salary Sacrifice,52126,Car Leasing Charges,350000,28-Jun-16,1900203122,795.00,NHS Foundation Trust,110359
WARRINGTON BOROUGH COUNCIL,http://opendatacommunities.org/id/unitary-authority/warrington ,COR,Car Leasing Scheme - Salary Sacrifice,52126,Car Leasing Charges,350000,28-Jun-16,1900203123,5564.00,NHS Foundation Trust,110359
WARRINGTON BOROUGH COUNCIL,http://opendatacommunities.org/id/unitary-authority/warrington ,COR,Car Leasing Scheme - Salary Sacrifice,52126,Car Leasing Charges,350000,28-Jun-16,1900203123,900.00,NHS Foundation Trust,110359
WARRINGTON BOROUGH COUNCIL,http://opendatacommunities.org/id/unitary-authority/warrington ,COR,Car Leasing Scheme - Salary Sacrifice,52126,Car Leasing Charges,350000,28-Jun-16,1900203124,1740.00,NHS Foundation Trust,110359
WARRINGTON BOROUGH COUNCIL,http://opendatacommunities.org/id/unitary-authority/warrington ,COR,Car Leasing Scheme - Salary Sacrifice,52126,Car Leasing Charges,350000,28-Jun-16,1900203124,820.00,NHS Foundation Trust,110359
WARRINGTON BOROUGH COUNCIL,http://opendatacommunities.org/id/unitary-authority/warrington ,FWB,Care Purchase East Team,54060,CP-Domicil.External,440950,16-Jun-16,1900202039,10657.00,Nightingales Homecare Services Agen,104972
WARRINGTON BOROUGH COUNCIL,http://opendatacommunities.org/id/unitary-authority/warrington ,FWB,Care Purchase South Team,54070,CP-Domicil.External,440950,16-Jun-16,1900202039,10613.00,Nightingales Homecare Services Agen,104972
WARRINGTON BOROUGH COUNCIL,http://opendatacommunities.org/id/unitary-authority/warrington ,FWB,Care Purchase Central Team,54050,CP-Domicil.External,440950,16-Jun-16,1900202039,7200.00,Nightingales Homecare Services Agen,104972
WARRINGTON BOROUGH COUNCIL,http://opendatacommunities.org/id/unitary-authority/warrington ,FWB,Care Purchase West Team,54080,CP-Domicil.External,440950,16-Jun-16,1900202039,5526.00,Nightingales Homecare Services Agen,104972
WARRINGTON BOROUGH COUNCIL,http://opendatacommunities.org/id/unitary-authority/warrington ,RSC,HR Advisory,20005,Subscriptions,470000,13-Jun-16,1900201788,18516.00,North West Employers,102754
WARRINGTON BOROUGH COUNCIL,http://opendatacommunities.org/id/unitary-authority/warrington ,EE0,Schools (Street Scene),41733,Materials,400500,17-Jun-16,1900202118,1372.00,North West Timber Treatments Ltd,104979
WARRINGTON BOROUGH COUNCIL,http://opendatacommunities.org/id/unitary-authority/warrington ,FWB,Halton Music Expenditure,32219,Consult.& Prof. Serv,440000,03-Jun-16,1900201132,1623.00,Northern Chamber Orchestra,103752
WARRINGTON BOROUGH COUNCIL,http://opendatacommunities.org/id/unitary-authority/warrington ,FWB,Music Education Grant,32220,Consult.& Prof. Serv,440000,03-Jun-16,1900201132,1082.00,Northern Chamber Orchestra,103752
WARRINGTON BOROUGH COUNCIL,http://opendatacommunities.org/id/unitary-authority/warrington ,EE0,Urban Traffic Management Control,44370,Signal Management,531600,09-Jun-16,1900201438,4057.00,O2,101259
WARRINGTON BOROUGH COUNCIL,http://opendatacommunities.org/id/unitary-authority/warrington ,EE0,Urban Traffic Management Control,44370,Signal Management,531600,08-Jun-16,1900201405,4007.00,O2,101259
WARRINGTON BOROUGH COUNCIL,http://opendatacommunities.org/id/unitary-authority/warrington ,EE0,Urban Traffic Management Control,44370,Signal Management,531600,08-Jun-16,1900201406,4002.00,O2,101259
WARRINGTON BOROUGH COUNCIL,http://opendatacommunities.org/id/unitary-authority/warrington ,EE0,Finance Office Services,42110,Photocopier,430000,23-Jun-16,1900202944,632.00,Oce Uk Ltd Canon Group,111054
WARRINGTON BOROUGH COUNCIL,http://opendatacommunities.org/id/unitary-authority/warrington ,FWB,DSG 2 Year Old Fund,31601,Payment of Grants,470050,10-Jun-16,1900201750,1142.00,Old Hall Pre School,400017
WARRINGTON BOROUGH COUNCIL,http://opendatacommunities.org/id/unitary-authority/warrington ,FWB,DSG Early Years PVI Settings,32417,Private & Voluntary 3 Year Olds,470100,10-Jun-16,1900201571,2789.00,Old Hall Pre School,400017
WARRINGTON BOROUGH COUNCIL,http://opendatacommunities.org/id/unitary-authority/warrington ,FWB,DSG Early Years PVI Settings,32417,Private & Voluntary 4 Year Olds,470150,10-Jun-16,1900201664,3212.00,Old Hall Pre School,400017
WARRINGTON BOROUGH COUNCIL,http://opendatacommunities.org/id/unitary-authority/warrington ,FWB,Care Purchase Budget,54490,CP ExternalOther Exp,440800,03-Jun-16,1900201123,1764.00,Old Rectory Private Nursing Home,104990
WARRINGTON BOROUGH COUNCIL,http://opendatacommunities.org/id/unitary-authority/warrington ,FWB,Care Purchase Budget,54490,Out of Hours Kennel Fees,440600,21-Jun-16,1900202222,15000.00,Old Rectory Private Nursing Home,104990
WARRINGTON BOROUGH COUNCIL,http://opendatacommunities.org/id/unitary-authority/warrington ,FWB,Care Purchase East Team,54060,CP-Nursing Care-External,441200,24-Jun-16,1900202980,3211.00,Olea Care Ltd (Fernlea),115034
WARRINGTON BOROUGH COUNCIL,http://opendatacommunities.org/id/unitary-authority/warrington ,FWB,Care Purchase South Team,54070,CP-Domicil.External,440950,14-Jun-16,1900201886,512.00,Olive Tree Domiciliary Services Ltd,114940
WARRINGTON BOROUGH COUNCIL,http://opendatacommunities.org/id/unitary-authority/warrington ,FWB,Care Purchase Central Team,54050,CP-LongStayExternal,441150,14-Jun-16,1900201884,1700.00,Orchard Care Homes,102524
WARRINGTON BOROUGH COUNCIL,http://opendatacommunities.org/id/unitary-authority/warrington ,FWB,Care Purchase Budget,54490,CP ExternalOther Exp,440800,21-Jun-16,1900202224,130000.00,Orchard Care Homes Limited (Green P,114976
WARRINGTON BOROUGH COUNCIL,http://opendatacommunities.org/id/unitary-authority/warrington ,FWB,Care Purchase Budget,54490,CP ExternalOther Exp,440800,21-Jun-16,1900202223,80000.00,Orchard Care Homes Ltd (Three bridg,115239
WARRINGTON BOROUGH COUNCIL,http://opendatacommunities.org/id/unitary-authority/warrington ,FWB,Care Purchase Central Team,54050,CP-LongStayExternal,441150,14-Jun-16,1900201885,2825.00,Orchard Care Homes.Com2 LTD,115255
WARRINGTON BOROUGH COUNCIL,http://opendatacommunities.org/id/unitary-authority/warrington ,FWB,DAT Pooled Budget,53860,Drug Action,443600,17-Jun-16,1900202076,724.00,Orford Pharmacy,101867
WARRINGTON BOROUGH COUNCIL,http://opendatacommunities.org/id/unitary-authority/warrington ,FWB,Contracts - SM Commissioning Team 2,55920,Public Health Contract Payments,540000,07-Jun-16,1900201310,635.00,Orford Pharmacy,101867
WARRINGTON BOROUGH COUNCIL,http://opendatacommunities.org/id/unitary-authority/warrington ,FWB,Solar,63623,Equipment Purchase & Contract,400000,22-Jun-16,1900202805,13778.00,Orsis UK Ltd,112365
WARRINGTON BOROUGH COUNCIL,http://opendatacommunities.org/id/unitary-authority/warrington ,FWB,DSG Early Years PVI Settings,32417,Private & Voluntary 3 Year Olds,470100,10-Jun-16,1900201573,3458.00,Oughtrington Pre-School,400044
WARRINGTON BOROUGH COUNCIL,http://opendatacommunities.org/id/unitary-authority/warrington ,FWB,DSG Early Years PVI Settings,32417,Private & Voluntary 4 Year Olds,470150,10-Jun-16,1900201666,2661.00,Oughtrington Pre-School,400044
WARRINGTON BOROUGH COUNCIL,http://opendatacommunities.org/id/unitary-authority/warrington ,COR,Oxygen Finance,60260,Consult.& Prof. Serv,440000,16-Jun-16,1900202051,1358.00,Oxygen Finance Ltd,113784
WARRINGTON BOROUGH COUNCIL,http://opendatacommunities.org/id/unitary-authority/warrington ,COR,Oxygen Finance,60260,Consult.& Prof. Serv,440000,16-Jun-16,1900202052,2060.00,Oxygen Finance Ltd,113784
WARRINGTON BOROUGH COUNCIL,http://opendatacommunities.org/id/unitary-authority/warrington ,FWB,Care Purchase West Team,54080,CP-Domicil.External,440950,28-Jun-16,1900203065,650.00,P S S,105048
WARRINGTON BOROUGH COUNCIL,http://opendatacommunities.org/id/unitary-authority/warrington ,FWB,Care Purchase West Team,54080,CP-LongStayExternal,441150,14-Jun-16,1900201875,4200.00,Partnerships In Care Ltd,103278
WARRINGTON BOROUGH COUNCIL,http://opendatacommunities.org/id/unitary-authority/warrington ,FWB,Care Purchase South Team,54070,CP-Nursing Care-External,441200,14-Jun-16,1900201879,6000.00,Partnerships In Care Ltd,103278
WARRINGTON BOROUGH COUNCIL,http://opendatacommunities.org/id/unitary-authority/warrington ,FWB,Care Purchase South Team,54070,CP-Domicil.External,440950,14-Jun-16,1900201876,2400.00,Partnerships In Care Ltd,103278
WARRINGTON BOROUGH COUNCIL,http://opendatacommunities.org/id/unitary-authority/warrington ,FWB,Care Purchase South Team,54070,CP-Nursing Care-External,441200,14-Jun-16,1900201876,4800.00,Partnerships In Care Ltd,103278
WARRINGTON BOROUGH COUNCIL,http://opendatacommunities.org/id/unitary-authority/warrington ,FWB,Care Purchase West Team,54080,CP-Nursing Care-External,441200,14-Jun-16,1900201883,4800.00,Partnerships In Care Ltd,103278
WARRINGTON BOROUGH COUNCIL,http://opendatacommunities.org/id/unitary-authority/warrington ,FWB,Care Purchase West Team,54080,CP-Nursing Care-External,441200,14-Jun-16,1900201882,4200.00,Partnerships In Care Ltd,103278
WARRINGTON BOROUGH COUNCIL,http://opendatacommunities.org/id/unitary-authority/warrington ,FWB,Care Purchase West Team,54080,CP-Nursing Care-External,441200,14-Jun-16,1900201874,4200.00,Partnerships In Care Ltd,103278
WARRINGTON BOROUGH COUNCIL,http://opendatacommunities.org/id/unitary-authority/warrington ,FWB,Care Purchase Central Team,54050,CP-Nursing Care-External,441200,14-Jun-16,1900201873,9240.00,Partnerships In Care Ltd,103278
WARRINGTON BOROUGH COUNCIL,http://opendatacommunities.org/id/unitary-authority/warrington ,FWB,Care Purchase Central Team,54050,CP-Nursing Care-External,441200,14-Jun-16,1900201878,6600.00,Partnerships In Care Ltd,103278
WARRINGTON BOROUGH COUNCIL,http://opendatacommunities.org/id/unitary-authority/warrington ,FWB,Care Purchase Central Team,54050,CP-Nursing Care-External,441200,14-Jun-16,1900201881,4800.00,Partnerships In Care Ltd,103278
WARRINGTON BOROUGH COUNCIL,http://opendatacommunities.org/id/unitary-authority/warrington ,FWB,Care Purchase East Team,54060,CP-Nursing Care-External,441200,14-Jun-16,1900201880,4200.00,Partnerships In Care Ltd,103278
WARRINGTON BOROUGH COUNCIL,http://opendatacommunities.org/id/unitary-authority/warrington ,FWB,Care Purchase Central Team,54050,CP-Nursing Care-External,441200,14-Jun-16,1900201877,4800.00,Partnerships In Care Ltd,103278
WARRINGTON BOROUGH COUNCIL,http://opendatacommunities.org/id/unitary-authority/warrington ,FWB,Care Purchase Central Team,54050,CP-Domicil.External,440950,22-Jun-16,1900202882,1280.00,Parts 4 Trucks Ltd,111032
WARRINGTON BOROUGH COUNCIL,http://opendatacommunities.org/id/unitary-authority/warrington ,FWB,Care Purchase West Team,54080,CP-LongStayExternal,441150,21-Jun-16,1900202314,2400.00,Peel Moat Harbour Healthcare,114680
WARRINGTON BOROUGH COUNCIL,http://opendatacommunities.org/id/unitary-authority/warrington ,FWB,Care Purchase - Learning Disability,54450,CP-LongStayExternal,441150,02-Jun-16,1900201063,9156.00,Penarth Group,101958
WARRINGTON BOROUGH COUNCIL,http://opendatacommunities.org/id/unitary-authority/warrington ,FWB,Care Purchase East Team,54060,CP-LongStayExternal,441150,24-Jun-16,1900202981,9156.00,Penarth Group,101958
WARRINGTON BOROUGH COUNCIL,http://opendatacommunities.org/id/unitary-authority/warrington ,FWB,Care Purchase West Team,54080,CP-LongStayExternal,441150,21-Jun-16,1900202315,10471.00,Pendleton Care Limited,101213
WARRINGTON BOROUGH COUNCIL,http://opendatacommunities.org/id/unitary-authority/warrington ,CYP,Childrens Other,81004,Specific Work,200200,24-Jun-16,1900202955,2730.00,Pentagon Sport,108264
WARRINGTON BOROUGH COUNCIL,http://opendatacommunities.org/id/unitary-authority/warrington ,CYP,Childrens Other,81004,Specific Work,200200,22-Jun-16,1900202792,9890.00,Pentagon Sport,108264
WARRINGTON BOROUGH COUNCIL,http://opendatacommunities.org/id/unitary-authority/warrington ,CYP,Childrens Other,81004,Specific Work,200200,22-Jun-16,1900202801,1850.00,Pentagon Sport,108264
WARRINGTON BOROUGH COUNCIL,http://opendatacommunities.org/id/unitary-authority/warrington ,CYP,Childrens Other,81004,Specific Work,200200,07-Jun-16,1900201312,3340.00,Pentagon Sport,108264
WARRINGTON BOROUGH COUNCIL,http://opendatacommunities.org/id/unitary-authority/warrington ,CYP,Primary,81001,Specific Work,200200,24-Jun-16,1900202954,3595.00,Pentagon Sport,108264
WARRINGTON BOROUGH COUNCIL,http://opendatacommunities.org/id/unitary-authority/warrington ,FWB,DSG 2 Year Old Fund,31601,Payment of Grants,470050,10-Jun-16,1900201753,1528.00,Play Days Pre-School,400016
WARRINGTON BOROUGH COUNCIL,http://opendatacommunities.org/id/unitary-authority/warrington ,FWB,DSG Early Years PVI Settings,32417,Private & Voluntary 3 Year Olds,470100,10-Jun-16,1900201577,4128.00,Play Days Pre-School,400016
WARRINGTON BOROUGH COUNCIL,http://opendatacommunities.org/id/unitary-authority/warrington ,FWB,DSG Early Years PVI Settings,32417,Private & Voluntary 4 Year Olds,470150,10-Jun-16,1900201668,2466.00,Play Days Pre-School,400016
WARRINGTON BOROUGH COUNCIL,http://opendatacommunities.org/id/unitary-authority/warrington ,FWB,Child Disability,32212,CP-Domicil.External,440950,01-Jun-16,1900201006,2038.00,Playability,110980
WARRINGTON BOROUGH COUNCIL,http://opendatacommunities.org/id/unitary-authority/warrington ,EE0,Transport Holding Account,41311,Road Fund Licences,300200,14-Jun-16,1900201940,2130.00,Post Office Counters Ltd,100004
WARRINGTON BOROUGH COUNCIL,http://opendatacommunities.org/id/unitary-authority/warrington ,FWB,Care Purchase East Team,54060,CP-LongStayExternal,441150,21-Jun-16,1900202317,3508.00,Potens Ltd TA Heath Lodge,102481
WARRINGTON BOROUGH COUNCIL,http://opendatacommunities.org/id/unitary-authority/warrington ,FWB,Care Purchase East Team,54060,CP-LongStayExternal,441150,21-Jun-16,1900202318,5500.00,Potens Ltd TA Heath Lodge,102481
WARRINGTON BOROUGH COUNCIL,http://opendatacommunities.org/id/unitary-authority/warrington ,FWB,Care Purchase West Team,54080,CP-Domicil.External,440950,21-Jun-16,1900202316,1820.00,Potens Ltd TA Heath Lodge,102481
WARRINGTON BOROUGH COUNCIL,http://opendatacommunities.org/id/unitary-authority/warrington ,FWB,Care Purchase West Team,54080,CP-LongStayExternal,441150,21-Jun-16,1900202316,2580.00,Potens Ltd TA Heath Lodge,102481
WARRINGTON BOROUGH COUNCIL,http://opendatacommunities.org/id/unitary-authority/warrington ,FWB,Care Purchase AMH,54135,CP-Domicil.External,440950,07-Jun-16,1900201268,1889.00,Potens Ltd TA Heath Lodge,102481
WARRINGTON BOROUGH COUNCIL,http://opendatacommunities.org/id/unitary-authority/warrington ,FWB,Care Purchase West Team,54080,CP-Domicil.External,440950,21-Jun-16,1900202319,1889.00,Potens Ltd TA Heath Lodge,102481
WARRINGTON BOROUGH COUNCIL,http://opendatacommunities.org/id/unitary-authority/warrington ,FWB,Older Peoples South Team,54421,CP-Domicil.External,440950,07-Jun-16,1900201256,32380.00,Premier Care Cheshire Ltd,105142
WARRINGTON BOROUGH COUNCIL,http://opendatacommunities.org/id/unitary-authority/warrington ,FWB,Older Peoples North Team,54422,CP-Domicil.External,440950,07-Jun-16,1900201256,14606.00,Premier Care Cheshire Ltd,105142
WARRINGTON BOROUGH COUNCIL,http://opendatacommunities.org/id/unitary-authority/warrington ,FWB,Care Purchase AMH,54135,CP-Domicil.External,440950,07-Jun-16,1900201256,1509.00,Premier Care Cheshire Ltd,105142
WARRINGTON BOROUGH COUNCIL,http://opendatacommunities.org/id/unitary-authority/warrington ,FWB,Care Purchase - PD,54440,CP-Domicil.External,440950,07-Jun-16,1900201256,8684.00,Premier Care Cheshire Ltd,105142
WARRINGTON BOROUGH COUNCIL,http://opendatacommunities.org/id/unitary-authority/warrington ,FWB,Care Purchase Central Team,54050,CP-Domicil.External,440950,20-Jun-16,1900202163,20360.00,Premier Care Cheshire Ltd,105142
WARRINGTON BOROUGH COUNCIL,http://opendatacommunities.org/id/unitary-authority/warrington ,FWB,Care Purchase South Team,54070,CP-Domicil.External,440950,20-Jun-16,1900202163,19392.00,Premier Care Cheshire Ltd,105142
WARRINGTON BOROUGH COUNCIL,http://opendatacommunities.org/id/unitary-authority/warrington ,FWB,Care Purchase East Team,54060,CP-Domicil.External,440950,20-Jun-16,1900202163,8302.00,Premier Care Cheshire Ltd,105142
WARRINGTON BOROUGH COUNCIL,http://opendatacommunities.org/id/unitary-authority/warrington ,FWB,Care Purchase West Team,54080,CP-Domicil.External,440950,20-Jun-16,1900202163,6654.00,Premier Care Cheshire Ltd,105142
WARRINGTON BOROUGH COUNCIL,http://opendatacommunities.org/id/unitary-authority/warrington ,FWB,Care Purchase Central Team,54050,CP-LongStayExternal,441150,20-Jun-16,1900202137,11896.00,Priory Group Fernleigh & Lynbrook,115368
WARRINGTON BOROUGH COUNCIL,http://opendatacommunities.org/id/unitary-authority/warrington ,FWB,Care Purchase Central Team,54050,CP-LongStayExternal,441150,20-Jun-16,1900202125,11896.00,Priory Group Fernleigh & Lynbrook,115368
WARRINGTON BOROUGH COUNCIL,http://opendatacommunities.org/id/unitary-authority/warrington ,FWB,Care Purchase Central Team,54050,CP-LongStayExternal,441150,20-Jun-16,1900202131,11896.00,Priory Group Fernleigh & Lynbrook,115368
WARRINGTON BOROUGH COUNCIL,http://opendatacommunities.org/id/unitary-authority/warrington ,FWB,Care Purchase Central Team,54050,CP-LongStayExternal,441150,20-Jun-16,1900202134,11896.00,Priory Group Fernleigh & Lynbrook,115368
WARRINGTON BOROUGH COUNCIL,http://opendatacommunities.org/id/unitary-authority/warrington ,FWB,Care Purchase East Team,54060,CP-LongStayExternal,441150,20-Jun-16,1900202132,11238.00,Priory Group Fernleigh & Lynbrook,115368
WARRINGTON BOROUGH COUNCIL,http://opendatacommunities.org/id/unitary-authority/warrington ,FWB,Care Purchase East Team,54060,CP-Domicil.External,440950,20-Jun-16,1900202127,3325.00,Priory Group Fernleigh & Lynbrook,115368
WARRINGTON BOROUGH COUNCIL,http://opendatacommunities.org/id/unitary-authority/warrington ,FWB,Care Purchase East Team,54060,CP-LongStayExternal,441150,20-Jun-16,1900202127,11238.00,Priory Group Fernleigh & Lynbrook,115368
WARRINGTON BOROUGH COUNCIL,http://opendatacommunities.org/id/unitary-authority/warrington ,FWB,Care Purchase East Team,54060,CP-LongStayExternal,441150,20-Jun-16,1900202133,11238.00,Priory Group Fernleigh & Lynbrook,115368
WARRINGTON BOROUGH COUNCIL,http://opendatacommunities.org/id/unitary-authority/warrington ,FWB,Care Purchase East Team,54060,CP-Domicil.External,440950,20-Jun-16,1900202152,3325.00,Priory Group Fernleigh & Lynbrook,115368
WARRINGTON BOROUGH COUNCIL,http://opendatacommunities.org/id/unitary-authority/warrington ,FWB,Care Purchase East Team,54060,CP-LongStayExternal,441150,20-Jun-16,1900202152,11238.00,Priory Group Fernleigh & Lynbrook,115368
WARRINGTON BOROUGH COUNCIL,http://opendatacommunities.org/id/unitary-authority/warrington ,FWB,Care Purchase East Team,54060,CP-LongStayExternal,441150,20-Jun-16,1900202136,11238.00,Priory Group Fernleigh & Lynbrook,115368
WARRINGTON BOROUGH COUNCIL,http://opendatacommunities.org/id/unitary-authority/warrington ,FWB,Care Purchase East Team,54060,CP-Domicil.External,440950,20-Jun-16,1900202139,3325.00,Priory Group Fernleigh & Lynbrook,115368
WARRINGTON BOROUGH COUNCIL,http://opendatacommunities.org/id/unitary-authority/warrington ,FWB,Care Purchase East Team,54060,CP-LongStayExternal,441150,20-Jun-16,1900202139,11238.00,Priory Group Fernleigh & Lynbrook,115368
WARRINGTON BOROUGH COUNCIL,http://opendatacommunities.org/id/unitary-authority/warrington ,FWB,Care Purchase East Team,54060,CP-LongStayExternal,441150,20-Jun-16,1900202147,11238.00,Priory Group Fernleigh & Lynbrook,115368
WARRINGTON BOROUGH COUNCIL,http://opendatacommunities.org/id/unitary-authority/warrington ,FWB,Care Purchase East Team,54060,CP-Domicil.External,440950,20-Jun-16,1900202135,3325.00,Priory Group Fernleigh & Lynbrook,115368
WARRINGTON BOROUGH COUNCIL,http://opendatacommunities.org/id/unitary-authority/warrington ,FWB,Care Purchase East Team,54060,CP-LongStayExternal,441150,20-Jun-16,1900202135,11238.00,Priory Group Fernleigh & Lynbrook,115368
WARRINGTON BOROUGH COUNCIL,http://opendatacommunities.org/id/unitary-authority/warrington ,FWB,DSG 2 Year Old Fund,31601,Payment of Grants,470050,10-Jun-16,1900201754,4001.00,Puddleducks Day Nursery,400001
WARRINGTON BOROUGH COUNCIL,http://opendatacommunities.org/id/unitary-authority/warrington ,FWB,DSG Early Years PVI Settings,32417,Private & Voluntary 3 Year Olds,470100,10-Jun-16,1900201578,4890.00,Puddleducks Day Nursery,400001
WARRINGTON BOROUGH COUNCIL,http://opendatacommunities.org/id/unitary-authority/warrington ,FWB,DSG Early Years PVI Settings,32417,Private & Voluntary 4 Year Olds,470150,10-Jun-16,1900201669,3035.00,Puddleducks Day Nursery,400001
WARRINGTON BOROUGH COUNCIL,http://opendatacommunities.org/id/unitary-authority/warrington ,FWB,Intermediate Care Assesment,54630,Agency Supply,180000,13-Jun-16,1900201783,1030.00,Pulse Healthcare Limited,114083
WARRINGTON BOROUGH COUNCIL,http://opendatacommunities.org/id/unitary-authority/warrington ,FWB,Intermediate Care Assesment,54630,Agency Supply,180000,01-Jun-16,1900200980,970.00,Pulse Healthcare Limited,114083
WARRINGTON BOROUGH COUNCIL,http://opendatacommunities.org/id/unitary-authority/warrington ,FWB,Care Purchase Budget,54490,CP - Cont Care - External,441350,24-Jun-16,1900202983,1195.00,Pulse Healthcare Limited,114083
WARRINGTON BOROUGH COUNCIL,http://opendatacommunities.org/id/unitary-authority/warrington ,FWB,Care Purchase Budget,54490,CP - Cont Care - External,441350,24-Jun-16,1900202977,1195.00,Pulse Healthcare Limited,114083
WARRINGTON BOROUGH COUNCIL,http://opendatacommunities.org/id/unitary-authority/warrington ,FWB,Care Purchase Budget,54490,CP - Cont Care - External,441350,24-Jun-16,1900202982,1195.00,Pulse Healthcare Limited,114083
WARRINGTON BOROUGH COUNCIL,http://opendatacommunities.org/id/unitary-authority/warrington ,FWB,Care Purchase Budget,54490,CP - Cont Care - External,441350,24-Jun-16,1900202984,1195.00,Pulse Healthcare Limited,114083
WARRINGTON BOROUGH COUNCIL,http://opendatacommunities.org/id/unitary-authority/warrington ,EE0,B.U.M Transport Services Staffing,44480,Consult.& Prof. Serv,440000,09-Jun-16,1900201442,8166.00,Rafman Consulting Limited,115207
WARRINGTON BOROUGH COUNCIL,http://opendatacommunities.org/id/unitary-authority/warrington ,EE0,B.U.M Transport Services Staffing,44480,Consult.& Prof. Serv,440000,16-Jun-16,1900202054,7217.00,Rafman Consulting Limited,115207
WARRINGTON BOROUGH COUNCIL,http://opendatacommunities.org/id/unitary-authority/warrington ,FWB,DSG Early Years PVI Settings,32417,Private & Voluntary 3 Year Olds,470100,10-Jun-16,1900201580,5394.00,Rainbow Day Nursery,400153
WARRINGTON BOROUGH COUNCIL,http://opendatacommunities.org/id/unitary-authority/warrington ,FWB,DSG Early Years PVI Settings,32417,Private & Voluntary 4 Year Olds,470150,10-Jun-16,1900201671,2195.00,Rainbow Day Nursery,400153
WARRINGTON BOROUGH COUNCIL,http://opendatacommunities.org/id/unitary-authority/warrington ,RSC,Coroners Service,11100,Reimbursement for Deputy Coroner,440400,23-Jun-16,1900202919,850.00,REDACTED PERSONAL DATA,102292
WARRINGTON BOROUGH COUNCIL,http://opendatacommunities.org/id/unitary-authority/warrington ,FWB,Safeguarding Support,31200,Consult.& Prof. Serv,440000,10-Jun-16,1900201457,2830.00,REDACTED PERSONAL DATA,113431
WARRINGTON BOROUGH COUNCIL,http://opendatacommunities.org/id/unitary-authority/warrington ,FWB,Care Purchase South Team,54070,CP-Nursing Care-External,441200,14-Jun-16,1900201899,3600.00,REDACTED PERSONAL DATA,112195
WARRINGTON BOROUGH COUNCIL,http://opendatacommunities.org/id/unitary-authority/warrington ,FWB,Foster Allowances,31106,Fostering Allowance,550050,29-Jun-16,1900203158,1535.00,REDACTED PERSONAL DATA,461305
WARRINGTON BOROUGH COUNCIL,http://opendatacommunities.org/id/unitary-authority/warrington ,FWB,Legal Fees - Safeguarding,30100,Legal Costs Incurred,440200,10-Jun-16,1900201458,4875.00,REDACTED PERSONAL DATA,108145
WARRINGTON BOROUGH COUNCIL,http://opendatacommunities.org/id/unitary-authority/warrington ,FWB,Legal Fees - Safeguarding,30100,Legal Costs Incurred,440200,27-Jun-16,1900203050,4750.00,REDACTED PERSONAL DATA,104162
WARRINGTON BOROUGH COUNCIL,http://opendatacommunities.org/id/unitary-authority/warrington ,FWB,Legal Fees - Safeguarding,30100,Legal Costs Incurred,440200,28-Jun-16,1900203111,3188.00,REDACTED PERSONAL DATA,104162
WARRINGTON BOROUGH COUNCIL,http://opendatacommunities.org/id/unitary-authority/warrington ,FWB,Legal Fees - Safeguarding,30100,Legal Costs Incurred,440200,13-May-16,1900199763,831.00,REDACTED PERSONAL DATA,114978
WARRINGTON BOROUGH COUNCIL,http://opendatacommunities.org/id/unitary-authority/warrington ,FWB,Legal Fees - Safeguarding,30100,Legal Costs Incurred,440200,27-Jun-16,1900203047,1500.00,REDACTED PERSONAL DATA,115445
WARRINGTON BOROUGH COUNCIL,http://opendatacommunities.org/id/unitary-authority/warrington ,FWB,Legal Fees - Safeguarding,30100,Legal Costs Incurred,440200,17-Jun-16,1900202113,1650.00,REDACTED PERSONAL DATA,115424
WARRINGTON BOROUGH COUNCIL,http://opendatacommunities.org/id/unitary-authority/warrington ,COR,Debt Management Expenses,62080,Consult.& Prof. Serv,440000,22-Jun-16,1900202861,1970.00,REDACTED PERSONAL DATA,102113
WARRINGTON BOROUGH COUNCIL,http://opendatacommunities.org/id/unitary-authority/warrington ,COR,Debt Management Expenses,62080,Consult.& Prof. Serv,440000,10-Jun-16,1900201470,1491.00,REDACTED PERSONAL DATA,102113
WARRINGTON BOROUGH COUNCIL,http://opendatacommunities.org/id/unitary-authority/warrington ,FWB,Safeguarding Team 3,31003,Agency Supply,180000,08-Jun-16,1900201348,1165.00,REDACTED PERSONAL DATA,113127
WARRINGTON BOROUGH COUNCIL,http://opendatacommunities.org/id/unitary-authority/warrington ,RSC,Coroners Service,11100,Reimbursement for Deputy Coroner,440400,15-Jun-16,1900202023,995.00,REDACTED PERSONAL DATA,111284
WARRINGTON BOROUGH COUNCIL,http://opendatacommunities.org/id/unitary-authority/warrington ,FWB,Homelessness,43650,B.& B.Allowances,525050,23-Jun-16,1900202932,1425.00,REDACTED PERSONAL DATA,110456
WARRINGTON BOROUGH COUNCIL,http://opendatacommunities.org/id/unitary-authority/warrington ,FWB,Homelessness,43650,B.& B.Allowances,525050,23-Jun-16,1900202933,1645.00,REDACTED PERSONAL DATA,110456
WARRINGTON BOROUGH COUNCIL,http://opendatacommunities.org/id/unitary-authority/warrington ,FWB,Adoption Allowances,31108,Adoption Allowance,550300,13-Jun-16,1900201805,800.00,REDACTED PERSONAL DATA,461359
WARRINGTON BOROUGH COUNCIL,http://opendatacommunities.org/id/unitary-authority/warrington ,FWB,Foster Carer Recruitment,31115,Fostering Allowance,550050,24-Jun-16,1900202989,600.00,REDACTED PERSONAL DATA,107397
WARRINGTON BOROUGH COUNCIL,http://opendatacommunities.org/id/unitary-authority/warrington ,CYP,Primary,81001,Specific Work,200200,22-Jun-16,1900202864,700.00,REDACTED PERSONAL DATA,115435
WARRINGTON BOROUGH COUNCIL,http://opendatacommunities.org/id/unitary-authority/warrington ,FWB,DSG Early Years PVI Settings,32417,Private & Voluntary 3 Year Olds,470100,10-Jun-16,1900201575,612.00,REDACTED PERSONAL DATA,420765
WARRINGTON BOROUGH COUNCIL,http://opendatacommunities.org/id/unitary-authority/warrington ,FWB,DSG Early Years PVI Settings,32417,Private & Voluntary 4 Year Olds,470150,10-Jun-16,1900201623,522.00,REDACTED PERSONAL DATA,108266
WARRINGTON BOROUGH COUNCIL,http://opendatacommunities.org/id/unitary-authority/warrington ,FWB,Child Arrangement Orders,31114,Residence Orders,550350,08-Jun-16,1900201358,549.00,REDACTED PERSONAL DATA,461083
WARRINGTON BOROUGH COUNCIL,http://opendatacommunities.org/id/unitary-authority/warrington ,FWB,Halton Music Expenditure,32219,Consult.& Prof. Serv,440000,03-Jun-16,1900201081,1656.00,REDACTED PERSONAL DATA,113675
WARRINGTON BOROUGH COUNCIL,http://opendatacommunities.org/id/unitary-authority/warrington ,FWB,Homelessness,43650,B.& B.Allowances,525050,23-Jun-16,1900202931,1225.00,REDACTED PERSONAL DATA,110456
WARRINGTON BOROUGH COUNCIL,http://opendatacommunities.org/id/unitary-authority/warrington ,RSC,Coroners Service,11100,Jury Witness Exps,460050,23-Jun-16,1900202902,771.00,REDACTED PERSONAL DATA,420797
WARRINGTON BOROUGH COUNCIL,http://opendatacommunities.org/id/unitary-authority/warrington ,FWB,Foster Allowances,31106,Fostering Allowance,550050,07-Jun-16,1900201276,685.00,REDACTED PERSONAL DATA,461005
WARRINGTON BOROUGH COUNCIL,http://opendatacommunities.org/id/unitary-authority/warrington ,FWB,Foster Allowances,31106,Fostering Allowance,550050,17-Jun-16,1900202090,685.00,REDACTED PERSONAL DATA,460648
WARRINGTON BOROUGH COUNCIL,http://opendatacommunities.org/id/unitary-authority/warrington ,FWB,Foster Allowances,31106,Fostering Allowance,550050,17-Jun-16,1900202096,770.00,REDACTED PERSONAL DATA,460775
WARRINGTON BOROUGH COUNCIL,http://opendatacommunities.org/id/unitary-authority/warrington ,FWB,Foster Allowances,31106,Fostering Allowance,550050,17-Jun-16,1900202097,770.00,REDACTED PERSONAL DATA,460775
WARRINGTON BOROUGH COUNCIL,http://opendatacommunities.org/id/unitary-authority/warrington ,FWB,Foster Allowances,31106,Fostering Allowance,550050,24-Jun-16,1900203002,514.00,REDACTED PERSONAL DATA,461129
WARRINGTON BOROUGH COUNCIL,http://opendatacommunities.org/id/unitary-authority/warrington ,FWB,Foster Allowances,31106,Fostering Allowance,550050,17-Jun-16,1900202089,1070.00,REDACTED PERSONAL DATA,460668
WARRINGTON BOROUGH COUNCIL,http://opendatacommunities.org/id/unitary-authority/warrington ,FWB,Foster Allowances,31106,Fostering Allowance,550050,15-Jun-16,1900202002,1611.00,REDACTED PERSONAL DATA,460794
WARRINGTON BOROUGH COUNCIL,http://opendatacommunities.org/id/unitary-authority/warrington ,FWB,Foster Allowances,31106,Fostering Allowance,550050,15-Jun-16,1900202019,770.00,REDACTED PERSONAL DATA,460145
WARRINGTON BOROUGH COUNCIL,http://opendatacommunities.org/id/unitary-authority/warrington ,FWB,Foster Allowances,31106,Travel Allowance,550250,15-Jun-16,1900202021,770.00,REDACTED PERSONAL DATA,460945
WARRINGTON BOROUGH COUNCIL,http://opendatacommunities.org/id/unitary-authority/warrington ,FWB,Foster Allowances,31106,Travel Allowance,550250,28-Jun-16,1900203069,685.00,REDACTED PERSONAL DATA,461133
WARRINGTON BOROUGH COUNCIL,http://opendatacommunities.org/id/unitary-authority/warrington ,FWB,Child Arrangement Orders,31114,Residence Orders,550350,10-May-16,1900199572,501.00,REDACTED PERSONAL DATA,461332
WARRINGTON BOROUGH COUNCIL,http://opendatacommunities.org/id/unitary-authority/warrington ,FWB,Foster Allowances,31106,Fostering Allowance,550050,15-Jun-16,1900202012,600.00,REDACTED PERSONAL DATA,461250
WARRINGTON BOROUGH COUNCIL,http://opendatacommunities.org/id/unitary-authority/warrington ,FWB,Foster Allowances,31106,Travel Allowance,550250,15-Jun-16,1900202020,600.00,REDACTED PERSONAL DATA,460828
WARRINGTON BOROUGH COUNCIL,http://opendatacommunities.org/id/unitary-authority/warrington ,FWB,Foster Allowances,31106,Fostering Allowance,550050,07-Jun-16,1900201279,600.00,REDACTED PERSONAL DATA,460461
WARRINGTON BOROUGH COUNCIL,http://opendatacommunities.org/id/unitary-authority/warrington ,FWB,Foster Allowances,31106,Fostering Allowance,550050,17-Jun-16,1900202073,820.00,REDACTED PERSONAL DATA,460999
WARRINGTON BOROUGH COUNCIL,http://opendatacommunities.org/id/unitary-authority/warrington ,FWB,Foster Allowances,31106,Fostering Allowance,550050,17-Jun-16,1900202069,843.00,REDACTED PERSONAL DATA,460968
WARRINGTON BOROUGH COUNCIL,http://opendatacommunities.org/id/unitary-authority/warrington ,FWB,Foster Allowances,31106,Fostering Allowance,550050,15-Jun-16,1900202011,600.00,REDACTED PERSONAL DATA,460438
WARRINGTON BOROUGH COUNCIL,http://opendatacommunities.org/id/unitary-authority/warrington ,FWB,Foster Allowances,31106,Fostering Allowance,550050,15-Jun-16,1900202015,600.00,REDACTED PERSONAL DATA,460807
WARRINGTON BOROUGH COUNCIL,http://opendatacommunities.org/id/unitary-authority/warrington ,FWB,Foster Allowances,31106,Fostering Allowance,550050,13-Jun-16,1900201790,1155.00,REDACTED PERSONAL DATA,460718
WARRINGTON BOROUGH COUNCIL,http://opendatacommunities.org/id/unitary-authority/warrington ,FWB,Child Arrangement Orders,31114,Residence Orders,550350,08-Jun-16,1900201356,1225.00,REDACTED PERSONAL DATA,461351
WARRINGTON BOROUGH COUNCIL,http://opendatacommunities.org/id/unitary-authority/warrington ,FWB,Adoption Allowances,31108,Personal Needs Allowance,550400,23-Jun-16,1900202942,650.00,REDACTED PERSONAL DATA,461238
WARRINGTON BOROUGH COUNCIL,http://opendatacommunities.org/id/unitary-authority/warrington ,FWB,Foster Allowances,31106,Fostering Allowance,550050,24-Jun-16,1900202992,584.00,REDACTED PERSONAL DATA,460888
WARRINGTON BOROUGH COUNCIL,http://opendatacommunities.org/id/unitary-authority/warrington ,FWB,Foster Allowances,31106,Fostering Allowance,550050,28-Jun-16,1900203078,900.00,REDACTED PERSONAL DATA,461174
WARRINGTON BOROUGH COUNCIL,http://opendatacommunities.org/id/unitary-authority/warrington ,FWB,Foster Allowances,31106,Fostering Allowance,550050,03-Jun-16,1900201151,506.00,REDACTED PERSONAL DATA,460039
WARRINGTON BOROUGH COUNCIL,http://opendatacommunities.org/id/unitary-authority/warrington ,RSC,Coroners Service,11100,Jury Witness Exps,460050,22-Jun-16,1900202896,784.00,REDACTED PERSONAL DATA,420796
WARRINGTON BOROUGH COUNCIL,http://opendatacommunities.org/id/unitary-authority/warrington ,FWB,Homelessness,43650,Bond Guarantee Scme,530100,30-Jun-16,1900203203,550.00,REDACTED PERSONAL DATA,115420
WARRINGTON BOROUGH COUNCIL,http://opendatacommunities.org/id/unitary-authority/warrington ,FWB,Homelessness,43650,Bond Guarantee Scme,530100,16-Jun-16,1900202034,550.00,REDACTED PERSONAL DATA,115420
WARRINGTON BOROUGH COUNCIL,http://opendatacommunities.org/id/unitary-authority/warrington ,RSC,Coroners Service,11100,Jury Witness Exps,460050,23-Jun-16,1900202918,1177.00,REDACTED PERSONAL DATA,420807
WARRINGTON BOROUGH COUNCIL,http://opendatacommunities.org/id/unitary-authority/warrington ,RSC,Coroners Service,11100,Jury Witness Exps,460050,23-Jun-16,1900202917,920.00,REDACTED PERSONAL DATA,420800
WARRINGTON BOROUGH COUNCIL,http://opendatacommunities.org/id/unitary-authority/warrington ,RSC,Coroners Service,11100,Jury Witness Exps,460050,23-Jun-16,1900202922,528.00,REDACTED PERSONAL DATA,420748
WARRINGTON BOROUGH COUNCIL,http://opendatacommunities.org/id/unitary-authority/warrington ,FWB,Homelessness,43650,B.& B.Allowances,525050,23-Jun-16,1900202934,1600.00,REDACTED PERSONAL DATA,110456
WARRINGTON BOROUGH COUNCIL,http://opendatacommunities.org/id/unitary-authority/warrington ,FWB,Foster Allowances,31106,Fostering Allowance,550050,28-Jun-16,1900203080,2076.00,REDACTED PERSONAL DATA,461191
WARRINGTON BOROUGH COUNCIL,http://opendatacommunities.org/id/unitary-authority/warrington ,FWB,Child Disability,32212,Direct Payments,552000,09-Jun-16,1900201448,700.00,REDACTED PERSONAL DATA,460321
WARRINGTON BOROUGH COUNCIL,http://opendatacommunities.org/id/unitary-authority/warrington ,FWB,Care Purchase Central Team,54050,Direct Payments,552000,09-Jun-16,1900201450,924.00,REDACTED PERSONAL DATA,461348
WARRINGTON BOROUGH COUNCIL,http://opendatacommunities.org/id/unitary-authority/warrington ,FWB,Care Purchase South Team,54070,Direct Payments,552000,09-Jun-16,1900201446,670.00,REDACTED PERSONAL DATA,103674
WARRINGTON BOROUGH COUNCIL,http://opendatacommunities.org/id/unitary-authority/warrington ,FWB,Child Disability,32212,Direct Payments,552000,16-Jun-16,1900202064,540.00,REDACTED PERSONAL DATA,105623
WARRINGTON BOROUGH COUNCIL,http://opendatacommunities.org/id/unitary-authority/warrington ,FWB,Care Purchase South Team,54070,Direct Payments,552000,16-Jun-16,1900202065,668.00,REDACTED PERSONAL DATA,460943
WARRINGTON BOROUGH COUNCIL,http://opendatacommunities.org/id/unitary-authority/warrington ,FWB,Care Purchase West Team,54080,Direct Payments,552000,22-Jun-16,1900202757,652.00,REDACTED PERSONAL DATA,461263
WARRINGTON BOROUGH COUNCIL,http://opendatacommunities.org/id/unitary-authority/warrington ,FWB,Child Disability,32212,Direct Payments,552000,22-Jun-16,1900202720,792.00,REDACTED PERSONAL DATA,461127
WARRINGTON BOROUGH COUNCIL,http://opendatacommunities.org/id/unitary-authority/warrington ,FWB,Care Purchase Central Team,54050,Direct Payments,552000,22-Jun-16,1900202714,560.00,REDACTED PERSONAL DATA,461113
WARRINGTON BOROUGH COUNCIL,http://opendatacommunities.org/id/unitary-authority/warrington ,FWB,Care Purchase South Team,54070,Direct Payments,552000,22-Jun-16,1900202381,2290.00,REDACTED PERSONAL DATA,101686
WARRINGTON BOROUGH COUNCIL,http://opendatacommunities.org/id/unitary-authority/warrington ,FWB,Care Purchase Central Team,54050,Direct Payments,552000,22-Jun-16,1900202560,2249.00,REDACTED PERSONAL DATA,460269
WARRINGTON BOROUGH COUNCIL,http://opendatacommunities.org/id/unitary-authority/warrington ,FWB,Care Purchase West Team,54080,Direct Payments,552000,22-Jun-16,1900202778,5695.00,REDACTED PERSONAL DATA,461330
WARRINGTON BOROUGH COUNCIL,http://opendatacommunities.org/id/unitary-authority/warrington ,FWB,Care Purchase Central Team,54050,CP - Cont Care - External,441350,22-Jun-16,1900202676,772.00,REDACTED PERSONAL DATA,460918
WARRINGTON BOROUGH COUNCIL,http://opendatacommunities.org/id/unitary-authority/warrington ,FWB,Care Purchase Central Team,54050,Direct Payments,552000,22-Jun-16,1900202676,772.00,REDACTED PERSONAL DATA,460918
WARRINGTON BOROUGH COUNCIL,http://opendatacommunities.org/id/unitary-authority/warrington ,FWB,Care Purchase South Team,54070,Direct Payments,552000,22-Jun-16,1900202484,606.00,REDACTED PERSONAL DATA,107299
WARRINGTON BOROUGH COUNCIL,http://opendatacommunities.org/id/unitary-authority/warrington ,FWB,Care Purchase Central Team,54050,Direct Payments,552000,22-Jun-16,1900202337,851.00,REDACTED PERSONAL DATA,100766
WARRINGTON BOROUGH COUNCIL,http://opendatacommunities.org/id/unitary-authority/warrington ,FWB,Care Purchase West Team,54080,Direct Payments,552000,22-Jun-16,1900202699,753.00,REDACTED PERSONAL DATA,461033
WARRINGTON BOROUGH COUNCIL,http://opendatacommunities.org/id/unitary-authority/warrington ,FWB,Care Purchase South Team,54070,CP - Cont Care - External,441350,22-Jun-16,1900202414,1584.00,REDACTED PERSONAL DATA,103372
WARRINGTON BOROUGH COUNCIL,http://opendatacommunities.org/id/unitary-authority/warrington ,FWB,Care Purchase South Team,54070,Direct Payments,552000,22-Jun-16,1900202414,3822.00,REDACTED PERSONAL DATA,103372
WARRINGTON BOROUGH COUNCIL,http://opendatacommunities.org/id/unitary-authority/warrington ,FWB,Care Purchase West Team,54080,Direct Payments,552000,22-Jun-16,1900202638,834.00,REDACTED PERSONAL DATA,460703
WARRINGTON BOROUGH COUNCIL,http://opendatacommunities.org/id/unitary-authority/warrington ,FWB,Care Purchase East Team,54060,Supporting People - External,441250,22-Jun-16,1900202435,849.00,REDACTED PERSONAL DATA,103794
WARRINGTON BOROUGH COUNCIL,http://opendatacommunities.org/id/unitary-authority/warrington ,FWB,Care Purchase Central Team,54050,Direct Payments,552000,22-Jun-16,1900202504,1249.00,REDACTED PERSONAL DATA,114446
WARRINGTON BOROUGH COUNCIL,http://opendatacommunities.org/id/unitary-authority/warrington ,FWB,Care Purchase West Team,54080,Direct Payments,552000,22-Jun-16,1900202347,849.00,REDACTED PERSONAL DATA,101045
WARRINGTON BOROUGH COUNCIL,http://opendatacommunities.org/id/unitary-authority/warrington ,FWB,Care Purchase Central Team,54050,Direct Payments,552000,22-Jun-16,1900202346,855.00,REDACTED PERSONAL DATA,101030
WARRINGTON BOROUGH COUNCIL,http://opendatacommunities.org/id/unitary-authority/warrington ,FWB,Care Purchase Central Team,54050,Supporting People - External,441250,22-Jun-16,1900202434,810.00,REDACTED PERSONAL DATA,103771
WARRINGTON BOROUGH COUNCIL,http://opendatacommunities.org/id/unitary-authority/warrington ,FWB,Care Purchase Central Team,54050,Direct Payments,552000,22-Jun-16,1900202434,11059.00,REDACTED PERSONAL DATA,103771
WARRINGTON BOROUGH COUNCIL,http://opendatacommunities.org/id/unitary-authority/warrington ,FWB,Care Purchase West Team,54080,Direct Payments,552000,22-Jun-16,1900202443,1830.00,REDACTED PERSONAL DATA,104205
WARRINGTON BOROUGH COUNCIL,http://opendatacommunities.org/id/unitary-authority/warrington ,FWB,Care Purchase Central Team,54050,Direct Payments,552000,22-Jun-16,1900202542,817.00,REDACTED PERSONAL DATA,460226
WARRINGTON BOROUGH COUNCIL,http://opendatacommunities.org/id/unitary-authority/warrington ,FWB,Care Purchase Central Team,54050,Direct Payments,552000,22-Jun-16,1900202618,997.00,REDACTED PERSONAL DATA,460581
WARRINGTON BOROUGH COUNCIL,http://opendatacommunities.org/id/unitary-authority/warrington ,FWB,Care Purchase Central Team,54050,Direct Payments,552000,22-Jun-16,1900202641,866.00,REDACTED PERSONAL DATA,460726
WARRINGTON BOROUGH COUNCIL,http://opendatacommunities.org/id/unitary-authority/warrington ,FWB,Care Purchase Central Team,54050,Direct Payments,552000,22-Jun-16,1900202629,902.00,REDACTED PERSONAL DATA,460638
WARRINGTON BOROUGH COUNCIL,http://opendatacommunities.org/id/unitary-authority/warrington ,FWB,Care Purchase West Team,54080,Direct Payments,552000,22-Jun-16,1900202547,1682.00,REDACTED PERSONAL DATA,460243
WARRINGTON BOROUGH COUNCIL,http://opendatacommunities.org/id/unitary-authority/warrington ,FWB,Care Purchase South Team,54070,Direct Payments,552000,22-Jun-16,1900202696,840.00,REDACTED PERSONAL DATA,461016
WARRINGTON BOROUGH COUNCIL,http://opendatacommunities.org/id/unitary-authority/warrington ,FWB,Care Purchase West Team,54080,Direct Payments,552000,22-Jun-16,1900202655,704.00,REDACTED PERSONAL DATA,460785
WARRINGTON BOROUGH COUNCIL,http://opendatacommunities.org/id/unitary-authority/warrington ,FWB,Care Purchase West Team,54080,Direct Payments,552000,22-Jun-16,1900202590,774.00,REDACTED PERSONAL DATA,460454
WARRINGTON BOROUGH COUNCIL,http://opendatacommunities.org/id/unitary-authority/warrington ,FWB,Care Purchase Central Team,54050,Direct Payments,552000,22-Jun-16,1900202592,798.00,REDACTED PERSONAL DATA,460457
WARRINGTON BOROUGH COUNCIL,http://opendatacommunities.org/id/unitary-authority/warrington ,FWB,Care Purchase South Team,54070,Direct Payments,552000,22-Jun-16,1900202468,637.00,REDACTED PERSONAL DATA,106066
WARRINGTON BOROUGH COUNCIL,http://opendatacommunities.org/id/unitary-authority/warrington ,FWB,Care Purchase South Team,54070,Direct Payments,552000,22-Jun-16,1900202584,594.00,REDACTED PERSONAL DATA,460426
WARRINGTON BOROUGH COUNCIL,http://opendatacommunities.org/id/unitary-authority/warrington ,FWB,Care Purchase Central Team,54050,Direct Payments,552000,22-Jun-16,1900202404,748.00,REDACTED PERSONAL DATA,102667
WARRINGTON BOROUGH COUNCIL,http://opendatacommunities.org/id/unitary-authority/warrington ,FWB,Care Purchase East Team,54060,Direct Payments,552000,22-Jun-16,1900202755,849.00,REDACTED PERSONAL DATA,461259
WARRINGTON BOROUGH COUNCIL,http://opendatacommunities.org/id/unitary-authority/warrington ,FWB,Care Purchase South Team,54070,Direct Payments,552000,22-Jun-16,1900202524,2795.00,REDACTED PERSONAL DATA,460172
WARRINGTON BOROUGH COUNCIL,http://opendatacommunities.org/id/unitary-authority/warrington ,FWB,Care Purchase West Team,54080,Direct Payments,552000,22-Jun-16,1900202447,956.00,REDACTED PERSONAL DATA,105621
WARRINGTON BOROUGH COUNCIL,http://opendatacommunities.org/id/unitary-authority/warrington ,FWB,Care Purchase East Team,54060,Direct Payments,552000,22-Jun-16,1900202463,849.00,REDACTED PERSONAL DATA,105758
WARRINGTON BOROUGH COUNCIL,http://opendatacommunities.org/id/unitary-authority/warrington ,FWB,Care Purchase West Team,54080,Direct Payments,552000,22-Jun-16,1900202680,1825.00,REDACTED PERSONAL DATA,460933
WARRINGTON BOROUGH COUNCIL,http://opendatacommunities.org/id/unitary-authority/warrington ,FWB,Child Disability,32212,Direct Payments,552000,22-Jun-16,1900202710,640.00,REDACTED PERSONAL DATA,461094
WARRINGTON BOROUGH COUNCIL,http://opendatacommunities.org/id/unitary-authority/warrington ,FWB,Care Purchase South Team,54070,Direct Payments,552000,22-Jun-16,1900202366,2401.00,REDACTED PERSONAL DATA,101516
WARRINGTON BOROUGH COUNCIL,http://opendatacommunities.org/id/unitary-authority/warrington ,FWB,Care Purchase Central Team,54050,Direct Payments,552000,22-Jun-16,1900202564,921.00,REDACTED PERSONAL DATA,460281
WARRINGTON BOROUGH COUNCIL,http://opendatacommunities.org/id/unitary-authority/warrington ,FWB,Care Purchase East Team,54060,Direct Payments,552000,22-Jun-16,1900202357,1358.00,REDACTED PERSONAL DATA,101336
WARRINGTON BOROUGH COUNCIL,http://opendatacommunities.org/id/unitary-authority/warrington ,FWB,Care Purchase Central Team,54050,Direct Payments,552000,22-Jun-16,1900202604,1141.00,REDACTED PERSONAL DATA,460518
WARRINGTON BOROUGH COUNCIL,http://opendatacommunities.org/id/unitary-authority/warrington ,FWB,Care Purchase West Team,54080,Direct Payments,552000,22-Jun-16,1900202486,1414.00,REDACTED PERSONAL DATA,107437
WARRINGTON BOROUGH COUNCIL,http://opendatacommunities.org/id/unitary-authority/warrington ,FWB,Care Purchase West Team,54080,Direct Payments,552000,22-Jun-16,1900202456,597.00,REDACTED PERSONAL DATA,105665
WARRINGTON BOROUGH COUNCIL,http://opendatacommunities.org/id/unitary-authority/warrington ,FWB,Care Purchase East Team,54060,Direct Payments,552000,22-Jun-16,1900202500,999.00,REDACTED PERSONAL DATA,112510
WARRINGTON BOROUGH COUNCIL,http://opendatacommunities.org/id/unitary-authority/warrington ,FWB,Care Purchase Central Team,54050,Direct Payments,552000,22-Jun-16,1900202545,1081.00,REDACTED PERSONAL DATA,460238
WARRINGTON BOROUGH COUNCIL,http://opendatacommunities.org/id/unitary-authority/warrington ,FWB,Care Purchase East Team,54060,Direct Payments,552000,22-Jun-16,1900202339,1351.00,REDACTED PERSONAL DATA,100907
WARRINGTON BOROUGH COUNCIL,http://opendatacommunities.org/id/unitary-authority/warrington ,FWB,Care Purchase South Team,54070,CP - Cont Care - External,441350,22-Jun-16,1900202450,638.00,REDACTED PERSONAL DATA,105625
WARRINGTON BOROUGH COUNCIL,http://opendatacommunities.org/id/unitary-authority/warrington ,FWB,Care Purchase Central Team,54050,Direct Payments,552000,22-Jun-16,1900202331,720.00,REDACTED PERSONAL DATA,100452
WARRINGTON BOROUGH COUNCIL,http://opendatacommunities.org/id/unitary-authority/warrington ,FWB,Care Purchase Central Team,54050,CP - Cont Care - External,441350,22-Jun-16,1900202530,1660.00,REDACTED PERSONAL DATA,460191
WARRINGTON BOROUGH COUNCIL,http://opendatacommunities.org/id/unitary-authority/warrington ,FWB,Care Purchase Central Team,54050,Direct Payments,552000,22-Jun-16,1900202530,1660.00,REDACTED PERSONAL DATA,460191
WARRINGTON BOROUGH COUNCIL,http://opendatacommunities.org/id/unitary-authority/warrington ,FWB,Care Purchase Central Team,54050,Direct Payments,552000,22-Jun-16,1900202664,976.00,REDACTED PERSONAL DATA,460850
WARRINGTON BOROUGH COUNCIL,http://opendatacommunities.org/id/unitary-authority/warrington ,FWB,Child Disability,32212,Direct Payments,552000,22-Jun-16,1900202355,666.00,REDACTED PERSONAL DATA,101322
WARRINGTON BOROUGH COUNCIL,http://opendatacommunities.org/id/unitary-authority/warrington ,FWB,Care Purchase East Team,54060,Direct Payments,552000,22-Jun-16,1900202713,764.00,REDACTED PERSONAL DATA,461109
WARRINGTON BOROUGH COUNCIL,http://opendatacommunities.org/id/unitary-authority/warrington ,FWB,Care Purchase West Team,54080,Direct Payments,552000,22-Jun-16,1900202369,1019.00,REDACTED PERSONAL DATA,101547
WARRINGTON BOROUGH COUNCIL,http://opendatacommunities.org/id/unitary-authority/warrington ,FWB,Care Purchase South Team,54070,Direct Payments,552000,22-Jun-16,1900202621,552.00,REDACTED PERSONAL DATA,460587
WARRINGTON BOROUGH COUNCIL,http://opendatacommunities.org/id/unitary-authority/warrington ,FWB,Care Purchase East Team,54060,Direct Payments,552000,22-Jun-16,1900202405,1273.00,REDACTED PERSONAL DATA,102710
WARRINGTON BOROUGH COUNCIL,http://opendatacommunities.org/id/unitary-authority/warrington ,FWB,Care Purchase East Team,54060,Direct Payments,552000,22-Jun-16,1900202342,3353.00,REDACTED PERSONAL DATA,100954
WARRINGTON BOROUGH COUNCIL,http://opendatacommunities.org/id/unitary-authority/warrington ,FWB,Care Purchase West Team,54080,Direct Payments,552000,22-Jun-16,1900202779,594.00,REDACTED PERSONAL DATA,461334
WARRINGTON BOROUGH COUNCIL,http://opendatacommunities.org/id/unitary-authority/warrington ,FWB,Care Purchase South Team,54070,Direct Payments,552000,22-Jun-16,1900202509,560.00,REDACTED PERSONAL DATA,460066
WARRINGTON BOROUGH COUNCIL,http://opendatacommunities.org/id/unitary-authority/warrington ,FWB,Care Purchase East Team,54060,Direct Payments,552000,22-Jun-16,1900202341,2817.00,REDACTED PERSONAL DATA,100945
WARRINGTON BOROUGH COUNCIL,http://opendatacommunities.org/id/unitary-authority/warrington ,FWB,Care Purchase Central Team,54050,Direct Payments,552000,22-Jun-16,1900202739,976.00,REDACTED PERSONAL DATA,461182
WARRINGTON BOROUGH COUNCIL,http://opendatacommunities.org/id/unitary-authority/warrington ,FWB,Care Purchase Central Team,54050,Direct Payments,552000,22-Jun-16,1900202683,764.00,REDACTED PERSONAL DATA,460951
WARRINGTON BOROUGH COUNCIL,http://opendatacommunities.org/id/unitary-authority/warrington ,FWB,Care Purchase Central Team,54050,Direct Payments,552000,22-Jun-16,1900202531,539.00,REDACTED PERSONAL DATA,460192
WARRINGTON BOROUGH COUNCIL,http://opendatacommunities.org/id/unitary-authority/warrington ,FWB,Care Purchase South Team,54070,Direct Payments,552000,22-Jun-16,1900202643,980.00,REDACTED PERSONAL DATA,460737
WARRINGTON BOROUGH COUNCIL,http://opendatacommunities.org/id/unitary-authority/warrington ,FWB,Care Purchase West Team,54080,Direct Payments,552000,22-Jun-16,1900202445,797.00,REDACTED PERSONAL DATA,104327
WARRINGTON BOROUGH COUNCIL,http://opendatacommunities.org/id/unitary-authority/warrington ,FWB,Care Purchase Central Team,54050,Direct Payments,552000,22-Jun-16,1900202457,576.00,REDACTED PERSONAL DATA,105666
WARRINGTON BOROUGH COUNCIL,http://opendatacommunities.org/id/unitary-authority/warrington ,FWB,Care Purchase East Team,54060,Direct Payments,552000,22-Jun-16,1900202505,1071.00,REDACTED PERSONAL DATA,114527
WARRINGTON BOROUGH COUNCIL,http://opendatacommunities.org/id/unitary-authority/warrington ,FWB,Care Purchase East Team,54060,Direct Payments,552000,22-Jun-16,1900202537,915.00,REDACTED PERSONAL DATA,460214
WARRINGTON BOROUGH COUNCIL,http://opendatacommunities.org/id/unitary-authority/warrington ,FWB,Care Purchase East Team,54060,Direct Payments,552000,22-Jun-16,1900202708,625.00,REDACTED PERSONAL DATA,461089
WARRINGTON BOROUGH COUNCIL,http://opendatacommunities.org/id/unitary-authority/warrington ,FWB,Care Purchase East Team,54060,CP - Cont Care - External,441350,22-Jun-16,1900202415,918.00,REDACTED PERSONAL DATA,103404
WARRINGTON BOROUGH COUNCIL,http://opendatacommunities.org/id/unitary-authority/warrington ,FWB,Care Purchase East Team,54060,Direct Payments,552000,22-Jun-16,1900202415,918.00,REDACTED PERSONAL DATA,103404
WARRINGTON BOROUGH COUNCIL,http://opendatacommunities.org/id/unitary-authority/warrington ,FWB,Care Purchase South Team,54070,Direct Payments,552000,22-Jun-16,1900202428,1378.00,REDACTED PERSONAL DATA,103697
WARRINGTON BOROUGH COUNCIL,http://opendatacommunities.org/id/unitary-authority/warrington ,FWB,Care Purchase East Team,54060,Direct Payments,552000,22-Jun-16,1900202690,1677.00,REDACTED PERSONAL DATA,460977
WARRINGTON BOROUGH COUNCIL,http://opendatacommunities.org/id/unitary-authority/warrington ,FWB,Care Purchase Central Team,54050,Direct Payments,552000,22-Jun-16,1900202784,1061.00,REDACTED PERSONAL DATA,461344
WARRINGTON BOROUGH COUNCIL,http://opendatacommunities.org/id/unitary-authority/warrington ,FWB,Care Purchase South Team,54070,Direct Payments,552000,22-Jun-16,1900202423,1401.00,REDACTED PERSONAL DATA,103614
WARRINGTON BOROUGH COUNCIL,http://opendatacommunities.org/id/unitary-authority/warrington ,FWB,Care Purchase South Team,54070,Direct Payments,552000,22-Jun-16,1900202377,1019.00,REDACTED PERSONAL DATA,101625
WARRINGTON BOROUGH COUNCIL,http://opendatacommunities.org/id/unitary-authority/warrington ,FWB,Care Purchase Central Team,54050,Direct Payments,552000,22-Jun-16,1900202396,1006.00,REDACTED PERSONAL DATA,102183
WARRINGTON BOROUGH COUNCIL,http://opendatacommunities.org/id/unitary-authority/warrington ,FWB,Care Purchase West Team,54080,Direct Payments,552000,22-Jun-16,1900202422,1594.00,REDACTED PERSONAL DATA,103613
WARRINGTON BOROUGH COUNCIL,http://opendatacommunities.org/id/unitary-authority/warrington ,FWB,Care Purchase East Team,54060,Direct Payments,552000,22-Jun-16,1900202726,509.00,REDACTED PERSONAL DATA,461145
WARRINGTON BOROUGH COUNCIL,http://opendatacommunities.org/id/unitary-authority/warrington ,FWB,Care Purchase East Team,54060,Direct Payments,552000,22-Jun-16,1900202640,11453.00,REDACTED PERSONAL DATA,460725
WARRINGTON BOROUGH COUNCIL,http://opendatacommunities.org/id/unitary-authority/warrington ,FWB,Care Purchase South Team,54070,Direct Payments,552000,22-Jun-16,1900202503,888.00,REDACTED PERSONAL DATA,114340
WARRINGTON BOROUGH COUNCIL,http://opendatacommunities.org/id/unitary-authority/warrington ,FWB,Child Disability,32212,Direct Payments,552000,22-Jun-16,1900202673,560.00,REDACTED PERSONAL DATA,460905
WARRINGTON BOROUGH COUNCIL,http://opendatacommunities.org/id/unitary-authority/warrington ,FWB,Care Purchase Central Team,54050,Direct Payments,552000,22-Jun-16,1900202701,919.00,REDACTED PERSONAL DATA,461050
WARRINGTON BOROUGH COUNCIL,http://opendatacommunities.org/id/unitary-authority/warrington ,FWB,Care Purchase East Team,54060,Direct Payments,552000,22-Jun-16,1900202427,3862.00,REDACTED PERSONAL DATA,103696
WARRINGTON BOROUGH COUNCIL,http://opendatacommunities.org/id/unitary-authority/warrington ,FWB,Care Purchase Central Team,54050,Direct Payments,552000,22-Jun-16,1900202686,1347.00,REDACTED PERSONAL DATA,460973
WARRINGTON BOROUGH COUNCIL,http://opendatacommunities.org/id/unitary-authority/warrington ,FWB,Care Purchase East Team,54060,Direct Payments,552000,22-Jun-16,1900202397,542.00,REDACTED PERSONAL DATA,102225
WARRINGTON BOROUGH COUNCIL,http://opendatacommunities.org/id/unitary-authority/warrington ,FWB,Care Purchase West Team,54080,Direct Payments,552000,22-Jun-16,1900202385,630.00,REDACTED PERSONAL DATA,101748
WARRINGTON BOROUGH COUNCIL,http://opendatacommunities.org/id/unitary-authority/warrington ,FWB,Care Purchase West Team,54080,Direct Payments,552000,22-Jun-16,1900202750,976.00,REDACTED PERSONAL DATA,461242
